Directorate,Department,Expenditure Type,Ref.Doc.1,Vendor Name,Expenditure Amount (exc VAT),Payment Date
Central Expenses,Central Expenses,Other Establishments - Third P,1000025793,TRANSPORT TRADING LIMITED,"3,752,690.00",09/12/2019
COMMERCIAL,ENVIRONMENT,Professional Services,1000058301,NSL LTD,"17,005.00",19/12/2019
COMMERCIAL,ENVIRONMENT,Other Services,60145113,Conway Aecom Ltd,95.10,09/12/2019
COMMERCIAL,ENVIRONMENT,Other Services,60145134,Conway Aecom Ltd,341.56,09/12/2019
COMMERCIAL,ENVIRONMENT,Other Services,60145221,Conway Aecom Ltd,873.04,09/12/2019
COMMERCIAL,ENVIRONMENT,Other Services,60145241,Conway Aecom Ltd,14.55,09/12/2019
COMMERCIAL,ENVIRONMENT,Other Services,60145212,Macleod Simmonds Ltd,"3,841.25",09/12/2019
COMMERCIAL,ENVIRONMENT,Other Services,60145230,Macleod Simmonds Ltd,"3,143.75",09/12/2019
COMMERCIAL,ENVIRONMENT,Other Services,60144894,Conway Aecom Ltd,"55,733.73",06/12/2019
COMMERCIAL,ENVIRONMENT,Other Services,60144912,Conway Aecom Ltd,"19,939.90",06/12/2019
COMMERCIAL,ENVIRONMENT,Other Services,60144933,Conway Aecom Ltd,70.11,11/12/2019
COMMERCIAL,ENVIRONMENT,Other Services,60144934,Conway Aecom Ltd,"3,733.28",06/12/2019
COMMERCIAL,ENVIRONMENT,Other Services,60144937,Conway Aecom Ltd,"32,480.00",06/12/2019
COMMERCIAL,ENVIRONMENT,Other Services,60144954,Conway Aecom Ltd,"48,332.20",06/12/2019
COMMERCIAL,ENVIRONMENT,Other Services,60144980,Conway Aecom Ltd,"73,164.28",11/12/2019
COMMERCIAL,ENVIRONMENT,Other Services,60145002,Conway Aecom Ltd,"14,760.45",06/12/2019
COMMERCIAL,ENVIRONMENT,Other Services,60145014,Conway Aecom Ltd,"56,807.30",06/12/2019
COMMERCIAL,ENVIRONMENT,Other Services,60145055,Conway Aecom Ltd,"28,641.50",06/12/2019
COMMERCIAL,ENVIRONMENT,Other Services,60145069,Conway Aecom Ltd,"28,131.57",06/12/2019
COMMERCIAL,ENVIRONMENT,Other Services,60145070,Conway Aecom Ltd,"15,188.17",06/12/2019
COMMERCIAL,ENVIRONMENT,Other Services,60145081,Conway Aecom Ltd,"69,607.60",06/12/2019
COMMERCIAL,ENVIRONMENT,Other Services,1000018501,Conway Aecom Ltd,"20,657.20",16/12/2019
COMMERCIAL,ENVIRONMENT,Other Services,1000018601,Conway Aecom Ltd,"32,480.00",16/12/2019
COMMERCIAL,ENVIRONMENT,Other Services,1000018701,Conway Aecom Ltd,"21,102.60",16/12/2019
COMMERCIAL,ENVIRONMENT,Other Services,1000019401,Conway Aecom Ltd,"18,146.10",16/12/2019
COMMERCIAL,ENVIRONMENT,Other Services,1000022601,Conway Aecom Ltd,"28,953.15",16/12/2019
COMMERCIAL,ENVIRONMENT,Other Services,1000028301,Conway Aecom Ltd,"34,803.80",16/12/2019
COMMERCIAL,ENVIRONMENT,Other Services,1000031701,Conway Aecom Ltd,"29,520.90",16/12/2019
COMMERCIAL,ENVIRONMENT,Advertising,1000146101,TMP (UK) LTD,296.00,30/12/2019
COMMERCIAL,ENVIRONMENT,Other Services,1000098401,Conway Aecom Ltd,"100,000.00",24/12/2019
COMMERCIAL,ENVIRONMENT,Other Services,60145019,Conway Aecom Ltd,"7,509.29",11/12/2019
COMMERCIAL,ENVIRONMENT,Other Services,60144403,Conway Aecom Ltd,"1,058.40",02/12/2019
COMMERCIAL,ENVIRONMENT,Other Services,60144430,Conway Aecom Ltd,352.80,02/12/2019
COMMERCIAL,ENVIRONMENT,Other Services,60144439,Conway Aecom Ltd,579.60,03/12/2019
COMMERCIAL,ENVIRONMENT,Other Services,60144494,Conway Aecom Ltd,"1,367.10",02/12/2019
COMMERCIAL,ENVIRONMENT,Other Services,1000077101,RM COUNTRYSIDE SERVICES LTD,195.00,24/12/2019
COMMERCIAL,ENVIRONMENT,Other Services,1000100401,RM COUNTRYSIDE SERVICES LTD,"2,779.00",24/12/2019
COMMERCIAL,ENVIRONMENT,Other Services,1000108401,RM COUNTRYSIDE SERVICES LTD,735.00,24/12/2019
COMMERCIAL,ENVIRONMENT,Grounds maintenance,1000152901,Agrostis Turf Consultancy Ltd,"1,563.50",31/12/2019
COMMERCIAL,ENVIRONMENT,Equipment and Materials Purcha,1000136901,HAGS PLAY LTD,"19,265.19",27/12/2019
COMMERCIAL,ENVIRONMENT,Other Services,60145410,Conway Aecom Ltd,"619,130.59",10/12/2019
COMMERCIAL,ENVIRONMENT,,60145204,AMU SURVEYS LTD,"1,000.00",11/11/2019
COMMERCIAL,ENVIRONMENT,Other Services,1000061601,Cycle Confident Ltd,"41,214.38",19/12/2019
COMMERCIAL,ENVIRONMENT,Other Services,60145157,Conway Aecom Ltd,35.36,09/12/2019
COMMERCIAL,ENVIRONMENT,Other Services,60145159,Conway Aecom Ltd,95.10,09/12/2019
COMMERCIAL,ENVIRONMENT,Other Services,1000065201,Conway Aecom Ltd,"5,701.69",24/12/2019
COMMERCIAL,ENVIRONMENT,Other Services,60144290,Conway Aecom Ltd,"10,000.00",02/12/2019
COMMERCIAL,ENVIRONMENT,Other Services,1000020301,Conway Aecom Ltd,"51,015.31",16/12/2019
COMMERCIAL,ENVIRONMENT,Other Services,60145233,Traffic Survey Partners (TSP) Ltd,900.00,09/12/2019
COMMERCIAL,ENVIRONMENT,Advertising,1000145301,TMP (UK) LTD,305.00,30/12/2019
COMMERCIAL,ENVIRONMENT,Advertising,1000142601,TMP (UK) LTD,498.00,30/12/2019
COMMERCIAL,ENVIRONMENT,Other Services,60144539,Conway Aecom Ltd,"11,726.86",02/12/2019
COMMERCIAL,ENVIRONMENT,Other Services,60145327,Conway Aecom Ltd,"113,901.58",10/12/2019
COMMERCIAL,ENVIRONMENT,Other Services,1000066201,Conway Aecom Ltd,"49,261.78",24/12/2019
COMMERCIAL,ENVIRONMENT,Other Services,1000060201,Conway Aecom Ltd,"29,664.00",20/12/2019
COMMERCIAL,ENVIRONMENT,Other Services,1000072301,Conway Aecom Ltd,"36,308.95",24/12/2019
COMMERCIAL,ENVIRONMENT,Other Services,60134600,Conway Aecom Ltd,"22,949.14",12/12/2019
COMMERCIAL,ENVIRONMENT,Other Services,60136550,Conway Aecom Ltd,"35,000.00",12/12/2019
COMMERCIAL,ENVIRONMENT,Professional Services,60145351,BLAKEDOWN LANDSCAPE (SE) LTD,"279,523.32",12/12/2019
COMMERCIAL,ENVIRONMENT,Equipment and Materials Purcha,60144048,TREVOR ILES LTD,"3,336.00",06/12/2019
COMMERCIAL,ENVIRONMENT,Other Services,1000052401,METRO RADIO CARS,168.00,19/12/2019
COMMERCIAL,ENVIRONMENT,Other Services,1000058701,All Media Works Ltd,"5,297.00",19/12/2019
COMMERCIAL,ENVIRONMENT,Other Services,1000057102,REDACTED - PERSONAL DATA,"2,700.00",20/12/2019
COMMERCIAL,ENVIRONMENT,Advertising,1000141701,TMP (UK) LTD,287.00,30/12/2019
COMMERCIAL,HOUSING REVENUE ACCOUNT,Other Agencies - Third Party P,60143778,THE BARNETGROUP LIMITED,"968,170.00",09/12/2019
COMMERCIAL,HOUSING REVENUE ACCOUNT,Other Agencies - Third Party P,1000094201,THE BARNETGROUP LIMITED,"3,397,000.00",24/12/2019
COMMERCIAL,HOUSING REVENUE ACCOUNT,Other Agencies - Third Party P,60143817,THE BARNETGROUP LIMITED,"254,170.00",09/12/2019
COMMERCIAL,HOUSING REVENUE ACCOUNT,Other Agencies - Third Party P,60143838,THE BARNETGROUP LIMITED,"2,000,000.00",09/12/2019
COMMERCIAL,HOUSING REVENUE ACCOUNT,Other Agencies - Third Party P,1000096201,THE BARNETGROUP LIMITED,"481,000.00",24/12/2019
Commercial,HRA,Consultants Fees,60144438,PRIORITY ESTATES PROJECT LTD,"2,095.50",02/12/2019
Commercial,HRA,Consultants Fees,60145375,THE BARNETGROUP LIMITED,"10,575.74",11/12/2019
Commercial,HRA,Building Repairs & Maintenance,60100010,THE BARNETGROUP LIMITED,"12,170.81",24/12/2019
Commercial,HRA,Other Services,60097041,THE BARNETGROUP LIMITED,"12,218.00",24/12/2019
Commercial,HRA,Other Services,1000076801,THE BARNETGROUP LIMITED,"2,020,145.93",24/12/2019
Commercial,HRA,Private Contractors - Third Pa,80031353,REDACTED - PERSONAL DATA,434.02,12/12/2019
Commercial,HRA,Private Contractors - Third Pa,80031733,REDACTED - PERSONAL DATA,"1,500.00",20/12/2019
Commercial,HRA,Private Contractors - Third Pa,80031953,REDACTED - PERSONAL DATA,125.82,20/12/2019
Commercial,Regional Enterprise,Equipment and Materials Purcha,1000056901,Enforcement Services Ltd,"19,280.00",19/12/2019
Commercial,Regional Enterprise,Other Services,60144318,Conway Aecom Ltd,507.75,02/12/2019
Commercial,Regional Enterprise,Other Services,60144663,Conway Aecom Ltd,439.38,03/12/2019
Commercial,Regional Enterprise,Other Services,60144946,Conway Aecom Ltd,219.69,11/12/2019
Commercial,Regional Enterprise,Other Services,60144952,Conway Aecom Ltd,61.24,06/12/2019
Commercial,Regional Enterprise,Other Services,60144958,Conway Aecom Ltd,"22,574.71",06/12/2019
Commercial,Regional Enterprise,Other Services,60144970,Conway Aecom Ltd,149.74,06/12/2019
Commercial,Regional Enterprise,Other Services,60145007,Conway Aecom Ltd,"1,700.00",10/12/2019
Commercial,Regional Enterprise,Other Services,60145017,Conway Aecom Ltd,215.15,06/12/2019
Commercial,Regional Enterprise,Other Services,60145018,Conway Aecom Ltd,55.42,06/12/2019
Commercial,Regional Enterprise,Other Services,60145026,Conway Aecom Ltd,"22,574.71",06/12/2019
Commercial,Regional Enterprise,Other Services,60145039,Conway Aecom Ltd,110.85,06/12/2019
Commercial,Regional Enterprise,Other Services,60145042,Conway Aecom Ltd,61.24,06/12/2019
Commercial,Regional Enterprise,Other Services,60145044,Conway Aecom Ltd,61.24,06/12/2019
Commercial,Regional Enterprise,Other Services,60145046,Conway Aecom Ltd,219.69,06/12/2019
Commercial,Regional Enterprise,Other Services,60145071,Conway Aecom Ltd,292.92,06/12/2019
Commercial,Regional Enterprise,Other Services,60145088,Conway Aecom Ltd,219.69,09/12/2019
Commercial,Regional Enterprise,Other Services,60145090,Conway Aecom Ltd,850.56,09/12/2019
Commercial,Regional Enterprise,Other Services,60145097,Conway Aecom Ltd,207.34,09/12/2019
Commercial,Regional Enterprise,Other Services,60145098,Conway Aecom Ltd,55.42,09/12/2019
Commercial,Regional Enterprise,Other Services,60145101,Conway Aecom Ltd,62.19,09/12/2019
Commercial,Regional Enterprise,Other Services,60145122,Conway Aecom Ltd,55.42,09/12/2019
Commercial,Regional Enterprise,Other Services,60145123,Conway Aecom Ltd,61.24,09/12/2019
Commercial,Regional Enterprise,Other Services,60145152,Conway Aecom Ltd,"1,496.62",09/12/2019
Commercial,Regional Enterprise,Other Services,60145179,Conway Aecom Ltd,62.19,09/12/2019
Commercial,Regional Enterprise,Other Services,60145185,Conway Aecom Ltd,61.23,09/12/2019
Commercial,Regional Enterprise,Other Services,60145186,Conway Aecom Ltd,157.65,09/12/2019
Commercial,Regional Enterprise,Other Services,60145193,Conway Aecom Ltd,55.42,09/12/2019
Commercial,Regional Enterprise,Other Services,60145197,Conway Aecom Ltd,177.88,09/12/2019
Commercial,Regional Enterprise,Other Services,60145201,Conway Aecom Ltd,149.74,09/12/2019
Commercial,Regional Enterprise,Other Services,60145207,Conway Aecom Ltd,122.48,09/12/2019
Commercial,Regional Enterprise,Other Services,60145211,Conway Aecom Ltd,61.24,09/12/2019
Commercial,Regional Enterprise,Other Services,60145213,Conway Aecom Ltd,55.42,09/12/2019
Commercial,Regional Enterprise,Other Services,60145217,Conway Aecom Ltd,55.42,09/12/2019
Commercial,Regional Enterprise,Other Services,60145219,Conway Aecom Ltd,598.96,09/12/2019
Commercial,Regional Enterprise,Other Services,1000000802,Conway Aecom Ltd,146.46,12/12/2019
Commercial,Regional Enterprise,Other Services,1000029101,Conway Aecom Ltd,219.69,16/12/2019
Commercial,Regional Enterprise,Advertising,60122660,TMP (UK) LTD,525.00,18/12/2019
Commercial,Regional Enterprise,Advertising,60132035,TMP (UK) LTD,278.00,17/12/2019
Commercial,Regional Enterprise,Advertising,60141323,TMP (UK) LTD,90.00,18/12/2019
Commercial,Regional Enterprise,Advertising,60144389,TMP (UK) LTD,81.00,02/12/2019
Commercial,Regional Enterprise,Advertising,60144405,TMP (UK) LTD,278.00,02/12/2019
Commercial,Regional Enterprise,Advertising,60144410,TMP (UK) LTD,99.00,03/12/2019
Commercial,Regional Enterprise,Advertising,60144412,TMP (UK) LTD,188.00,13/12/2019
Commercial,Regional Enterprise,Advertising,60144454,TMP (UK) LTD,170.00,10/12/2019
Commercial,Regional Enterprise,Advertising,60144464,TMP (UK) LTD,179.00,02/12/2019
Commercial,Regional Enterprise,Advertising,60144469,TMP (UK) LTD,179.00,02/12/2019
Commercial,Regional Enterprise,Advertising,60144474,TMP (UK) LTD,90.00,10/12/2019
Commercial,Regional Enterprise,Advertising,60144475,TMP (UK) LTD,161.00,02/12/2019
Commercial,Regional Enterprise,Advertising,60144537,TMP (UK) LTD,90.00,02/12/2019
Commercial,Regional Enterprise,Advertising,60144555,TMP (UK) LTD,188.00,13/12/2019
Commercial,Regional Enterprise,Advertising,60144567,TMP (UK) LTD,108.00,13/12/2019
Commercial,Regional Enterprise,Advertising,60144596,TMP (UK) LTD,108.00,13/12/2019
Commercial,Regional Enterprise,Advertising,60144601,TMP (UK) LTD,90.00,13/12/2019
Commercial,Regional Enterprise,Advertising,60144631,TMP (UK) LTD,108.00,13/12/2019
Commercial,Regional Enterprise,Advertising,60144637,TMP (UK) LTD,108.00,13/12/2019
Commercial,Regional Enterprise,Advertising,60144639,TMP (UK) LTD,108.00,13/12/2019
Commercial,Regional Enterprise,Advertising,60144641,TMP (UK) LTD,188.00,13/12/2019
Commercial,Regional Enterprise,Advertising,60144657,TMP (UK) LTD,206.00,13/12/2019
Commercial,Regional Enterprise,Advertising,60144660,TMP (UK) LTD,99.00,13/12/2019
Commercial,Regional Enterprise,Advertising,60144665,TMP (UK) LTD,161.00,03/12/2019
Commercial,Regional Enterprise,Advertising,60144670,TMP (UK) LTD,188.00,13/12/2019
Commercial,Regional Enterprise,Advertising,60144674,TMP (UK) LTD,188.00,13/12/2019
Commercial,Regional Enterprise,Advertising,60144675,TMP (UK) LTD,179.00,13/12/2019
Commercial,Regional Enterprise,Advertising,60144687,TMP (UK) LTD,170.00,03/12/2019
Commercial,Regional Enterprise,Advertising,60144690,TMP (UK) LTD,108.00,13/12/2019
Commercial,Regional Enterprise,Advertising,60144695,TMP (UK) LTD,90.00,13/12/2019
Commercial,Regional Enterprise,Advertising,60145091,TMP (UK) LTD,170.00,09/12/2019
Commercial,Regional Enterprise,Advertising,60145093,TMP (UK) LTD,260.00,09/12/2019
Commercial,Regional Enterprise,Advertising,60145102,TMP (UK) LTD,188.00,12/12/2019
Commercial,Regional Enterprise,Advertising,60145104,TMP (UK) LTD,170.00,13/12/2019
Commercial,Regional Enterprise,Advertising,60145107,TMP (UK) LTD,296.00,09/12/2019
Commercial,Regional Enterprise,Advertising,60145109,TMP (UK) LTD,296.00,09/12/2019
Commercial,Regional Enterprise,Advertising,60145117,TMP (UK) LTD,90.00,09/12/2019
Commercial,Regional Enterprise,Advertising,60145118,TMP (UK) LTD,179.00,12/12/2019
Commercial,Regional Enterprise,Advertising,60145129,TMP (UK) LTD,260.00,09/12/2019
Commercial,Regional Enterprise,Advertising,60145133,TMP (UK) LTD,278.00,09/12/2019
Commercial,Regional Enterprise,Advertising,60145135,TMP (UK) LTD,278.00,12/12/2019
Commercial,Regional Enterprise,Advertising,60145136,TMP (UK) LTD,278.00,09/12/2019
Commercial,Regional Enterprise,Advertising,60145138,TMP (UK) LTD,170.00,12/12/2019
Commercial,Regional Enterprise,Advertising,60145140,TMP (UK) LTD,90.00,13/12/2019
Commercial,Regional Enterprise,Advertising,60145146,TMP (UK) LTD,108.00,09/12/2019
Commercial,Regional Enterprise,Advertising,60145147,TMP (UK) LTD,197.00,09/12/2019
Commercial,Regional Enterprise,Advertising,60145150,TMP (UK) LTD,278.00,09/12/2019
Commercial,Regional Enterprise,Advertising,60145151,TMP (UK) LTD,179.00,12/12/2019
Commercial,Regional Enterprise,Advertising,60145154,TMP (UK) LTD,179.00,09/12/2019
Commercial,Regional Enterprise,Advertising,60145156,TMP (UK) LTD,99.00,13/12/2019
Commercial,Regional Enterprise,Advertising,60145158,TMP (UK) LTD,296.00,09/12/2019
Commercial,Regional Enterprise,Advertising,60145161,TMP (UK) LTD,99.00,13/12/2019
Commercial,Regional Enterprise,Advertising,60145162,TMP (UK) LTD,170.00,12/12/2019
Commercial,Regional Enterprise,Advertising,60145166,TMP (UK) LTD,197.00,09/12/2019
Commercial,Regional Enterprise,Advertising,60145170,TMP (UK) LTD,179.00,13/12/2019
Commercial,Regional Enterprise,Advertising,60145175,TMP (UK) LTD,108.00,09/12/2019
Commercial,Regional Enterprise,Advertising,60145176,TMP (UK) LTD,278.00,09/12/2019
Commercial,Regional Enterprise,Advertising,60145177,TMP (UK) LTD,170.00,13/12/2019
Commercial,Regional Enterprise,Advertising,60145183,TMP (UK) LTD,170.00,09/12/2019
Commercial,Regional Enterprise,Advertising,60145192,TMP (UK) LTD,90.00,09/12/2019
Commercial,Regional Enterprise,Advertising,60145195,TMP (UK) LTD,242.00,09/12/2019
Commercial,Regional Enterprise,Advertising,60145196,TMP (UK) LTD,117.00,09/12/2019
Commercial,Regional Enterprise,Advertising,60145202,TMP (UK) LTD,99.00,13/12/2019
Commercial,Regional Enterprise,Advertising,60145206,TMP (UK) LTD,197.00,09/12/2019
Commercial,Regional Enterprise,Advertising,60145223,TMP (UK) LTD,242.00,09/12/2019
Commercial,Regional Enterprise,Advertising,60145232,TMP (UK) LTD,296.00,09/12/2019
Commercial,Regional Enterprise,Advertising,60145237,TMP (UK) LTD,90.00,13/12/2019
Commercial,Regional Enterprise,Advertising,60145243,TMP (UK) LTD,108.00,13/12/2019
Commercial,Regional Enterprise,Advertising,1000006201,TMP (UK) LTD,188.00,13/12/2019
Commercial,Regional Enterprise,Advertising,1000010601,TMP (UK) LTD,179.00,16/12/2019
Commercial,Regional Enterprise,Advertising,1000011501,TMP (UK) LTD,126.00,13/12/2019
Commercial,Regional Enterprise,Advertising,1000015001,TMP (UK) LTD,179.00,13/12/2019
Commercial,Regional Enterprise,Advertising,1000016801,TMP (UK) LTD,296.00,16/12/2019
Commercial,Regional Enterprise,Advertising,1000029801,TMP (UK) LTD,90.00,16/12/2019
Commercial,Regional Enterprise,Advertising,1000070901,TMP (UK) LTD,170.00,24/12/2019
Commercial,Regional Enterprise,Advertising,1000085201,TMP (UK) LTD,99.00,24/12/2019
Commercial,Regional Enterprise,Advertising,1000107001,TMP (UK) LTD,99.00,24/12/2019
Commercial,Regional Enterprise,Advertising,1000112701,TMP (UK) LTD,108.00,24/12/2019
Commercial,Regional Enterprise,Advertising,1000117301,TMP (UK) LTD,126.00,24/12/2019
Commercial,Regional Enterprise,Advertising,1000118801,TMP (UK) LTD,90.00,24/12/2019
Commercial,Regional Enterprise,Advertising,1000125001,TMP (UK) LTD,179.00,24/12/2019
Commercial,Regional Enterprise,Advertising,1000127301,TMP (UK) LTD,170.00,24/12/2019
Commercial,Regional Enterprise,Advertising,1000128701,TMP (UK) LTD,179.00,24/12/2019
Commercial,Regional Enterprise,Advertising,1000138201,TMP (UK) LTD,179.00,30/12/2019
Commercial,Regional Enterprise,Advertising,1000138301,TMP (UK) LTD,90.00,30/12/2019
Commercial,Regional Enterprise,Advertising,1000138401,TMP (UK) LTD,170.00,30/12/2019
Commercial,Regional Enterprise,Advertising,1000138501,TMP (UK) LTD,188.00,30/12/2019
Commercial,Regional Enterprise,Advertising,1000138701,TMP (UK) LTD,170.00,30/12/2019
Commercial,Regional Enterprise,Advertising,1000138801,TMP (UK) LTD,170.00,30/12/2019
Commercial,Regional Enterprise,Advertising,1000138901,TMP (UK) LTD,296.00,30/12/2019
Commercial,Regional Enterprise,Advertising,1000139001,TMP (UK) LTD,170.00,30/12/2019
Commercial,Regional Enterprise,Advertising,1000139101,TMP (UK) LTD,170.00,30/12/2019
Commercial,Regional Enterprise,Advertising,1000139201,TMP (UK) LTD,188.00,30/12/2019
Commercial,Regional Enterprise,Advertising,1000139701,TMP (UK) LTD,260.00,30/12/2019
Commercial,Regional Enterprise,Advertising,1000139801,TMP (UK) LTD,81.00,30/12/2019
Commercial,Regional Enterprise,Advertising,1000140001,TMP (UK) LTD,108.00,30/12/2019
Commercial,Regional Enterprise,Advertising,1000140101,TMP (UK) LTD,197.00,30/12/2019
Commercial,Regional Enterprise,Advertising,1000140401,TMP (UK) LTD,179.00,30/12/2019
Commercial,Regional Enterprise,Advertising,1000140601,TMP (UK) LTD,278.00,30/12/2019
Commercial,Regional Enterprise,Advertising,1000140801,TMP (UK) LTD,99.00,30/12/2019
Commercial,Regional Enterprise,Advertising,1000140901,TMP (UK) LTD,108.00,30/12/2019
Commercial,Regional Enterprise,Advertising,1000141001,TMP (UK) LTD,188.00,30/12/2019
Commercial,Regional Enterprise,Advertising,1000141101,TMP (UK) LTD,99.00,30/12/2019
Commercial,Regional Enterprise,Advertising,1000141201,TMP (UK) LTD,170.00,30/12/2019
Commercial,Regional Enterprise,Advertising,1000141301,TMP (UK) LTD,179.00,30/12/2019
Commercial,Regional Enterprise,Advertising,1000141401,TMP (UK) LTD,260.00,30/12/2019
Commercial,Regional Enterprise,Advertising,1000141601,TMP (UK) LTD,260.00,30/12/2019
Commercial,Regional Enterprise,Advertising,1000141801,TMP (UK) LTD,90.00,30/12/2019
Commercial,Regional Enterprise,Advertising,1000142201,TMP (UK) LTD,81.00,30/12/2019
Commercial,Regional Enterprise,Advertising,1000142301,TMP (UK) LTD,296.00,30/12/2019
Commercial,Regional Enterprise,Advertising,1000142401,TMP (UK) LTD,108.00,30/12/2019
Commercial,Regional Enterprise,Advertising,1000142701,TMP (UK) LTD,99.00,30/12/2019
Commercial,Regional Enterprise,Advertising,1000142801,TMP (UK) LTD,99.00,30/12/2019
Commercial,Regional Enterprise,Advertising,1000142901,TMP (UK) LTD,108.00,30/12/2019
Commercial,Regional Enterprise,Advertising,1000143101,TMP (UK) LTD,170.00,30/12/2019
Commercial,Regional Enterprise,Advertising,1000143201,TMP (UK) LTD,179.00,30/12/2019
Commercial,Regional Enterprise,Advertising,1000143301,TMP (UK) LTD,99.00,30/12/2019
Commercial,Regional Enterprise,Advertising,1000143601,TMP (UK) LTD,206.00,30/12/2019
Commercial,Regional Enterprise,Advertising,1000143701,TMP (UK) LTD,90.00,30/12/2019
Commercial,Regional Enterprise,Advertising,1000143801,TMP (UK) LTD,108.00,30/12/2019
Commercial,Regional Enterprise,Advertising,1000144101,TMP (UK) LTD,179.00,30/12/2019
Commercial,Regional Enterprise,Advertising,1000144201,TMP (UK) LTD,90.00,30/12/2019
Commercial,Regional Enterprise,Advertising,1000144301,TMP (UK) LTD,108.00,30/12/2019
Commercial,Regional Enterprise,Advertising,1000144401,TMP (UK) LTD,197.00,30/12/2019
Commercial,Regional Enterprise,Advertising,1000144801,TMP (UK) LTD,296.00,30/12/2019
Commercial,Regional Enterprise,Advertising,1000144901,TMP (UK) LTD,296.00,30/12/2019
Commercial,Regional Enterprise,Advertising,1000145001,TMP (UK) LTD,260.00,30/12/2019
Commercial,Regional Enterprise,Advertising,1000145101,TMP (UK) LTD,188.00,30/12/2019
Commercial,Regional Enterprise,Advertising,1000145501,TMP (UK) LTD,179.00,30/12/2019
Commercial,Regional Enterprise,Advertising,1000145601,TMP (UK) LTD,90.00,30/12/2019
Commercial,Regional Enterprise,Advertising,1000145701,TMP (UK) LTD,260.00,30/12/2019
Commercial,Regional Enterprise,Advertising,1000145801,TMP (UK) LTD,90.00,30/12/2019
Commercial,Regional Enterprise,Advertising,1000146501,TMP (UK) LTD,188.00,30/12/2019
Commercial,Regional Enterprise,Advertising,1000146701,TMP (UK) LTD,188.00,30/12/2019
Commercial,Regional Enterprise,Advertising,1000147101,TMP (UK) LTD,179.00,30/12/2019
Commercial,Regional Enterprise,Advertising,1000147301,TMP (UK) LTD,108.00,30/12/2019
Commercial,Regional Enterprise,Advertising,1000147401,TMP (UK) LTD,99.00,30/12/2019
Commercial,Regional Enterprise,Advertising,1000147501,TMP (UK) LTD,170.00,30/12/2019
Commercial,Regional Enterprise,Advertising,1000147601,TMP (UK) LTD,90.00,30/12/2019
Commercial,Regional Enterprise,Advertising,1000147801,TMP (UK) LTD,278.00,30/12/2019
Commercial,Regional Enterprise,Advertising,1000148001,TMP (UK) LTD,188.00,30/12/2019
Commercial,Regional Enterprise,Advertising,1000148301,TMP (UK) LTD,170.00,30/12/2019
Commercial,Regional Enterprise,Advertising,1000148601,TMP (UK) LTD,188.00,30/12/2019
Commercial,Regional Enterprise,Advertising,1000148801,TMP (UK) LTD,179.00,30/12/2019
Commercial,Regional Enterprise,Advertising,1000148901,TMP (UK) LTD,188.00,30/12/2019
Commercial,Regional Enterprise,Advertising,1000149301,TMP (UK) LTD,197.00,30/12/2019
Commercial,Regional Enterprise,Advertising,1000149401,TMP (UK) LTD,99.00,30/12/2019
Commercial,Regional Enterprise,Advertising,1000149501,TMP (UK) LTD,170.00,30/12/2019
Commercial,Regional Enterprise,Advertising,1000149701,TMP (UK) LTD,161.00,30/12/2019
Commercial,Regional Enterprise,Advertising,1000149801,TMP (UK) LTD,188.00,30/12/2019
Commercial,Regional Enterprise,Advertising,1000149901,TMP (UK) LTD,170.00,30/12/2019
Commercial,Regional Enterprise,Advertising,1000150001,TMP (UK) LTD,90.00,30/12/2019
Commercial,Regional Enterprise,Advertising,1000150101,TMP (UK) LTD,99.00,30/12/2019
Commercial,Regional Enterprise,Advertising,1000150201,TMP (UK) LTD,90.00,30/12/2019
Commercial,Regional Enterprise,Advertising,1000150301,TMP (UK) LTD,188.00,30/12/2019
Commercial,Regional Enterprise,Advertising,1000150401,TMP (UK) LTD,188.00,30/12/2019
Commercial,Regional Enterprise,Advertising,1000152201,TMP (UK) LTD,170.00,31/12/2019
Commercial,Regional Enterprise,Other Services,60145149,Conway Aecom Ltd,177.36,09/12/2019
Commercial,Regional Enterprise,Other Services,60145165,Conway Aecom Ltd,14.33,09/12/2019
Commercial,Regional Enterprise,Other Services,60145171,Conway Aecom Ltd,"1,033.04",09/12/2019
Commercial,Regional Enterprise,Advertising,1000038801,TMP (UK) LTD,458.00,18/12/2019
Commercial,Regional Enterprise,Other Services,60145258,Conway Aecom Ltd,458.85,10/12/2019
Commercial,Regional Enterprise,Other Services,60145275,Conway Aecom Ltd,"1,512.00",10/12/2019
Commercial,Regional Enterprise,Other Services,60145286,Conway Aecom Ltd,"3,213.00",10/12/2019
Commercial,Regional Enterprise,Other Services,60145295,Conway Aecom Ltd,"1,512.00",10/12/2019
Commercial,Regional Enterprise,Other Services,60145304,Conway Aecom Ltd,"1,039.50",10/12/2019
Commercial,Regional Enterprise,Other Services,60145326,Conway Aecom Ltd,708.76,11/12/2019
Commercial,Regional Enterprise,Other Services,60145332,Conway Aecom Ltd,749.70,10/12/2019
Commercial,Regional Enterprise,Other Services,60145387,Conway Aecom Ltd,428.40,10/12/2019
Commercial,Regional Enterprise,Other Services,60145403,Conway Aecom Ltd,415.80,10/12/2019
Commercial,Regional Enterprise,Other Services,1000084901,Conway Aecom Ltd,630.00,24/12/2019
Commercial,Regional Enterprise,Advertising,1000006101,TMP (UK) LTD,462.00,16/12/2019
Commercial,Regional Enterprise,Advertising,1000086101,TMP (UK) LTD,867.00,24/12/2019
Commercial,Regional Enterprise,Advertising,1000144601,TMP (UK) LTD,637.50,30/12/2019
Commercial,Regional Enterprise,Advertising,1000146801,TMP (UK) LTD,296.00,30/12/2019
Commercial,Regional Enterprise,Other Services,60144893,Conway Aecom Ltd,500.00,06/12/2019
Commercial,Regional Enterprise,Other Services,1000043001,Conway Aecom Ltd,"4,811.03",19/12/2019
Commercial,Regional Enterprise,Fees and Charges,80030979,REDACTED - PERSONAL DATA,132.00,20/12/2019
Commercial,Regional Enterprise,Other Services,1000063201,Conway Aecom Ltd,"20,960.45",20/12/2019
Commercial,Regional Enterprise,Professional Services,60144966,PUBLIC ANALYST SCIENTIFIC SERVS. LT,180.00,11/12/2019
Commercial,Regional Enterprise,Professional Services,1000029302,PUBLIC ANALYST SCIENTIFIC SERVS. LT,885.00,16/12/2019
Commercial,Regional Enterprise,Professional Services,1000030301,PUBLIC ANALYST SCIENTIFIC SERVS. LT,"1,160.00",16/12/2019
Commercial,Regional Enterprise,Other Services,60132341,Conway Aecom Ltd,218.58,03/12/2019
Commercial,Regional Enterprise,Other Services,60143116,Conway Aecom Ltd,39.04,20/12/2019
Commercial,Regional Enterprise,Other Services,60143286,Conway Aecom Ltd,39.04,20/12/2019
Commercial,Regional Enterprise,Other Services,60144265,Conway Aecom Ltd,39.04,20/12/2019
Commercial,Regional Enterprise,Other Services,60144339,Conway Aecom Ltd,62.13,20/12/2019
Commercial,Regional Enterprise,Other Services,60144432,Conway Aecom Ltd,457.56,03/12/2019
Commercial,Regional Enterprise,Other Services,60144443,Conway Aecom Ltd,64.42,02/12/2019
Commercial,Regional Enterprise,Other Services,60144455,Conway Aecom Ltd,732.78,02/12/2019
Commercial,Regional Enterprise,Other Services,60144473,Conway Aecom Ltd,64.42,02/12/2019
Commercial,Regional Enterprise,Other Services,60144528,Conway Aecom Ltd,127.97,02/12/2019
Commercial,Regional Enterprise,Other Services,60145270,Conway Aecom Ltd,"336,738.82",10/12/2019
Commercial,Regional Enterprise,Other Services,60145308,Conway Aecom Ltd,679.61,10/12/2019
Commercial,Regional Enterprise,Other Services,1000003601,Conway Aecom Ltd,121.55,19/12/2019
Commercial,Regional Enterprise,Fees and Charges,80031167,REDACTED - PERSONAL DATA,144.00,12/12/2019
Commercial,Regional Enterprise,Fees and Charges,60142485,CAPITAL  LOCKSMITHS,175.00,05/12/2019
Commercial,Regional Enterprise,Fees and Charges,80031533,HM Courts & Tribunals,200.00,10/12/2019
Commercial,Regional Enterprise,Other Services,60144264,Conway Aecom Ltd,"1,134.00",02/12/2019
Commercial,Regional Enterprise,Other Services,60144292,Conway Aecom Ltd,850.50,02/12/2019
Commercial,Regional Enterprise,Other Services,60144306,Conway Aecom Ltd,932.40,02/12/2019
Commercial,Regional Enterprise,Other Services,60144352,Conway Aecom Ltd,"1,020.60",02/12/2019
Commercial,Regional Enterprise,Other Services,60144355,Conway Aecom Ltd,225.00,02/12/2019
Commercial,Regional Enterprise,Other Services,60144364,Conway Aecom Ltd,"1,449.00",02/12/2019
Commercial,Regional Enterprise,Other Services,60144371,Conway Aecom Ltd,"1,360.80",02/12/2019
Commercial,Regional Enterprise,Other Services,60144373,Conway Aecom Ltd,821.10,02/12/2019
Commercial,Regional Enterprise,Other Services,60144398,Conway Aecom Ltd,466.20,02/12/2019
Commercial,Regional Enterprise,Other Services,60144400,Conway Aecom Ltd,319.20,03/12/2019
Commercial,Regional Enterprise,Other Services,60144407,Conway Aecom Ltd,"1,058.40",02/12/2019
Commercial,Regional Enterprise,Other Services,60144416,Conway Aecom Ltd,"1,360.80",02/12/2019
Commercial,Regional Enterprise,Other Services,60144419,Conway Aecom Ltd,705.60,02/12/2019
Commercial,Regional Enterprise,Other Services,60144425,Conway Aecom Ltd,623.70,02/12/2019
Commercial,Regional Enterprise,Other Services,60144436,Conway Aecom Ltd,819.00,02/12/2019
Commercial,Regional Enterprise,Other Services,60144440,Conway Aecom Ltd,"1,323.00",03/12/2019
Commercial,Regional Enterprise,Other Services,60144449,Conway Aecom Ltd,781.20,03/12/2019
Commercial,Regional Enterprise,Other Services,60144453,Conway Aecom Ltd,705.60,02/12/2019
Commercial,Regional Enterprise,Other Services,60144457,Conway Aecom Ltd,623.70,02/12/2019
Commercial,Regional Enterprise,Other Services,60144460,Conway Aecom Ltd,604.80,02/12/2019
Commercial,Regional Enterprise,Other Services,60144461,Conway Aecom Ltd,693.00,02/12/2019
Commercial,Regional Enterprise,Other Services,60144467,Conway Aecom Ltd,"1,096.20",02/12/2019
Commercial,Regional Enterprise,Other Services,60144479,Conway Aecom Ltd,504.00,02/12/2019
Commercial,Regional Enterprise,Other Services,60144481,Conway Aecom Ltd,630.00,02/12/2019
Commercial,Regional Enterprise,Other Services,60144484,Conway Aecom Ltd,157.50,03/12/2019
Commercial,Regional Enterprise,Other Services,60144489,Conway Aecom Ltd,907.20,03/12/2019
Commercial,Regional Enterprise,Other Services,60144493,Conway Aecom Ltd,604.80,02/12/2019
Commercial,Regional Enterprise,Other Services,60144497,Conway Aecom Ltd,"1,050.00",02/12/2019
Commercial,Regional Enterprise,Other Services,60144498,Conway Aecom Ltd,693.00,02/12/2019
Commercial,Regional Enterprise,Other Services,60144501,Conway Aecom Ltd,604.80,02/12/2019
Commercial,Regional Enterprise,Other Services,60144502,Conway Aecom Ltd,680.40,02/12/2019
Commercial,Regional Enterprise,Other Services,60144516,Conway Aecom Ltd,210.00,02/12/2019
Commercial,Regional Enterprise,Other Services,60144517,Conway Aecom Ltd,378.00,02/12/2019
Commercial,Regional Enterprise,Other Services,60144522,Conway Aecom Ltd,735.00,02/12/2019
Commercial,Regional Enterprise,Other Services,60144525,Conway Aecom Ltd,756.00,03/12/2019
Commercial,Regional Enterprise,Other Services,60144526,Conway Aecom Ltd,567.00,02/12/2019
Commercial,Regional Enterprise,Other Services,60144529,Conway Aecom Ltd,450.00,02/12/2019
Commercial,Regional Enterprise,Other Services,60144530,Conway Aecom Ltd,903.00,02/12/2019
Commercial,Regional Enterprise,Other Services,60144538,Conway Aecom Ltd,693.00,02/12/2019
Commercial,Regional Enterprise,Other Services,60144766,Conway Aecom Ltd,793.80,04/12/2019
Commercial,Regional Enterprise,Other Services,1000088001,Conway Aecom Ltd,"1,377.50",24/12/2019
Commercial,Regional Enterprise,Grant Payments,80031793,Amwell Construction Ltd,114.00,18/12/2019
Commercial,Regional Enterprise,Grant Payments,80031801,Amwell Construction Ltd,126.00,18/12/2019
Commercial,Regional Enterprise,Grant Payments,80031802,Amwell Construction Ltd,126.00,18/12/2019
Commercial,Regional Enterprise,Grant Payments,80032009,Amwell Construction Ltd,492.00,20/12/2019
Commercial,Regional Enterprise,Consultants Fees,60141603,EVERSHEDS LLP,555.60,13/12/2019
Commercial,Regional Enterprise,RE Services Contract Payment,1000034001,RE (REGIONAL ENTERPRISE) LIMITED,"19,546.23",17/12/2019
Commercial,Regional Enterprise,RE Services Contract Payment,1000034101,RE (REGIONAL ENTERPRISE) LIMITED,"11,424.36",17/12/2019
Commercial,Regional Enterprise,Consultants Fees,60144280,Gowling WLG,"16,172.40",02/12/2019
Commercial,Regional Enterprise,Consultants Fees,60144302,Gowling WLG,180.60,02/12/2019
Commercial,Regional Enterprise,Consultants Fees,60144309,Gowling WLG,"14,932.95",02/12/2019
Commercial,Regional Enterprise,Consultants Fees,60141585,EVERSHEDS LLP,"16,916.91",13/12/2019
Commercial,Regional Enterprise,RE Services Contract Payment,1000033001,RE (REGIONAL ENTERPRISE) LIMITED,"67,497.86",17/12/2019
Commercial,Regional Enterprise,RE Services Contract Payment,1000033301,RE (REGIONAL ENTERPRISE) LIMITED,"74,827.00",17/12/2019
Commercial,Regional Enterprise,RE Services Contract Payment,1000033402,RE (REGIONAL ENTERPRISE) LIMITED,"52,118.84",17/12/2019
Commercial,Regional Enterprise,RE Services Contract Payment,1000034401,RE (REGIONAL ENTERPRISE) LIMITED,"29,301.40",17/12/2019
Commercial,Regional Enterprise,Consultants Fees,60144071,Gowling WLG,"11,894.20",02/12/2019
Commercial,Regional Enterprise,Consultants Fees,60144097,Gowling WLG,"4,808.67",02/12/2019
Commercial,Regional Enterprise,Consultants Fees,60144155,Gowling WLG,"7,748.98",02/12/2019
Commercial,Regional Enterprise,Consultants Fees,60144173,Gowling WLG,"3,530.73",02/12/2019
Commercial,Regional Enterprise,Consultants Fees,60144192,Gowling WLG,"4,453.31",02/12/2019
Commercial,Regional Enterprise,Consultants Fees,60144194,Gowling WLG,"3,067.22",02/12/2019
Commercial,Regional Enterprise,Consultants Fees,60144206,Gowling WLG,"9,021.00",02/12/2019
Commercial,Regional Enterprise,Consultants Fees,60144244,Gowling WLG,975.11,02/12/2019
Commercial,Regional Enterprise,Consultants Fees,60144470,Gowling WLG,"3,861.05",02/12/2019
Commercial,Regional Enterprise,Consultants Fees,60144487,Gowling WLG,"8,305.37",02/12/2019
Commercial,Regional Enterprise,Consultants Fees,60144523,Gowling WLG,"2,464.50",02/12/2019
Commercial,Regional Enterprise,Consultants Fees,60145253,Claremont Free Church,120.00,12/12/2019
Commercial,Regional Enterprise,Professional Services,1000161401,GVA Grimley Ltd T/A Avison,"12,000.00",31/12/2019
Commercial,Regional Enterprise,RE Services Contract Payment,1000042701,RE (REGIONAL ENTERPRISE) LIMITED,"126,000.00",18/12/2019
Corporate Accounting,Corporate Accounting,Other Local Authorities - Thir,80031627,GLA LEVIES,"227,824.00",12/12/2019
Corporate Accounting,Corporate Accounting,Other Local Authorities - Thir,80031628,GLA LEVIES,"1,519,940.00",12/12/2019
Corporate Accounting,Corporate Accounting,Other Local Authorities - Thir,80031692,GLA LEVIES,"4,665,343.56",11/12/2019
Corporate Accounting,Corporate Accounting,Other Services,80031336,Department for Communities & Local Gov.,461.86,02/12/2019
Corporate Accounting,Corporate Accounting,Grant Payments,80031530,THE HARINGTON SCHEME,"5,000.00",10/12/2019
Corporate Accounting,Corporate Accounting,Grant Payments,80031393,Bread n Butter CIC,"7,590.00",05/12/2019
Corporate Accounting,Corporate Accounting,Other Agencies - Third Party P,1000076401,THE BARNETGROUP LIMITED,"91,666.67",24/12/2019
Corporate Accounting,Corporate Accounting,Other Contributions,70102584,REDACTED - PERSONAL DATA,838.57,10/12/2019
Corporate Accounting,Corporate Accounting,Other Transfer Payments to Soc,80031891,Wirecard (FS ongoing 2040881670310,"6,453.01",20/12/2019
Corporate Accounting,Corporate Accounting,Private Contractors - Third Pa,80030304,REDACTED - PERSONAL DATA,250.00,04/12/2019
Corporate Accounting,Corporate Accounting,Private Contractors - Third Pa,80031699,Gattas Denfield Solicitors,"1,000.00",12/12/2019
Corporate Accounting,Corporate Accounting,Fees and Charges,80031246,Redrow Homes,"8,713.24",10/12/2019
Corporate Accounting,Corporate Accounting,Fees and Charges,80031255,The Finchley Charities,"7,200.00",30/12/2019
Corporate Accounting,Corporate Accounting,Fees and Charges,80031301,C & F Scaffolding,564.78,10/12/2019
Corporate Accounting,Corporate Accounting,Fees and Charges,80031670,Abee Hire LTD,"1,000.00",12/12/2019
Corporate Accounting,Corporate Accounting,Fees and Charges,80031534,The Price Company (Eaton Bray) Ltd T/A M,"1,000.00",10/12/2019
Corporate Accounting,Corporate Accounting,Fees and Charges,80031302,HMR SCAFFOLDING,"1,000.00",04/12/2019
Corporate Accounting,Corporate Accounting,Fees and Charges,80031326,SJ Scaffolding LTD,750.00,04/12/2019
Corporate Accounting,Corporate Accounting,Fees and Charges,80031377,Jeffrey gilbert trading,564.78,05/12/2019
Delivery Units,Adults and Health,Voluntary Associations - Third,50006384,SANCTUARY HOUSING ASSOCIATION,"6,019.62",17/12/2019
Delivery Units,Adults and Health,Voluntary Associations - Third,50006380,BARNET MENCAP,"11,142.65",17/12/2019
Delivery Units,Adults and Health,Voluntary Associations - Third,50006383,METROPOLITAN SUPPORT TRUST,"6,252.40",17/12/2019
Delivery Units,Adults and Health,Voluntary Associations - Third,50006382,MIDDLESEX ASSOCIATION  FOR THE BLIN,"2,394.00",17/12/2019
Delivery Units,Adults and Health,Voluntary Associations - Third,50006381,BARNET MENCAP,"28,583.00",17/12/2019
Delivery Units,Adults and Health,Voluntary Associations - Third,50006379,AGE CONCERN,"58,333.00",17/12/2019
Delivery Units,Adults and Health,Other Services,1000059102,POhWER,"5,290.00",19/12/2019
Delivery Units,Adults and Health,Professional Services,1000111102,Southwark Council,"2,767.50",24/12/2019
Delivery Units,Adults and Health,Other Establishments - Third P,60139868,HERTFORDSHIRE PARTNERSHIP,"115,186.08",13/12/2019
Delivery Units,Adults and Health,Other Establishments - Third P,60141529,HERTFORDSHIRE PARTNERSHIP,"115,186.08",13/12/2019
Delivery Units,Adults and Health,Other Establishments - Third P,60143621,HERTFORDSHIRE PARTNERSHIP,"115,186.08",13/12/2019
Delivery Units,Adults and Health,Translation Exp / Interpret,1000013201,D.A. Languages Ltd,22.00,13/12/2019
Delivery Units,Adults and Health,Stationery,1000009801,Staples UK Ltd,49.20,30/12/2019
Delivery Units,Adults and Health,Other Services,60143024,D.A. Languages Ltd,33.75,13/12/2019
Delivery Units,Adults and Health,Other Services,1000012202,D.A. Languages Ltd,22.36,16/12/2019
Delivery Units,Adults and Health,Other Services,1000019901,D.A. Languages Ltd,44.00,16/12/2019
Delivery Units,Adults and Health,Transport Hire Charges,60145341,BRENT COURIERS LIMITED,200.00,11/12/2019
Delivery Units,Adults and Health,Transport Hire Charges,60145408,BRENT COURIERS LIMITED,75.00,11/12/2019
Delivery Units,Adults and Health,Transport Hire Charges,1000138601,M1 EXPRESS CAR SERVICES,90.00,30/12/2019
Delivery Units,Adults and Health,Translation Exp / Interpret,1000010501,D.A. Languages Ltd,27.00,13/12/2019
Delivery Units,Adults and Health,Translation Exp / Interpret,1000011301,D.A. Languages Ltd,27.00,13/12/2019
Delivery Units,Adults and Health,Translation Exp / Interpret,1000011601,D.A. Languages Ltd,22.00,13/12/2019
Delivery Units,Adults and Health,Translation Exp / Interpret,1000012701,D.A. Languages Ltd,33.00,13/12/2019
Delivery Units,Adults and Health,Translation Exp / Interpret,1000018201,D.A. Languages Ltd,33.75,16/12/2019
Delivery Units,Adults and Health,Training,60145115,MICHAEL MANDELSTAM LTD,850.00,09/12/2019
Delivery Units,Adults and Health,Training,60144760,HUNTERSJOY LTD,750.00,05/12/2019
Delivery Units,Adults and Health,Training,60145370,FRONTLINE TRAINING,850.00,11/12/2019
Delivery Units,Adults and Health,Training,1000107602,FRONTLINE TRAINING,850.00,24/12/2019
Delivery Units,Adults and Health,Training,1000123802,Brunel University London,"9,250.00",24/12/2019
Delivery Units,Adults and Health,Other Transfer Payments to Soc,60138744,HAS Technology Ltd,"5,258.53",11/12/2019
Delivery Units,Adults and Health,Other Transfer Payments to Soc,60143133,HAS Technology Ltd,"5,333.64",24/12/2019
Delivery Units,Adults and Health,Other Services,60145094,REDWOOD EDUCATION & SKILLS LTD,350.00,09/12/2019
Delivery Units,Adults and Health,Other Services,60141430,HAS Technology Ltd,"1,389.75",17/12/2019
Delivery Units,Adults and Health,Other Services,60143103,HAS Technology Ltd,"1,389.75",24/12/2019
Delivery Units,Adults and Health,Other Services,60145218,HAS Technology Ltd,"1,389.75",09/12/2019
Delivery Units,Adults and Health,Other Transfer Payments to Soc,60145009,THOMPSON SOLICITORS,291.67,17/12/2019
Delivery Units,Adults and Health,Transport Hire Charges,60142695,Mott MacDonald Ltd/Cambridge Education,366.70,05/12/2019
Delivery Units,Adults and Health,Translation Exp / Interpret,1000010001,D.A. Languages Ltd,41.60,13/12/2019
Delivery Units,Adults and Health,Translation Exp / Interpret,1000010701,D.A. Languages Ltd,22.00,13/12/2019
Delivery Units,Adults and Health,Translation Exp / Interpret,1000011401,D.A. Languages Ltd,33.00,13/12/2019
Delivery Units,Adults and Health,Translation Exp / Interpret,1000011801,D.A. Languages Ltd,5.72,13/12/2019
Delivery Units,Adults and Health,Translation Exp / Interpret,1000013101,D.A. Languages Ltd,44.00,13/12/2019
Delivery Units,Adults and Health,Translation Exp / Interpret,1000014401,D.A. Languages Ltd,54.00,13/12/2019
Delivery Units,Adults and Health,Translation Exp / Interpret,1000015201,D.A. Languages Ltd,22.00,13/12/2019
Delivery Units,Adults and Health,Other Services,1000046801,ANGEL SPRINGS LTD,50.66,18/12/2019
Delivery Units,Adults and Health,Other Transfer Payments to Soc,1000086501,M1 EXPRESS CAR SERVICES,20.00,24/12/2019
Delivery Units,Adults and Health,Transport Hire Charges,60142685,Mott MacDonald Ltd/Cambridge Education,45.00,05/12/2019
Delivery Units,Adults and Health,Translation Exp / Interpret,60134184,D.A. Languages Ltd,33.00,12/12/2019
Delivery Units,Adults and Health,Translation Exp / Interpret,1000010801,D.A. Languages Ltd,2.08,13/12/2019
Delivery Units,Adults and Health,Translation Exp / Interpret,1000012101,D.A. Languages Ltd,22.00,13/12/2019
Delivery Units,Adults and Health,Translation Exp / Interpret,1000012401,D.A. Languages Ltd,40.50,13/12/2019
Delivery Units,Adults and Health,Translation Exp / Interpret,1000015101,D.A. Languages Ltd,27.00,13/12/2019
Delivery Units,Adults and Health,Stationery,60144049,Staples UK Ltd,249.00,12/12/2019
Delivery Units,Adults and Health,Other Transfer Payments to Soc,60144585,LONDON BOROUGH OF HARINGEY,"47,278.48",06/12/2019
Delivery Units,Adults and Health,Other Services,1000013401,Run Healthcare Ltd,"2,166.75",16/12/2019
Delivery Units,Adults and Health,Other Services,1000049501,Run Healthcare Ltd,"4,115.00",20/12/2019
Delivery Units,Adults and Health,Other Transfer Payments to Soc,60144284,Aisa Medical Ltd,176.07,02/12/2019
Delivery Units,Adults and Health,Other Transfer Payments to Soc,60144307,Aisa Medical Ltd,174.96,02/12/2019
Delivery Units,Adults and Health,Other Transfer Payments to Soc,60144308,Aisa Medical Ltd,173.37,02/12/2019
Delivery Units,Adults and Health,Other Transfer Payments to Soc,60144337,Aisa Medical Ltd,180.26,02/12/2019
Delivery Units,Adults and Health,Other Transfer Payments to Soc,60144338,Aisa Medical Ltd,173.37,02/12/2019
Delivery Units,Adults and Health,Other Transfer Payments to Soc,60144343,Aisa Medical Ltd,173.37,02/12/2019
Delivery Units,Adults and Health,Other Transfer Payments to Soc,60144354,Aisa Medical Ltd,173.37,02/12/2019
Delivery Units,Adults and Health,Other Transfer Payments to Soc,60144375,Aisa Medical Ltd,176.17,02/12/2019
Delivery Units,Adults and Health,Other Transfer Payments to Soc,60144379,Aisa Medical Ltd,173.37,02/12/2019
Delivery Units,Adults and Health,Other Transfer Payments to Soc,60144384,Aisa Medical Ltd,173.37,02/12/2019
Delivery Units,Adults and Health,Other Transfer Payments to Soc,60145380,Bartek Zaniewski Ltd,"2,123.20",10/12/2019
Delivery Units,Adults and Health,Translation Exp / Interpret,1000014501,D.A. Languages Ltd,22.00,13/12/2019
Delivery Units,Adults and Health,Other Services,1000135202,Eloges Social Work Ltd,"1,750.00",27/12/2019
Delivery Units,Adults and Health,Other Services,60143854,Recruitment Team Nine Limited,270.00,18/12/2019
Delivery Units,Adults and Health,Other Services,60143935,Recruitment Team Nine Limited,270.00,18/12/2019
Delivery Units,Adults and Health,Other Services,60143947,Recruitment Team Nine Limited,270.00,18/12/2019
Delivery Units,Adults and Health,Other Services,60144008,Recruitment Team Nine Limited,270.00,18/12/2019
Delivery Units,Adults and Health,Other Services,1000154802,SSR Medical Services Ltd,180.00,31/12/2019
Delivery Units,Adults and Health,Other Services,1000120002,AGE CONCERN,50.00,27/12/2019
Delivery Units,Adults and Health,Other Agencies - Third Party P,90214749,NIGHTINGALE HOUSE,"2,857.11",04/12/2019
Delivery Units,Adults and Health,Other Agencies - Third Party P,90214752,NIGHTINGALE HOUSE,"2,359.07",04/12/2019
Delivery Units,Adults and Health,Other Agencies - Third Party P,90219438,JEWISH CARE,"2,410.28",20/12/2019
Delivery Units,Adults and Health,Other Agencies - Third Party P,90219447,JEWISH CARE,"2,410.28",20/12/2019
Delivery Units,Adults and Health,Other Agencies - Third Party P,90219451,JEWISH CARE,"2,410.28",20/12/2019
Delivery Units,Adults and Health,Other Agencies - Third Party P,90219469,JEWISH CARE,"1,608.54",20/12/2019
Delivery Units,Adults and Health,Other Agencies - Third Party P,90219470,JEWISH CARE,"2,649.36",20/12/2019
Delivery Units,Adults and Health,Other Agencies - Third Party P,90219473,JEWISH CARE,"2,410.28",20/12/2019
Delivery Units,Adults and Health,Other Agencies - Third Party P,90219479,JEWISH CARE,"-4,070.64",20/12/2019
Delivery Units,Adults and Health,Other Agencies - Third Party P,90219495,JEWISH CARE,"2,649.36",20/12/2019
Delivery Units,Adults and Health,Other Agencies - Third Party P,90219497,JEWISH CARE,"2,649.36",20/12/2019
Delivery Units,Adults and Health,Other Agencies - Third Party P,90219498,JEWISH CARE,"2,410.28",20/12/2019
Delivery Units,Adults and Health,Other Agencies - Third Party P,90219500,JEWISH CARE,"2,649.36",20/12/2019
Delivery Units,Adults and Health,Other Agencies - Third Party P,90219519,JEWISH CARE,"2,380.92",20/12/2019
Delivery Units,Adults and Health,Other Agencies - Third Party P,90219524,JEWISH CARE,"2,410.28",20/12/2019
Delivery Units,Adults and Health,Other Agencies - Third Party P,90219526,JEWISH CARE,"1,040.82",20/12/2019
Delivery Units,Adults and Health,Other Agencies - Third Party P,90219545,JEWISH CARE,"2,410.28",20/12/2019
Delivery Units,Adults and Health,Other Agencies - Third Party P,90219546,JEWISH CARE,"2,410.28",20/12/2019
Delivery Units,Adults and Health,Other Agencies - Third Party P,90219556,JEWISH CARE,"3,489.64",20/12/2019
Delivery Units,Adults and Health,Other Agencies - Third Party P,90219558,JEWISH CARE,"2,410.28",20/12/2019
Delivery Units,Adults and Health,Other Agencies - Third Party P,90219565,JEWISH CARE,774.73,20/12/2019
Delivery Units,Adults and Health,Other Agencies - Third Party P,90219566,JEWISH CARE,"2,649.36",20/12/2019
Delivery Units,Adults and Health,Other Agencies - Third Party P,90219570,JEWISH CARE,"2,410.28",20/12/2019
Delivery Units,Adults and Health,Other Agencies - Third Party P,90219572,JEWISH CARE,"2,410.28",20/12/2019
Delivery Units,Adults and Health,Other Agencies - Third Party P,90219574,JEWISH CARE,"3,690.18",20/12/2019
Delivery Units,Adults and Health,Other Agencies - Third Party P,90219575,JEWISH CARE,"2,238.12",20/12/2019
Delivery Units,Adults and Health,Other Agencies - Third Party P,90214629,FERNBANK NURSING HOME.,"3,428.40",02/12/2019
Delivery Units,Adults and Health,Other Agencies - Third Party P,90216981,FERNBANK NURSING HOME.,"4,221.30",11/12/2019
Delivery Units,Adults and Health,Other Agencies - Third Party P,90216959,CEDARS NURSING HOME,"4,071.43",11/12/2019
Delivery Units,Adults and Health,Other Agencies - Third Party P,90216960,CEDARS NURSING HOME,"4,207.14",11/12/2019
Delivery Units,Adults and Health,Other Agencies - Third Party P,90216961,CEDARS NURSING HOME,"2,869.29",11/12/2019
Delivery Units,Adults and Health,Other Agencies - Third Party P,90216962,CEDARS NURSING HOME,"2,964.93",11/12/2019
Delivery Units,Adults and Health,Other Agencies - Third Party P,90216963,CEDARS NURSING HOME,"2,427.17",11/12/2019
Delivery Units,Adults and Health,Other Agencies - Third Party P,90216964,CEDARS NURSING HOME,"2,508.08",11/12/2019
Delivery Units,Adults and Health,Other Agencies - Third Party P,90216965,CEDARS NURSING HOME,"4,071.43",11/12/2019
Delivery Units,Adults and Health,Other Agencies - Third Party P,90216966,CEDARS NURSING HOME,"4,207.14",11/12/2019
Delivery Units,Adults and Health,Other Agencies - Third Party P,90216967,CEDARS NURSING HOME,"3,034.29",11/12/2019
Delivery Units,Adults and Health,Other Agencies - Third Party P,90216970,CEDARS NURSING HOME,"2,571.43",11/12/2019
Delivery Units,Adults and Health,Other Agencies - Third Party P,90216971,CEDARS NURSING HOME,"2,657.14",11/12/2019
Delivery Units,Adults and Health,Other Agencies - Third Party P,90216972,CEDARS NURSING HOME,"4,285.71",11/12/2019
Delivery Units,Adults and Health,Other Agencies - Third Party P,90216973,CEDARS NURSING HOME,"4,428.57",11/12/2019
Delivery Units,Adults and Health,Other Agencies - Third Party P,90221256,CEDARS NURSING HOME,"4,207.14",31/12/2019
Delivery Units,Adults and Health,Other Agencies - Third Party P,90221257,CEDARS NURSING HOME,"2,964.93",31/12/2019
Delivery Units,Adults and Health,Other Agencies - Third Party P,90221258,CEDARS NURSING HOME,"2,508.08",31/12/2019
Delivery Units,Adults and Health,Other Agencies - Third Party P,90221259,CEDARS NURSING HOME,"4,207.14",31/12/2019
Delivery Units,Adults and Health,Other Agencies - Third Party P,90221260,CEDARS NURSING HOME,"3,919.29",31/12/2019
Delivery Units,Adults and Health,Other Agencies - Third Party P,90221262,CEDARS NURSING HOME,"2,657.14",31/12/2019
Delivery Units,Adults and Health,Other Agencies - Third Party P,90221263,CEDARS NURSING HOME,"4,428.57",31/12/2019
Delivery Units,Adults and Health,Other Agencies - Third Party P,90217320,BUPA NURSING HOMES LTD - ARKLEY,"2,318.76",12/12/2019
Delivery Units,Adults and Health,Other Agencies - Third Party P,90217321,BUPA NURSING HOMES LTD - ARKLEY,"2,318.76",12/12/2019
Delivery Units,Adults and Health,Other Agencies - Third Party P,90217322,BUPA NURSING HOMES LTD - ARKLEY,"2,318.76",12/12/2019
Delivery Units,Adults and Health,Other Agencies - Third Party P,90217324,BUPA NURSING HOMES LTD - ARKLEY,"2,318.76",12/12/2019
Delivery Units,Adults and Health,Other Agencies - Third Party P,90217325,BUPA NURSING HOMES LTD - ARKLEY,"4,400.00",12/12/2019
Delivery Units,Adults and Health,Other Agencies - Third Party P,90217327,BUPA NURSING HOMES LTD - ARKLEY,"2,243.20",12/12/2019
Delivery Units,Adults and Health,Other Agencies - Third Party P,90217328,BUPA NURSING HOMES LTD - ARKLEY,953.65,12/12/2019
Delivery Units,Adults and Health,Other Agencies - Third Party P,90217716,BUPA NURSING HOMES LTD - ARKLEY,"3,800.00",16/12/2019
Delivery Units,Adults and Health,Other Agencies - Third Party P,90217722,BUPA NURSING HOMES LTD - ARKLEY,135.71,16/12/2019
Delivery Units,Adults and Health,Other Agencies - Third Party P,90217723,BUPA NURSING HOMES LTD - ARKLEY,"3,800.00",16/12/2019
Delivery Units,Adults and Health,Other Agencies - Third Party P,90217724,BUPA NURSING HOMES LTD - ARKLEY,"3,800.00",16/12/2019
Delivery Units,Adults and Health,Other Agencies - Third Party P,90217725,BUPA NURSING HOMES LTD - ARKLEY,"3,800.00",16/12/2019
Delivery Units,Adults and Health,Other Agencies - Third Party P,90217726,BUPA NURSING HOMES LTD - ARKLEY,"3,800.00",16/12/2019
Delivery Units,Adults and Health,Other Agencies - Third Party P,90217727,BUPA NURSING HOMES LTD - ARKLEY,"3,800.00",16/12/2019
Delivery Units,Adults and Health,Other Agencies - Third Party P,90217728,BUPA NURSING HOMES LTD - ARKLEY,"3,800.00",16/12/2019
Delivery Units,Adults and Health,Other Agencies - Third Party P,90217729,BUPA NURSING HOMES LTD - ARKLEY,"3,800.00",16/12/2019
Delivery Units,Adults and Health,Other Agencies - Third Party P,90217730,BUPA NURSING HOMES LTD - ARKLEY,"3,800.00",16/12/2019
Delivery Units,Adults and Health,Other Agencies - Third Party P,90219385,BUPA NURSING HOMES LTD - ARKLEY,"2,792.86",20/12/2019
Delivery Units,Adults and Health,Other Agencies - Third Party P,90219386,BUPA NURSING HOMES LTD - ARKLEY,"3,400.00",20/12/2019
Delivery Units,Adults and Health,Other Agencies - Third Party P,90219387,BUPA NURSING HOMES LTD - ARKLEY,"3,400.00",20/12/2019
Delivery Units,Adults and Health,Other Agencies - Third Party P,90219388,BUPA NURSING HOMES LTD - ARKLEY,"3,400.00",20/12/2019
Delivery Units,Adults and Health,Other Agencies - Third Party P,90219389,BUPA NURSING HOMES LTD - ARKLEY,"3,737.76",20/12/2019
Delivery Units,Adults and Health,Other Agencies - Third Party P,90219390,BUPA NURSING HOMES LTD - ARKLEY,"3,604.27",20/12/2019
Delivery Units,Adults and Health,Other Agencies - Third Party P,90214688,AGUDAS ISRAEL HOUSING ASSCTN LTD,"2,648.57",10/12/2019
Delivery Units,Adults and Health,Other Agencies - Third Party P,90217353,WESTMINSTER HEALTH CARE LTD,"2,508.08",18/12/2019
Delivery Units,Adults and Health,Other Agencies - Third Party P,90217355,WESTMINSTER HEALTH CARE LTD,"5,023.95",18/12/2019
Delivery Units,Adults and Health,Other Agencies - Third Party P,90217356,WESTMINSTER HEALTH CARE LTD,"2,878.57",18/12/2019
Delivery Units,Adults and Health,Other Agencies - Third Party P,90217357,METHODIST HOMES FOR THE AGED,"2,400.00",12/12/2019
Delivery Units,Adults and Health,Other Agencies - Third Party P,90217358,METHODIST HOMES FOR THE AGED,"2,400.00",12/12/2019
Delivery Units,Adults and Health,Other Agencies - Third Party P,90217359,METHODIST HOMES FOR THE AGED,"2,400.00",12/12/2019
Delivery Units,Adults and Health,Other Agencies - Third Party P,90219437,HENRY NIHILL HOUSE,"2,265.36",20/12/2019
Delivery Units,Adults and Health,Other Agencies - Third Party P,90219449,HENRY NIHILL HOUSE,"2,265.36",20/12/2019
Delivery Units,Adults and Health,Other Agencies - Third Party P,90219462,HENRY NIHILL HOUSE,"2,265.36",20/12/2019
Delivery Units,Adults and Health,Other Agencies - Third Party P,90219463,HENRY NIHILL HOUSE,"2,265.36",20/12/2019
Delivery Units,Adults and Health,Other Agencies - Third Party P,90219466,HENRY NIHILL HOUSE,"2,265.36",20/12/2019
Delivery Units,Adults and Health,Other Agencies - Third Party P,90219489,HENRY NIHILL HOUSE,"2,265.36",20/12/2019
Delivery Units,Adults and Health,Other Agencies - Third Party P,90218661,THE LEONARD CHESHIRE FOUNDATION,"6,420.00",19/12/2019
Delivery Units,Adults and Health,Other Agencies - Third Party P,90220494,LIFESTYLE CARE PLC,"3,985.71",24/12/2019
Delivery Units,Adults and Health,Other Agencies - Third Party P,90220495,LIFESTYLE CARE PLC,"3,985.71",24/12/2019
Delivery Units,Adults and Health,Other Agencies - Third Party P,90220496,LIFESTYLE CARE PLC,"3,252.52",24/12/2019
Delivery Units,Adults and Health,Other Agencies - Third Party P,90220497,LIFESTYLE CARE PLC,"3,147.60",24/12/2019
Delivery Units,Adults and Health,Other Agencies - Third Party P,90220498,LIFESTYLE CARE PLC,"3,252.52",24/12/2019
Delivery Units,Adults and Health,Other Agencies - Third Party P,90220499,LIFESTYLE CARE PLC,"2,856.21",24/12/2019
Delivery Units,Adults and Health,Other Agencies - Third Party P,90220500,LIFESTYLE CARE PLC,"3,252.52",24/12/2019
Delivery Units,Adults and Health,Other Agencies - Third Party P,90220501,LIFESTYLE CARE PLC,"3,147.60",24/12/2019
Delivery Units,Adults and Health,Other Agencies - Third Party P,90221893,LIFESTYLE CARE PLC,"4,511.56",31/12/2019
Delivery Units,Adults and Health,Other Agencies - Third Party P,90221894,LIFESTYLE CARE PLC,"3,252.52",31/12/2019
Delivery Units,Adults and Health,Other Agencies - Third Party P,90221895,LIFESTYLE CARE PLC,"2,856.21",31/12/2019
Delivery Units,Adults and Health,Other Agencies - Third Party P,90221299,CARETECH COMMUNITY SERVICES LTD,"4,975.59",31/12/2019
Delivery Units,Adults and Health,Other Agencies - Third Party P,90221292,SONESTA NURSING HOME LTD.,"2,878.57",31/12/2019
Delivery Units,Adults and Health,Other Agencies - Third Party P,90221293,SONESTA NURSING HOME LTD.,"2,508.08",31/12/2019
Delivery Units,Adults and Health,Other Agencies - Third Party P,90221295,SONESTA NURSING HOME LTD.,"2,397.72",31/12/2019
Delivery Units,Adults and Health,Other Agencies - Third Party P,90221298,SONESTA NURSING HOME LTD.,"2,399.58",31/12/2019
Delivery Units,Adults and Health,Other Agencies - Third Party P,90221054,MEERA NURSING HOME LIMITED,"3,100.00",31/12/2019
Delivery Units,Adults and Health,Other Agencies - Third Party P,90221056,MEERA NURSING HOME LIMITED,"3,506.72",31/12/2019
Delivery Units,Adults and Health,Other Agencies - Third Party P,90221057,MEERA NURSING HOME LIMITED,"2,445.68",31/12/2019
Delivery Units,Adults and Health,Other Agencies - Third Party P,90221058,MEERA NURSING HOME LIMITED,"3,764.29",31/12/2019
Delivery Units,Adults and Health,Other Agencies - Third Party P,90221059,MEERA NURSING HOME LIMITED,"2,445.68",31/12/2019
Delivery Units,Adults and Health,Other Agencies - Third Party P,90221065,MEERA NURSING HOME LIMITED,"3,506.72",31/12/2019
Delivery Units,Adults and Health,Other Agencies - Third Party P,90219374,NEWCENTURY CARE LTD,"3,400.00",20/12/2019
Delivery Units,Adults and Health,Other Agencies - Third Party P,90219375,NEWCENTURY CARE LTD,"3,868.49",20/12/2019
Delivery Units,Adults and Health,Other Agencies - Third Party P,90219376,NEWCENTURY CARE LTD,"4,460.10",20/12/2019
Delivery Units,Adults and Health,Other Agencies - Third Party P,90219377,NEWCENTURY CARE LTD,"4,096.03",20/12/2019
Delivery Units,Adults and Health,Other Agencies - Third Party P,90219378,NEWCENTURY CARE LTD,"3,578.29",20/12/2019
Delivery Units,Adults and Health,Other Agencies - Third Party P,90219379,NEWCENTURY CARE LTD,"3,764.29",20/12/2019
Delivery Units,Adults and Health,Other Agencies - Third Party P,90219380,NEWCENTURY CARE LTD,"1,257.14",20/12/2019
Delivery Units,Adults and Health,Other Agencies - Third Party P,90217330,BUPA CARE HOMES,"2,480.70",12/12/2019
Delivery Units,Adults and Health,Other Agencies - Third Party P,90217341,BUPA CARE HOMES,"2,322.17",12/12/2019
Delivery Units,Adults and Health,Other Agencies - Third Party P,90217343,BUPA CARE HOMES,"3,107.14",12/12/2019
Delivery Units,Adults and Health,Other Agencies - Third Party P,90217344,BUPA CARE HOMES,"2,335.71",12/12/2019
Delivery Units,Adults and Health,Other Agencies - Third Party P,90217345,BUPA CARE HOMES,"2,322.17",12/12/2019
Delivery Units,Adults and Health,Other Agencies - Third Party P,90217346,BUPA CARE HOMES,"2,427.17",12/12/2019
Delivery Units,Adults and Health,Other Agencies - Third Party P,90217347,BUPA CARE HOMES,"2,427.17",12/12/2019
Delivery Units,Adults and Health,Other Agencies - Third Party P,90217348,BUPA CARE HOMES,"2,322.17",12/12/2019
Delivery Units,Adults and Health,Other Agencies - Third Party P,90217349,BUPA CARE HOMES,262.12,12/12/2019
Delivery Units,Adults and Health,Other Agencies - Third Party P,90217350,BUPA CARE HOMES,"2,322.17",12/12/2019
Delivery Units,Adults and Health,Other Agencies - Third Party P,90220974,ASPEN VILLAGES LTD,"2,657.14",31/12/2019
Delivery Units,Adults and Health,Other Agencies - Third Party P,90218258,FOUR SEASONS HEALTH CARE,736.07,17/12/2019
Delivery Units,Adults and Health,Other Agencies - Third Party P,90218259,FOUR SEASONS HEALTH CARE,"1,366.46",17/12/2019
Delivery Units,Adults and Health,Other Agencies - Third Party P,90217333,BUPA CARE HOMES,"3,441.51",12/12/2019
Delivery Units,Adults and Health,Other Agencies - Third Party P,90217334,BUPA CARE HOMES,"2,484.39",12/12/2019
Delivery Units,Adults and Health,Other Agencies - Third Party P,90217335,BUPA CARE HOMES,"3,499.20",12/12/2019
Delivery Units,Adults and Health,Other Agencies - Third Party P,90217337,BUPA CARE HOMES,"3,302.36",12/12/2019
Delivery Units,Adults and Health,Other Agencies - Third Party P,90217339,BUPA CARE HOMES,"1,602.69",12/12/2019
Delivery Units,Adults and Health,Other Agencies - Third Party P,90214754,SAGE NURSING HOME,"4,071.43",09/12/2019
Delivery Units,Adults and Health,Other Agencies - Third Party P,90214756,SAGE NURSING HOME,"2,427.17",09/12/2019
Delivery Units,Adults and Health,Other Agencies - Third Party P,90214758,SAGE NURSING HOME,"2,698.37",09/12/2019
Delivery Units,Adults and Health,Other Agencies - Third Party P,90214759,SAGE NURSING HOME,"2,436.39",09/12/2019
Delivery Units,Adults and Health,Other Agencies - Third Party P,90214761,SAGE NURSING HOME,"2,085.00",09/12/2019
Delivery Units,Adults and Health,Other Agencies - Third Party P,90214763,SAGE NURSING HOME,"4,071.43",09/12/2019
Delivery Units,Adults and Health,Other Agencies - Third Party P,90217731,SAGE NURSING HOME,"4,207.14",19/12/2019
Delivery Units,Adults and Health,Other Agencies - Third Party P,90217733,SAGE NURSING HOME,"2,508.08",19/12/2019
Delivery Units,Adults and Health,Other Agencies - Third Party P,90217735,SAGE NURSING HOME,"2,788.32",19/12/2019
Delivery Units,Adults and Health,Other Agencies - Third Party P,90217736,SAGE NURSING HOME,"2,517.60",19/12/2019
Delivery Units,Adults and Health,Other Agencies - Third Party P,90217739,SAGE NURSING HOME,"4,207.14",19/12/2019
Delivery Units,Adults and Health,Other Agencies - Third Party P,90221873,M D HOMES,"3,072.32",31/12/2019
Delivery Units,Adults and Health,Other Agencies - Third Party P,90220954,ST VINCENTS NURSING HOME,"1,783.16",31/12/2019
Delivery Units,Adults and Health,Other Agencies - Third Party P,90220956,ST VINCENTS NURSING HOME,"6,642.86",31/12/2019
Delivery Units,Adults and Health,Other Agencies - Third Party P,90217721,THE CONIFERS,"2,671.16",16/12/2019
Delivery Units,Adults and Health,Other Agencies - Third Party P,90217712,APPLE TREE COURT CARE HOME,"5,528.57",16/12/2019
Delivery Units,Adults and Health,Other Agencies - Third Party P,90217713,APPLE TREE COURT CARE HOME,"3,097.76",16/12/2019
Delivery Units,Adults and Health,Other Agencies - Third Party P,90218399,APPLE TREE COURT CARE HOME,"2,760.20",19/12/2019
Delivery Units,Adults and Health,Other Agencies - Third Party P,90218401,APPLE TREE COURT CARE HOME,"4,167.29",19/12/2019
Delivery Units,Adults and Health,Other Agencies - Third Party P,90218405,APPLE TREE COURT CARE HOME,"4,871.43",19/12/2019
Delivery Units,Adults and Health,Other Agencies - Third Party P,90218406,APPLE TREE COURT CARE HOME,"4,428.57",19/12/2019
Delivery Units,Adults and Health,Other Agencies - Third Party P,90218407,APPLE TREE COURT CARE HOME,"3,985.71",19/12/2019
Delivery Units,Adults and Health,Other Agencies - Third Party P,90220502,APPLE TREE COURT CARE HOME,"3,916.81",24/12/2019
Delivery Units,Adults and Health,Other Agencies - Third Party P,90220503,APPLE TREE COURT CARE HOME,"2,760.20",24/12/2019
Delivery Units,Adults and Health,Other Agencies - Third Party P,90220504,APPLE TREE COURT CARE HOME,"4,674.90",24/12/2019
Delivery Units,Adults and Health,Other Agencies - Third Party P,90215090,AUTUMN GARDENS,"4,800.00",06/12/2019
Delivery Units,Adults and Health,Other Agencies - Third Party P,90215094,AUTUMN GARDENS,"3,440.00",06/12/2019
Delivery Units,Adults and Health,Other Agencies - Third Party P,90215098,AUTUMN GARDENS,"4,800.00",06/12/2019
Delivery Units,Adults and Health,Other Agencies - Third Party P,90219355,SUNRISE SENIOR LIVING,"6,176.40",20/12/2019
Delivery Units,Adults and Health,Other Agencies - Third Party P,90214683,ABBEY RAVENSCROFT PARK NURSING HOME,"2,678.57",04/12/2019
Delivery Units,Adults and Health,Other Agencies - Third Party P,90221224,ABBEY RAVENSCROFT PARK NURSING HOME,"3,321.43",31/12/2019
Delivery Units,Adults and Health,Other Agencies - Third Party P,90221225,ABBEY RAVENSCROFT PARK NURSING HOME,"3,321.43",31/12/2019
Delivery Units,Adults and Health,Other Agencies - Third Party P,90221228,ABBEY RAVENSCROFT PARK NURSING HOME,"2,788.32",31/12/2019
Delivery Units,Adults and Health,Other Agencies - Third Party P,90221230,ABBEY RAVENSCROFT PARK NURSING HOME,"2,788.32",31/12/2019
Delivery Units,Adults and Health,Other Agencies - Third Party P,90221231,ABBEY RAVENSCROFT PARK NURSING HOME,"3,321.43",31/12/2019
Delivery Units,Adults and Health,Other Agencies - Third Party P,90221233,ABBEY RAVENSCROFT PARK NURSING HOME,"2,788.32",31/12/2019
Delivery Units,Adults and Health,Other Agencies - Third Party P,90221235,ABBEY RAVENSCROFT PARK NURSING HOME,"3,321.43",31/12/2019
Delivery Units,Adults and Health,Other Agencies - Third Party P,90221236,ABBEY RAVENSCROFT PARK NURSING HOME,"3,321.43",31/12/2019
Delivery Units,Adults and Health,Other Agencies - Third Party P,90221237,ABBEY RAVENSCROFT PARK NURSING HOME,"4,995.43",31/12/2019
Delivery Units,Adults and Health,Other Agencies - Third Party P,90221238,ABBEY RAVENSCROFT PARK NURSING HOME,"2,788.32",31/12/2019
Delivery Units,Adults and Health,Other Agencies - Third Party P,90221241,ABBEY RAVENSCROFT PARK NURSING HOME,"3,764.29",31/12/2019
Delivery Units,Adults and Health,Other Agencies - Third Party P,90221242,ABBEY RAVENSCROFT PARK NURSING HOME,"3,542.86",31/12/2019
Delivery Units,Adults and Health,Other Agencies - Third Party P,90221243,ABBEY RAVENSCROFT PARK NURSING HOME,"3,321.43",31/12/2019
Delivery Units,Adults and Health,Other Agencies - Third Party P,90221245,ABBEY RAVENSCROFT PARK NURSING HOME,"3,764.29",31/12/2019
Delivery Units,Adults and Health,Other Agencies - Third Party P,90220941,CARLTON COURT (TLC GROUP),"4,428.57",31/12/2019
Delivery Units,Adults and Health,Other Agencies - Third Party P,90220942,CARLTON COURT (TLC GROUP),"3,736.61",31/12/2019
Delivery Units,Adults and Health,Other Agencies - Third Party P,90220946,CARLTON COURT (TLC GROUP),"2,448.78",31/12/2019
Delivery Units,Adults and Health,Other Agencies - Third Party P,90220950,CARLTON COURT (TLC GROUP),"4,428.57",31/12/2019
Delivery Units,Adults and Health,Other Agencies - Third Party P,90220952,CARLTON COURT (TLC GROUP),"3,764.29",31/12/2019
Delivery Units,Adults and Health,Other Agencies - Third Party P,90221324,HUSKARDS NEW CARE LTD,"2,397.72",31/12/2019
Delivery Units,Adults and Health,Other Agencies - Third Party P,90214644,ASHTON LODGE CARE CENTRE,"3,414.69",02/12/2019
Delivery Units,Adults and Health,Other Agencies - Third Party P,90214645,ASHTON LODGE CARE CENTRE,"3,304.54",02/12/2019
Delivery Units,Adults and Health,Other Agencies - Third Party P,90214646,ASHTON LODGE CARE CENTRE,"3,414.69",02/12/2019
Delivery Units,Adults and Health,Other Agencies - Third Party P,90214647,ASHTON LODGE CARE CENTRE,"3,304.54",02/12/2019
Delivery Units,Adults and Health,Other Agencies - Third Party P,90218252,ASHTON LODGE CARE CENTRE,648.66,17/12/2019
Delivery Units,Adults and Health,Other Agencies - Third Party P,90218262,ASHTON LODGE CARE CENTRE,9.00,17/12/2019
Delivery Units,Adults and Health,Other Agencies - Third Party P,90218263,ASHTON LODGE CARE CENTRE,649.80,17/12/2019
Delivery Units,Adults and Health,Other Agencies - Third Party P,90220977,ASHTON LODGE CARE CENTRE,"3,779.34",31/12/2019
Delivery Units,Adults and Health,Other Agencies - Third Party P,90220979,ASHTON LODGE CARE CENTRE,"3,158.59",31/12/2019
Delivery Units,Adults and Health,Other Agencies - Third Party P,90220980,ASHTON LODGE CARE CENTRE,"5,245.38",31/12/2019
Delivery Units,Adults and Health,Other Agencies - Third Party P,90220981,ASHTON LODGE CARE CENTRE,"4,436.37",31/12/2019
Delivery Units,Adults and Health,Other Agencies - Third Party P,90221004,ASHTON LODGE CARE CENTRE,"3,642.32",31/12/2019
Delivery Units,Adults and Health,Other Agencies - Third Party P,90221005,ASHTON LODGE CARE CENTRE,"3,391.67",31/12/2019
Delivery Units,Adults and Health,Other Agencies - Third Party P,90221006,ASHTON LODGE CARE CENTRE,"3,605.17",31/12/2019
Delivery Units,Adults and Health,Other Agencies - Third Party P,90221007,ASHTON LODGE CARE CENTRE,"3,159.70",31/12/2019
Delivery Units,Adults and Health,Other Agencies - Third Party P,90221008,ASHTON LODGE CARE CENTRE,"2,923.96",31/12/2019
Delivery Units,Adults and Health,Other Agencies - Third Party P,90221009,ASHTON LODGE CARE CENTRE,"3,164.04",31/12/2019
Delivery Units,Adults and Health,Other Agencies - Third Party P,90221010,ASHTON LODGE CARE CENTRE,"3,541.79",31/12/2019
Delivery Units,Adults and Health,Other Agencies - Third Party P,90221011,ASHTON LODGE CARE CENTRE,"3,695.38",31/12/2019
Delivery Units,Adults and Health,Other Agencies - Third Party P,90221012,ASHTON LODGE CARE CENTRE,"4,359.66",31/12/2019
Delivery Units,Adults and Health,Other Agencies - Third Party P,90221013,ASHTON LODGE CARE CENTRE,"2,640.05",31/12/2019
Delivery Units,Adults and Health,Other Agencies - Third Party P,90221014,ASHTON LODGE CARE CENTRE,"3,414.69",31/12/2019
Delivery Units,Adults and Health,Other Agencies - Third Party P,90221015,ASHTON LODGE CARE CENTRE,"2,923.96",31/12/2019
Delivery Units,Adults and Health,Other Agencies - Third Party P,90221016,ASHTON LODGE CARE CENTRE,"2,925.69",31/12/2019
Delivery Units,Adults and Health,Other Agencies - Third Party P,90221017,ASHTON LODGE CARE CENTRE,"3,846.97",31/12/2019
Delivery Units,Adults and Health,Other Agencies - Third Party P,90221019,ASHTON LODGE CARE CENTRE,"3,695.38",31/12/2019
Delivery Units,Adults and Health,Other Agencies - Third Party P,90221020,ASHTON LODGE CARE CENTRE,"3,541.79",31/12/2019
Delivery Units,Adults and Health,Other Agencies - Third Party P,90221021,ASHTON LODGE CARE CENTRE,"3,018.60",31/12/2019
Delivery Units,Adults and Health,Other Agencies - Third Party P,90221030,ASHTON LODGE CARE CENTRE,"4,212.72",31/12/2019
Delivery Units,Adults and Health,Other Agencies - Third Party P,90221031,ASHTON LODGE CARE CENTRE,"3,164.04",31/12/2019
Delivery Units,Adults and Health,Other Agencies - Third Party P,90221870,WESTGATE HOUSE CARE CENTRE,"3,725.76",31/12/2019
Delivery Units,Adults and Health,Other Agencies - Third Party P,90221025,WILSMERE HOUSE CARE CENTRE,"4,979.35",31/12/2019
Delivery Units,Adults and Health,Other Agencies - Third Party P,90214641,Victoria Care Centre,"2,958.95",02/12/2019
Delivery Units,Adults and Health,Other Agencies - Third Party P,90215070,Victoria Care Centre,"2,863.50",06/12/2019
Delivery Units,Adults and Health,Other Agencies - Third Party P,90221222,Karuna Manor,"4,207.14",31/12/2019
Delivery Units,Adults and Health,Other Agencies - Third Party P,90221223,Karuna Manor,"4,392.43",31/12/2019
Delivery Units,Adults and Health,Other Agencies - Third Party P,90215063,St Anns Home-Little Sisters of the Poor,"2,343.56",06/12/2019
Delivery Units,Adults and Health,Other Agencies - Third Party P,90221864,Pinelodge Care Home,"2,655.55",31/12/2019
Delivery Units,Adults and Health,Other Agencies - Third Party P,90221282,Chiswick House,"3,321.34",31/12/2019
Delivery Units,Adults and Health,Other Agencies - Third Party P,90219384,Adara Healthcare Ltd,"3,400.00",20/12/2019
Delivery Units,Adults and Health,Other Agencies - Third Party P,90218645,Aarandale Manor Care Home,"2,129.79",19/12/2019
Delivery Units,Adults and Health,Other Agencies - Third Party P,90218646,Aarandale Manor Care Home,"4,428.57",19/12/2019
Delivery Units,Adults and Health,Other Agencies - Third Party P,90218647,Aarandale Manor Care Home,"3,741.92",19/12/2019
Delivery Units,Adults and Health,Other Agencies - Third Party P,90218648,Aarandale Manor Care Home,"2,570.56",19/12/2019
Delivery Units,Adults and Health,Other Agencies - Third Party P,90221852,Contemplation Homes,"3,409.78",31/12/2019
Delivery Units,Adults and Health,Other Agencies - Third Party P,90221863,Lansglade Homes Limited,"2,723.35",31/12/2019
Delivery Units,Adults and Health,Other Agencies - Third Party P,90220487,HC-One Oval LTD,"2,447.98",24/12/2019
Delivery Units,Adults and Health,Other Agencies - Third Party P,90220506,HC-One Oval LTD,-79.36,24/12/2019
Delivery Units,Adults and Health,Other Agencies - Third Party P,90220507,HC-One Oval LTD,"2,447.98",24/12/2019
Delivery Units,Adults and Health,Other Agencies - Third Party P,90220508,HC-One Oval LTD,-79.36,24/12/2019
Delivery Units,Adults and Health,Other Agencies - Third Party P,90220509,HC-One Oval LTD,"2,369.01",24/12/2019
Delivery Units,Adults and Health,Other Agencies - Third Party P,90220510,HC-One Oval LTD,-76.80,24/12/2019
Delivery Units,Adults and Health,Other Agencies - Third Party P,90220511,HC-One Oval LTD,"2,447.98",24/12/2019
Delivery Units,Adults and Health,Other Agencies - Third Party P,90220512,HC-One Oval LTD,-79.36,24/12/2019
Delivery Units,Adults and Health,Other Agencies - Third Party P,90220513,HC-One Oval LTD,"2,369.01",24/12/2019
Delivery Units,Adults and Health,Other Agencies - Third Party P,90220514,HC-One Oval LTD,-76.80,24/12/2019
Delivery Units,Adults and Health,Other Agencies - Third Party P,90217439,Chalfont Lodge (Barchester Healthcare Ho,"11,885.72",13/12/2019
Delivery Units,Adults and Health,Other Agencies - Third Party P,90214700,DR FRENCH MEMORIAL HOME LTD,"3,764.29",04/12/2019
Delivery Units,Adults and Health,Other Agencies - Third Party P,90217071,DR FRENCH MEMORIAL HOME LTD,"8,864.29",11/12/2019
Delivery Units,Adults and Health,Other Agencies - Third Party P,90221039,ROSEACRES CARE HOME LIMITED,"3,321.43",31/12/2019
Delivery Units,Adults and Health,Other Agencies - Third Party P,90221040,ROSEACRES CARE HOME LIMITED,"2,550.86",31/12/2019
Delivery Units,Adults and Health,Other Agencies - Third Party P,90221041,ROSEACRES CARE HOME LIMITED,"2,550.86",31/12/2019
Delivery Units,Adults and Health,Other Agencies - Third Party P,90221043,ROSEACRES CARE HOME LIMITED,"3,764.29",31/12/2019
Delivery Units,Adults and Health,Other Agencies - Third Party P,90221044,ROSEACRES CARE HOME LIMITED,"2,550.86",31/12/2019
Delivery Units,Adults and Health,Other Agencies - Third Party P,90221045,ROSEACRES CARE HOME LIMITED,"2,550.86",31/12/2019
Delivery Units,Adults and Health,Other Agencies - Third Party P,90221047,ROSEACRES CARE HOME LIMITED,"3,759.77",31/12/2019
Delivery Units,Adults and Health,Other Agencies - Third Party P,90221049,ROSEACRES CARE HOME LIMITED,"3,321.43",31/12/2019
Delivery Units,Adults and Health,Other Agencies - Third Party P,90221050,ROSEACRES CARE HOME LIMITED,"3,321.43",31/12/2019
Delivery Units,Adults and Health,Other Agencies - Third Party P,90221051,ROSEACRES CARE HOME LIMITED,"2,550.86",31/12/2019
Delivery Units,Adults and Health,Other Agencies - Third Party P,90221052,ROSEACRES CARE HOME LIMITED,"3,321.43",31/12/2019
Delivery Units,Adults and Health,Other Agencies - Third Party P,90214750,NIGHTINGALE HOUSE,"2,359.07",04/12/2019
Delivery Units,Adults and Health,Other Agencies - Third Party P,90214753,NIGHTINGALE HOUSE,"2,972.91",04/12/2019
Delivery Units,Adults and Health,Other Agencies - Third Party P,90217714,ELEANOR PALMER TRUST NO 2 A/C.,"3,321.43",16/12/2019
Delivery Units,Adults and Health,Other Agencies - Third Party P,90217715,ELEANOR PALMER TRUST NO 2 A/C.,428.57,16/12/2019
Delivery Units,Adults and Health,Other Agencies - Third Party P,90218623,ELEANOR PALMER TRUST NO 2 A/C.,"3,430.46",19/12/2019
Delivery Units,Adults and Health,Other Agencies - Third Party P,90218624,ELEANOR PALMER TRUST NO 2 A/C.,"3,354.64",19/12/2019
Delivery Units,Adults and Health,Other Agencies - Third Party P,90218625,ELEANOR PALMER TRUST NO 2 A/C.,"3,354.64",19/12/2019
Delivery Units,Adults and Health,Other Agencies - Third Party P,90218626,ELEANOR PALMER TRUST NO 2 A/C.,"3,430.46",19/12/2019
Delivery Units,Adults and Health,Other Agencies - Third Party P,90218627,ELEANOR PALMER TRUST NO 2 A/C.,"2,630.35",19/12/2019
Delivery Units,Adults and Health,Other Agencies - Third Party P,90218628,ELEANOR PALMER TRUST NO 2 A/C.,"2,630.35",19/12/2019
Delivery Units,Adults and Health,Other Agencies - Third Party P,90218629,ELEANOR PALMER TRUST NO 2 A/C.,"2,421.19",19/12/2019
Delivery Units,Adults and Health,Other Agencies - Third Party P,90218631,ELEANOR PALMER TRUST NO 2 A/C.,"3,430.46",19/12/2019
Delivery Units,Adults and Health,Other Agencies - Third Party P,90218632,ELEANOR PALMER TRUST NO 2 A/C.,"3,430.46",19/12/2019
Delivery Units,Adults and Health,Other Agencies - Third Party P,90218633,ELEANOR PALMER TRUST NO 2 A/C.,"3,430.46",19/12/2019
Delivery Units,Adults and Health,Other Agencies - Third Party P,90218634,ELEANOR PALMER TRUST NO 2 A/C.,"2,421.19",19/12/2019
Delivery Units,Adults and Health,Other Agencies - Third Party P,90218635,ELEANOR PALMER TRUST NO 2 A/C.,"2,630.35",19/12/2019
Delivery Units,Adults and Health,Other Agencies - Third Party P,90218636,ELEANOR PALMER TRUST NO 2 A/C.,"3,354.64",19/12/2019
Delivery Units,Adults and Health,Other Agencies - Third Party P,90218637,ELEANOR PALMER TRUST NO 2 A/C.,"3,321.43",19/12/2019
Delivery Units,Adults and Health,Other Agencies - Third Party P,90218638,ELEANOR PALMER TRUST NO 2 A/C.,"3,430.46",19/12/2019
Delivery Units,Adults and Health,Other Agencies - Third Party P,90215061,ELM PARK LODGE,"3,137.91",09/12/2019
Delivery Units,Adults and Health,Other Agencies - Third Party P,90220994,TORRINGTON HOMES,"2,249.45",31/12/2019
Delivery Units,Adults and Health,Other Agencies - Third Party P,90220995,TORRINGTON HOMES,"2,448.78",31/12/2019
Delivery Units,Adults and Health,Other Agencies - Third Party P,90215084,THE GRANGE,"2,350.08",06/12/2019
Delivery Units,Adults and Health,Other Agencies - Third Party P,90215085,THE GRANGE,"2,600.00",06/12/2019
Delivery Units,Adults and Health,Other Agencies - Third Party P,90219436,JEWISH CARE,"2,296.24",20/12/2019
Delivery Units,Adults and Health,Other Agencies - Third Party P,90219444,JEWISH CARE,"2,296.24",20/12/2019
Delivery Units,Adults and Health,Other Agencies - Third Party P,90219445,JEWISH CARE,"2,296.24",20/12/2019
Delivery Units,Adults and Health,Other Agencies - Third Party P,90219450,JEWISH CARE,"2,296.24",20/12/2019
Delivery Units,Adults and Health,Other Agencies - Third Party P,90219452,JEWISH CARE,"2,039.08",20/12/2019
Delivery Units,Adults and Health,Other Agencies - Third Party P,90219455,JEWISH CARE,"2,482.36",20/12/2019
Delivery Units,Adults and Health,Other Agencies - Third Party P,90219461,JEWISH CARE,"2,484.56",20/12/2019
Delivery Units,Adults and Health,Other Agencies - Third Party P,90219464,JEWISH CARE,"2,484.56",20/12/2019
Delivery Units,Adults and Health,Other Agencies - Third Party P,90219467,JEWISH CARE,"2,480.92",20/12/2019
Delivery Units,Adults and Health,Other Agencies - Third Party P,90219468,JEWISH CARE,"2,484.56",20/12/2019
Delivery Units,Adults and Health,Other Agencies - Third Party P,90219471,JEWISH CARE,"2,484.56",20/12/2019
Delivery Units,Adults and Health,Other Agencies - Third Party P,90219472,JEWISH CARE,"2,296.24",20/12/2019
Delivery Units,Adults and Health,Other Agencies - Third Party P,90219474,JEWISH CARE,"2,255.96",20/12/2019
Delivery Units,Adults and Health,Other Agencies - Third Party P,90219475,JEWISH CARE,"7,216.75",20/12/2019
Delivery Units,Adults and Health,Other Agencies - Third Party P,90219480,JEWISH CARE,"2,484.56",20/12/2019
Delivery Units,Adults and Health,Other Agencies - Third Party P,90219483,JEWISH CARE,"2,296.24",20/12/2019
Delivery Units,Adults and Health,Other Agencies - Third Party P,90219485,JEWISH CARE,"2,296.24",20/12/2019
Delivery Units,Adults and Health,Other Agencies - Third Party P,90219486,JEWISH CARE,"2,279.87",20/12/2019
Delivery Units,Adults and Health,Other Agencies - Third Party P,90219487,JEWISH CARE,"2,479.68",20/12/2019
Delivery Units,Adults and Health,Other Agencies - Third Party P,90219490,JEWISH CARE,"2,482.36",20/12/2019
Delivery Units,Adults and Health,Other Agencies - Third Party P,90219491,JEWISH CARE,"2,482.36",20/12/2019
Delivery Units,Adults and Health,Other Agencies - Third Party P,90219492,JEWISH CARE,"2,482.36",20/12/2019
Delivery Units,Adults and Health,Other Agencies - Third Party P,90219493,JEWISH CARE,"2,479.68",20/12/2019
Delivery Units,Adults and Health,Other Agencies - Third Party P,90219494,JEWISH CARE,"2,296.24",20/12/2019
Delivery Units,Adults and Health,Other Agencies - Third Party P,90219499,JEWISH CARE,"2,482.36",20/12/2019
Delivery Units,Adults and Health,Other Agencies - Third Party P,90219502,JEWISH CARE,"2,482.36",20/12/2019
Delivery Units,Adults and Health,Other Agencies - Third Party P,90219504,JEWISH CARE,984.10,20/12/2019
Delivery Units,Adults and Health,Other Agencies - Third Party P,90219505,JEWISH CARE,"2,479.68",20/12/2019
Delivery Units,Adults and Health,Other Agencies - Third Party P,90219506,JEWISH CARE,"2,480.92",20/12/2019
Delivery Units,Adults and Health,Other Agencies - Third Party P,90219507,JEWISH CARE,"6,298.64",20/12/2019
Delivery Units,Adults and Health,Other Agencies - Third Party P,90219509,JEWISH CARE,"2,649.36",20/12/2019
Delivery Units,Adults and Health,Other Agencies - Third Party P,90219510,JEWISH CARE,"2,480.92",20/12/2019
Delivery Units,Adults and Health,Other Agencies - Third Party P,90219512,JEWISH CARE,"2,479.68",20/12/2019
Delivery Units,Adults and Health,Other Agencies - Third Party P,90219514,JEWISH CARE,"2,479.68",20/12/2019
Delivery Units,Adults and Health,Other Agencies - Third Party P,90219515,JEWISH CARE,"2,482.36",20/12/2019
Delivery Units,Adults and Health,Other Agencies - Third Party P,90219516,JEWISH CARE,"2,484.56",20/12/2019
Delivery Units,Adults and Health,Other Agencies - Third Party P,90219518,JEWISH CARE,"2,484.56",20/12/2019
Delivery Units,Adults and Health,Other Agencies - Third Party P,90219520,JEWISH CARE,"2,296.24",20/12/2019
Delivery Units,Adults and Health,Other Agencies - Third Party P,90219527,JEWISH CARE,"2,479.68",20/12/2019
Delivery Units,Adults and Health,Other Agencies - Third Party P,90219528,JEWISH CARE,"2,480.92",20/12/2019
Delivery Units,Adults and Health,Other Agencies - Third Party P,90219529,JEWISH CARE,"2,480.92",20/12/2019
Delivery Units,Adults and Health,Other Agencies - Third Party P,90219530,JEWISH CARE,"2,479.68",20/12/2019
Delivery Units,Adults and Health,Other Agencies - Third Party P,90219531,JEWISH CARE,"4,265.48",20/12/2019
Delivery Units,Adults and Health,Other Agencies - Third Party P,90219533,JEWISH CARE,"2,280.32",20/12/2019
Delivery Units,Adults and Health,Other Agencies - Third Party P,90219534,JEWISH CARE,"2,296.24",20/12/2019
Delivery Units,Adults and Health,Other Agencies - Third Party P,90219536,JEWISH CARE,"2,156.80",20/12/2019
Delivery Units,Adults and Health,Other Agencies - Third Party P,90219541,JEWISH CARE,"2,480.92",20/12/2019
Delivery Units,Adults and Health,Other Agencies - Third Party P,90219542,JEWISH CARE,"2,482.36",20/12/2019
Delivery Units,Adults and Health,Other Agencies - Third Party P,90219543,JEWISH CARE,"2,296.24",20/12/2019
Delivery Units,Adults and Health,Other Agencies - Third Party P,90219549,JEWISH CARE,"2,482.36",20/12/2019
Delivery Units,Adults and Health,Other Agencies - Third Party P,90219550,JEWISH CARE,"2,484.56",20/12/2019
Delivery Units,Adults and Health,Other Agencies - Third Party P,90219554,JEWISH CARE,"2,296.24",20/12/2019
Delivery Units,Adults and Health,Other Agencies - Third Party P,90219557,JEWISH CARE,"2,480.92",20/12/2019
Delivery Units,Adults and Health,Other Agencies - Third Party P,90219560,JEWISH CARE,"2,479.68",20/12/2019
Delivery Units,Adults and Health,Other Agencies - Third Party P,90219562,JEWISH CARE,"2,479.68",20/12/2019
Delivery Units,Adults and Health,Other Agencies - Third Party P,90219563,JEWISH CARE,"2,484.56",20/12/2019
Delivery Units,Adults and Health,Other Agencies - Third Party P,90219564,JEWISH CARE,620.59,20/12/2019
Delivery Units,Adults and Health,Other Agencies - Third Party P,90219567,JEWISH CARE,"2,484.56",20/12/2019
Delivery Units,Adults and Health,Other Agencies - Third Party P,90219568,JEWISH CARE,"4,825.16",20/12/2019
Delivery Units,Adults and Health,Other Agencies - Third Party P,90219569,JEWISH CARE,"2,480.92",20/12/2019
Delivery Units,Adults and Health,Other Agencies - Third Party P,90219571,JEWISH CARE,"2,484.56",20/12/2019
Delivery Units,Adults and Health,Other Agencies - Third Party P,90219573,JEWISH CARE,"10,455.31",20/12/2019
Delivery Units,Adults and Health,Other Agencies - Third Party P,90219577,JEWISH CARE,"2,296.24",20/12/2019
Delivery Units,Adults and Health,Other Agencies - Third Party P,90218237,CLOVELLY HOUSE RESID. HOME LTD,"2,780.00",17/12/2019
Delivery Units,Adults and Health,Other Agencies - Third Party P,90218238,CLOVELLY HOUSE RESID. HOME LTD,"2,350.08",17/12/2019
Delivery Units,Adults and Health,Other Agencies - Third Party P,90218240,CLOVELLY HOUSE RESID. HOME LTD,"3,000.00",17/12/2019
Delivery Units,Adults and Health,Other Agencies - Third Party P,90218241,CLOVELLY HOUSE RESID. HOME LTD,"3,000.00",17/12/2019
Delivery Units,Adults and Health,Other Agencies - Third Party P,90218243,CLOVELLY HOUSE RESID. HOME LTD,"3,000.00",17/12/2019
Delivery Units,Adults and Health,Other Agencies - Third Party P,90218244,CLOVELLY HOUSE RESID. HOME LTD,"2,350.08",17/12/2019
Delivery Units,Adults and Health,Other Agencies - Third Party P,90218246,CLOVELLY HOUSE RESID. HOME LTD,"3,000.00",17/12/2019
Delivery Units,Adults and Health,Other Agencies - Third Party P,90218247,CLOVELLY HOUSE RESID. HOME LTD,"2,350.08",17/12/2019
Delivery Units,Adults and Health,Other Agencies - Third Party P,90218248,CLOVELLY HOUSE RESID. HOME LTD,"2,600.00",17/12/2019
Delivery Units,Adults and Health,Other Agencies - Third Party P,90221881,FINBOND LIMITED,"3,321.43",31/12/2019
Delivery Units,Adults and Health,Other Agencies - Third Party P,90217718,QUANTUM CARE LIMITED,"3,214.29",16/12/2019
Delivery Units,Adults and Health,Other Agencies - Third Party P,90217720,QUANTUM CARE LIMITED,"4,071.43",16/12/2019
Delivery Units,Adults and Health,Other Agencies - Third Party P,90216974,CEDARS NURSING HOME,"4,285.71",11/12/2019
Delivery Units,Adults and Health,Other Agencies - Third Party P,90216975,CEDARS NURSING HOME,"4,428.57",11/12/2019
Delivery Units,Adults and Health,Other Agencies - Third Party P,90221264,CEDARS NURSING HOME,"4,428.57",31/12/2019
Delivery Units,Adults and Health,Other Agencies - Third Party P,90218651,CATHERINE LODGE,"2,601.87",19/12/2019
Delivery Units,Adults and Health,Other Agencies - Third Party P,90218652,CATHERINE LODGE,"3,321.43",19/12/2019
Delivery Units,Adults and Health,Other Agencies - Third Party P,90218653,CATHERINE LODGE,"2,601.87",19/12/2019
Delivery Units,Adults and Health,Other Agencies - Third Party P,90218656,CATHERINE LODGE,"3,764.29",19/12/2019
Delivery Units,Adults and Health,Other Agencies - Third Party P,90217323,BUPA NURSING HOMES LTD - ARKLEY,"2,218.04",12/12/2019
Delivery Units,Adults and Health,Other Agencies - Third Party P,90217326,BUPA NURSING HOMES LTD - ARKLEY,"2,167.68",12/12/2019
Delivery Units,Adults and Health,Other Agencies - Third Party P,90221853,SUNRIDGE HOUSING ASSOCIATION LTD,"2,898.19",31/12/2019
Delivery Units,Adults and Health,Other Agencies - Third Party P,90221854,SUNRIDGE HOUSING ASSOCIATION LTD,"2,989.58",31/12/2019
Delivery Units,Adults and Health,Other Agencies - Third Party P,90214634,NAZARETH HOUSE,"2,186.88",02/12/2019
Delivery Units,Adults and Health,Other Agencies - Third Party P,90214635,NAZARETH HOUSE,"1,594.70",02/12/2019
Delivery Units,Adults and Health,Other Agencies - Third Party P,90214636,NAZARETH HOUSE,"2,186.88",02/12/2019
Delivery Units,Adults and Health,Other Agencies - Third Party P,90214637,NAZARETH HOUSE,"2,144.00",02/12/2019
Delivery Units,Adults and Health,Other Agencies - Third Party P,90214684,NAZARETH HOUSE,"3,514.63",04/12/2019
Delivery Units,Adults and Health,Other Agencies - Third Party P,90214710,NAZARETH HOUSE,"2,186.88",04/12/2019
Delivery Units,Adults and Health,Other Agencies - Third Party P,90214711,NAZARETH HOUSE,"2,186.88",04/12/2019
Delivery Units,Adults and Health,Other Agencies - Third Party P,90214712,NAZARETH HOUSE,"2,186.88",04/12/2019
Delivery Units,Adults and Health,Other Agencies - Third Party P,90214713,NAZARETH HOUSE,"2,186.88",04/12/2019
Delivery Units,Adults and Health,Other Agencies - Third Party P,90214714,NAZARETH HOUSE,"2,186.88",04/12/2019
Delivery Units,Adults and Health,Other Agencies - Third Party P,90214715,NAZARETH HOUSE,"2,186.88",04/12/2019
Delivery Units,Adults and Health,Other Agencies - Third Party P,90214716,NAZARETH HOUSE,"2,186.88",04/12/2019
Delivery Units,Adults and Health,Other Agencies - Third Party P,90214717,NAZARETH HOUSE,"2,350.08",04/12/2019
Delivery Units,Adults and Health,Other Agencies - Third Party P,90214718,NAZARETH HOUSE,"2,186.88",04/12/2019
Delivery Units,Adults and Health,Other Agencies - Third Party P,90214719,NAZARETH HOUSE,"2,186.88",04/12/2019
Delivery Units,Adults and Health,Other Agencies - Third Party P,90214720,NAZARETH HOUSE,"2,144.00",04/12/2019
Delivery Units,Adults and Health,Other Agencies - Third Party P,90214721,NAZARETH HOUSE,"2,186.88",04/12/2019
Delivery Units,Adults and Health,Other Agencies - Third Party P,90214723,NAZARETH HOUSE,"2,650.40",04/12/2019
Delivery Units,Adults and Health,Other Agencies - Third Party P,90214724,NAZARETH HOUSE,"2,186.88",04/12/2019
Delivery Units,Adults and Health,Other Agencies - Third Party P,90214725,NAZARETH HOUSE,"2,186.88",04/12/2019
Delivery Units,Adults and Health,Other Agencies - Third Party P,90214726,NAZARETH HOUSE,"2,350.08",04/12/2019
Delivery Units,Adults and Health,Other Agencies - Third Party P,90214727,NAZARETH HOUSE,"2,186.88",04/12/2019
Delivery Units,Adults and Health,Other Agencies - Third Party P,90214728,NAZARETH HOUSE,"2,186.88",04/12/2019
Delivery Units,Adults and Health,Other Agencies - Third Party P,90214729,NAZARETH HOUSE,"2,186.88",04/12/2019
Delivery Units,Adults and Health,Other Agencies - Third Party P,90214730,NAZARETH HOUSE,"2,186.88",04/12/2019
Delivery Units,Adults and Health,Other Agencies - Third Party P,90214731,NAZARETH HOUSE,"2,186.88",04/12/2019
Delivery Units,Adults and Health,Other Agencies - Third Party P,90214732,NAZARETH HOUSE,"2,186.88",04/12/2019
Delivery Units,Adults and Health,Other Agencies - Third Party P,90214733,NAZARETH HOUSE,"2,350.08",04/12/2019
Delivery Units,Adults and Health,Other Agencies - Third Party P,90214734,NAZARETH HOUSE,"2,350.08",04/12/2019
Delivery Units,Adults and Health,Other Agencies - Third Party P,90214735,NAZARETH HOUSE,"2,186.88",04/12/2019
Delivery Units,Adults and Health,Other Agencies - Third Party P,90214736,NAZARETH HOUSE,"2,186.88",04/12/2019
Delivery Units,Adults and Health,Other Agencies - Third Party P,90214737,NAZARETH HOUSE,"2,186.88",04/12/2019
Delivery Units,Adults and Health,Other Agencies - Third Party P,90214738,NAZARETH HOUSE,"4,295.66",04/12/2019
Delivery Units,Adults and Health,Other Agencies - Third Party P,90214741,NAZARETH HOUSE,"2,186.88",04/12/2019
Delivery Units,Adults and Health,Other Agencies - Third Party P,90221077,NAZARETH HOUSE,"2,186.88",31/12/2019
Delivery Units,Adults and Health,Other Agencies - Third Party P,90221078,NAZARETH HOUSE,"2,186.88",31/12/2019
Delivery Units,Adults and Health,Other Agencies - Third Party P,90221079,NAZARETH HOUSE,"2,186.88",31/12/2019
Delivery Units,Adults and Health,Other Agencies - Third Party P,90221080,NAZARETH HOUSE,"2,186.88",31/12/2019
Delivery Units,Adults and Health,Other Agencies - Third Party P,90221081,NAZARETH HOUSE,"2,186.88",31/12/2019
Delivery Units,Adults and Health,Other Agencies - Third Party P,90221082,NAZARETH HOUSE,"2,350.08",31/12/2019
Delivery Units,Adults and Health,Other Agencies - Third Party P,90221083,NAZARETH HOUSE,"2,186.88",31/12/2019
Delivery Units,Adults and Health,Other Agencies - Third Party P,90221084,NAZARETH HOUSE,"2,186.88",31/12/2019
Delivery Units,Adults and Health,Other Agencies - Third Party P,90221085,NAZARETH HOUSE,"2,350.08",31/12/2019
Delivery Units,Adults and Health,Other Agencies - Third Party P,90221086,NAZARETH HOUSE,"2,186.88",31/12/2019
Delivery Units,Adults and Health,Other Agencies - Third Party P,90221087,NAZARETH HOUSE,"2,186.88",31/12/2019
Delivery Units,Adults and Health,Other Agencies - Third Party P,90221088,NAZARETH HOUSE,"2,144.00",31/12/2019
Delivery Units,Adults and Health,Other Agencies - Third Party P,90221089,NAZARETH HOUSE,"2,186.88",31/12/2019
Delivery Units,Adults and Health,Other Agencies - Third Party P,90221091,NAZARETH HOUSE,"2,186.88",31/12/2019
Delivery Units,Adults and Health,Other Agencies - Third Party P,90221092,NAZARETH HOUSE,"2,650.40",31/12/2019
Delivery Units,Adults and Health,Other Agencies - Third Party P,90221093,NAZARETH HOUSE,"2,350.08",31/12/2019
Delivery Units,Adults and Health,Other Agencies - Third Party P,90221094,NAZARETH HOUSE,"2,186.88",31/12/2019
Delivery Units,Adults and Health,Other Agencies - Third Party P,90221095,NAZARETH HOUSE,"2,186.88",31/12/2019
Delivery Units,Adults and Health,Other Agencies - Third Party P,90221096,NAZARETH HOUSE,"2,186.88",31/12/2019
Delivery Units,Adults and Health,Other Agencies - Third Party P,90221097,NAZARETH HOUSE,"2,186.88",31/12/2019
Delivery Units,Adults and Health,Other Agencies - Third Party P,90221098,NAZARETH HOUSE,"2,350.08",31/12/2019
Delivery Units,Adults and Health,Other Agencies - Third Party P,90221099,NAZARETH HOUSE,"2,350.08",31/12/2019
Delivery Units,Adults and Health,Other Agencies - Third Party P,90221100,NAZARETH HOUSE,"2,186.88",31/12/2019
Delivery Units,Adults and Health,Other Agencies - Third Party P,90221101,NAZARETH HOUSE,"2,186.88",31/12/2019
Delivery Units,Adults and Health,Other Agencies - Third Party P,90221102,NAZARETH HOUSE,"2,186.88",31/12/2019
Delivery Units,Adults and Health,Other Agencies - Third Party P,90221103,NAZARETH HOUSE,"2,186.88",31/12/2019
Delivery Units,Adults and Health,Other Agencies - Third Party P,90221104,NAZARETH HOUSE,"2,186.88",31/12/2019
Delivery Units,Adults and Health,Other Agencies - Third Party P,90221105,NAZARETH HOUSE,"2,186.88",31/12/2019
Delivery Units,Adults and Health,Other Agencies - Third Party P,90214677,Kestrel Grove Nursing Home,"2,961.43",04/12/2019
Delivery Units,Adults and Health,Other Agencies - Third Party P,90221843,Kestrel Grove Nursing Home,"3,060.14",31/12/2019
Delivery Units,Adults and Health,Other Agencies - Third Party P,90213663,FRIARY LODGE,"3,214.28",04/12/2019
Delivery Units,Adults and Health,Other Agencies - Third Party P,90213664,FRIARY LODGE,"3,214.28",04/12/2019
Delivery Units,Adults and Health,Other Agencies - Third Party P,90214639,FRIARY LODGE,"4,427.14",05/12/2019
Delivery Units,Adults and Health,Other Agencies - Third Party P,90214640,FRIARY LODGE,"4,191.43",05/12/2019
Delivery Units,Adults and Health,Other Agencies - Third Party P,90221322,FRIARY LODGE,"4,327.14",31/12/2019
Delivery Units,Adults and Health,Other Agencies - Third Party P,90221326,FRIARY LODGE,"3,321.43",31/12/2019
Delivery Units,Adults and Health,Other Agencies - Third Party P,90221328,FRIARY LODGE,"3,321.43",31/12/2019
Delivery Units,Adults and Health,Other Agencies - Third Party P,90215125,THE WOODSIDE HOME,"2,186.88",06/12/2019
Delivery Units,Adults and Health,Other Agencies - Third Party P,90215126,THE WOODSIDE HOME,"2,186.88",06/12/2019
Delivery Units,Adults and Health,Other Agencies - Third Party P,90215128,THE WOODSIDE HOME,"2,186.88",06/12/2019
Delivery Units,Adults and Health,Other Agencies - Third Party P,90215129,THE WOODSIDE HOME,"2,186.88",06/12/2019
Delivery Units,Adults and Health,Other Agencies - Third Party P,90217354,WESTMINSTER HEALTH CARE LTD,"3,739.71",18/12/2019
Delivery Units,Adults and Health,Other Agencies - Third Party P,90215087,METHODIST HOMES FOR THE AGED,"2,631.76",06/12/2019
Delivery Units,Adults and Health,Other Agencies - Third Party P,90219522,HENRY NIHILL HOUSE,"2,265.36",20/12/2019
Delivery Units,Adults and Health,Other Agencies - Third Party P,90218662,SYDMAR LODGE,"4,989.29",19/12/2019
Delivery Units,Adults and Health,Other Agencies - Third Party P,90221266,SYDMAR LODGE,"4,871.43",31/12/2019
Delivery Units,Adults and Health,Other Agencies - Third Party P,90221267,SYDMAR LODGE,"2,506.26",31/12/2019
Delivery Units,Adults and Health,Other Agencies - Third Party P,90221269,SYDMAR LODGE,"2,506.26",31/12/2019
Delivery Units,Adults and Health,Other Agencies - Third Party P,90221270,SYDMAR LODGE,"2,469.42",31/12/2019
Delivery Units,Adults and Health,Other Agencies - Third Party P,90219454,THE LIMES RESIDENTIAL HOME,"2,186.88",20/12/2019
Delivery Units,Adults and Health,Other Agencies - Third Party P,90219465,THE LIMES RESIDENTIAL HOME,"2,350.08",20/12/2019
Delivery Units,Adults and Health,Other Agencies - Third Party P,90219496,THE LIMES RESIDENTIAL HOME,"2,350.08",20/12/2019
Delivery Units,Adults and Health,Other Agencies - Third Party P,90219501,THE LIMES RESIDENTIAL HOME,"2,350.08",20/12/2019
Delivery Units,Adults and Health,Other Agencies - Third Party P,90219513,THE LIMES RESIDENTIAL HOME,"2,350.08",20/12/2019
Delivery Units,Adults and Health,Other Agencies - Third Party P,90219525,THE LIMES RESIDENTIAL HOME,"2,304.00",20/12/2019
Delivery Units,Adults and Health,Other Agencies - Third Party P,90219535,THE LIMES RESIDENTIAL HOME,"2,350.08",20/12/2019
Delivery Units,Adults and Health,Other Agencies - Third Party P,90219538,THE LIMES RESIDENTIAL HOME,"2,350.08",20/12/2019
Delivery Units,Adults and Health,Other Agencies - Third Party P,90219539,THE LIMES RESIDENTIAL HOME,"2,350.08",20/12/2019
Delivery Units,Adults and Health,Other Agencies - Third Party P,90219547,THE LIMES RESIDENTIAL HOME,"2,186.88",20/12/2019
Delivery Units,Adults and Health,Other Agencies - Third Party P,90219548,THE LIMES RESIDENTIAL HOME,"2,350.08",20/12/2019
Delivery Units,Adults and Health,Other Agencies - Third Party P,90219555,THE LIMES RESIDENTIAL HOME,"2,304.00",20/12/2019
Delivery Units,Adults and Health,Other Agencies - Third Party P,90219561,THE LIMES RESIDENTIAL HOME,"2,350.08",20/12/2019
Delivery Units,Adults and Health,Other Agencies - Third Party P,90219576,THE LIMES RESIDENTIAL HOME,"5,857.71",20/12/2019
Delivery Units,Adults and Health,Other Agencies - Third Party P,90219579,THE LIMES RESIDENTIAL HOME,"1,302.86",20/12/2019
Delivery Units,Adults and Health,Other Agencies - Third Party P,90221855,SCIMITAR CARE HOTELS PLC,"3,985.71",31/12/2019
Delivery Units,Adults and Health,Other Agencies - Third Party P,90221856,SCIMITAR CARE HOTELS PLC,"4,207.14",31/12/2019
Delivery Units,Adults and Health,Other Agencies - Third Party P,90221857,SCIMITAR CARE HOTELS PLC,"3,764.29",31/12/2019
Delivery Units,Adults and Health,Other Agencies - Third Party P,90221055,MEERA NURSING HOME LIMITED,"3,542.86",31/12/2019
Delivery Units,Adults and Health,Other Agencies - Third Party P,90221890,MEERA NURSING HOME LIMITED,"2,514.29",31/12/2019
Delivery Units,Adults and Health,Other Agencies - Third Party P,90221891,MEERA NURSING HOME LIMITED,685.71,31/12/2019
Delivery Units,Adults and Health,Other Agencies - Third Party P,90220862,GREEN TREES,"1,828.48",31/12/2019
Delivery Units,Adults and Health,Other Agencies - Third Party P,90220863,GREEN TREES,"3,410.00",31/12/2019
Delivery Units,Adults and Health,Other Agencies - Third Party P,90220864,GREEN TREES,"3,200.00",31/12/2019
Delivery Units,Adults and Health,Other Agencies - Third Party P,90217329,BUPA CARE HOMES,"2,505.51",12/12/2019
Delivery Units,Adults and Health,Other Agencies - Third Party P,90221861,BUPA CARE HOMES,"2,546.74",31/12/2019
Delivery Units,Adults and Health,Other Agencies - Third Party P,90215092,ANASTASIA LODGE,"3,600.00",06/12/2019
Delivery Units,Adults and Health,Other Agencies - Third Party P,90215096,ANASTASIA LODGE,"6,242.86",06/12/2019
Delivery Units,Adults and Health,Other Agencies - Third Party P,90215097,ANASTASIA LODGE,"2,800.00",06/12/2019
Delivery Units,Adults and Health,Other Agencies - Third Party P,90220505,HILTON LODGE LTD.,"4,646.86",24/12/2019
Delivery Units,Adults and Health,Other Agencies - Third Party P,90221253,HILTON LODGE LTD.,"4,560.00",31/12/2019
Delivery Units,Adults and Health,Other Agencies - Third Party P,90218265,VENTRY RESIDENTIAL CARE LTD,"2,517.94",17/12/2019
Delivery Units,Adults and Health,Other Agencies - Third Party P,90218266,VENTRY RESIDENTIAL CARE LTD,"3,214.29",17/12/2019
Delivery Units,Adults and Health,Other Agencies - Third Party P,90218268,VENTRY RESIDENTIAL CARE LTD,"3,000.00",17/12/2019
Delivery Units,Adults and Health,Other Agencies - Third Party P,90218269,VENTRY RESIDENTIAL CARE LTD,"2,035.71",17/12/2019
Delivery Units,Adults and Health,Other Agencies - Third Party P,90214675,B & M CARE,"2,468.57",04/12/2019
Delivery Units,Adults and Health,Other Agencies - Third Party P,90218615,B & M CARE,"2,550.86",19/12/2019
Delivery Units,Adults and Health,Other Agencies - Third Party P,90214757,SAGE NURSING HOME,"2,571.43",09/12/2019
Delivery Units,Adults and Health,Other Agencies - Third Party P,90214760,SAGE NURSING HOME,"2,592.86",09/12/2019
Delivery Units,Adults and Health,Other Agencies - Third Party P,90214762,SAGE NURSING HOME,"2,343.09",09/12/2019
Delivery Units,Adults and Health,Other Agencies - Third Party P,90217734,SAGE NURSING HOME,"2,657.14",19/12/2019
Delivery Units,Adults and Health,Other Agencies - Third Party P,90217737,SAGE NURSING HOME,"2,679.29",19/12/2019
Delivery Units,Adults and Health,Other Agencies - Third Party P,90217738,SAGE NURSING HOME,"2,421.19",19/12/2019
Delivery Units,Adults and Health,Other Agencies - Third Party P,90214642,EASTSIDE HOUSE RESIDENTIAL CARE HOM,"22,375.00",06/12/2019
Delivery Units,Adults and Health,Other Agencies - Third Party P,90215069,EASTSIDE HOUSE RESIDENTIAL CARE HOM,"3,500.00",13/12/2019
Delivery Units,Adults and Health,Other Agencies - Third Party P,90217692,EASTSIDE HOUSE RESIDENTIAL CARE HOM,"3,500.00",13/12/2019
Delivery Units,Adults and Health,Other Agencies - Third Party P,90218641,EASTSIDE HOUSE RESIDENTIAL CARE HOM,"3,580.00",24/12/2019
Delivery Units,Adults and Health,Other Agencies - Third Party P,90217705,APPLE TREE COURT CARE HOME,"3,642.86",16/12/2019
Delivery Units,Adults and Health,Other Agencies - Third Party P,90218402,APPLE TREE COURT CARE HOME,"3,764.29",19/12/2019
Delivery Units,Adults and Health,Other Agencies - Third Party P,90218404,APPLE TREE COURT CARE HOME,"3,764.29",19/12/2019
Delivery Units,Adults and Health,Other Agencies - Third Party P,90214681,R.M.B.I,"2,263.98",03/12/2019
Delivery Units,Adults and Health,Other Agencies - Third Party P,90218614,R.M.B.I,"2,339.57",24/12/2019
Delivery Units,Adults and Health,Other Agencies - Third Party P,90221874,TENTERDEN HOUSE,"3,957.50",31/12/2019
Delivery Units,Adults and Health,Other Agencies - Third Party P,90221865,SWANBOROUGH HOUSE,"4,121.27",31/12/2019
Delivery Units,Adults and Health,Other Agencies - Third Party P,90218663,Ashfields Residential Care Home,"2,343.09",19/12/2019
Delivery Units,Adults and Health,Other Agencies - Third Party P,90218665,Ashfields Residential Care Home,"2,517.94",19/12/2019
Delivery Units,Adults and Health,Other Agencies - Third Party P,90215089,AUTUMN GARDENS,"3,160.00",06/12/2019
Delivery Units,Adults and Health,Other Agencies - Third Party P,90215093,AUTUMN GARDENS,"3,560.00",06/12/2019
Delivery Units,Adults and Health,Other Agencies - Third Party P,90215095,AUTUMN GARDENS,"2,880.00",06/12/2019
Delivery Units,Adults and Health,Other Agencies - Third Party P,90214670,THE CHRISTIAN CARE TRUST,"2,350.08",04/12/2019
Delivery Units,Adults and Health,Other Agencies - Third Party P,90214740,THE CHRISTIAN CARE TRUST,"2,350.08",04/12/2019
Delivery Units,Adults and Health,Other Agencies - Third Party P,90214766,THE CHRISTIAN CARE TRUST,"2,350.08",05/12/2019
Delivery Units,Adults and Health,Other Agencies - Third Party P,90214767,THE CHRISTIAN CARE TRUST,"2,350.08",05/12/2019
Delivery Units,Adults and Health,Other Agencies - Third Party P,90214768,THE CHRISTIAN CARE TRUST,"2,350.08",05/12/2019
Delivery Units,Adults and Health,Other Agencies - Third Party P,90214769,THE CHRISTIAN CARE TRUST,"2,350.08",05/12/2019
Delivery Units,Adults and Health,Other Agencies - Third Party P,90215073,THE CHRISTIAN CARE TRUST,"2,031.76",06/12/2019
Delivery Units,Adults and Health,Other Agencies - Third Party P,90215074,THE CHRISTIAN CARE TRUST,"2,304.00",06/12/2019
Delivery Units,Adults and Health,Other Agencies - Third Party P,90221226,ABBEY RAVENSCROFT PARK NURSING HOME,"3,321.43",31/12/2019
Delivery Units,Adults and Health,Other Agencies - Third Party P,90221227,ABBEY RAVENSCROFT PARK NURSING HOME,"3,321.43",31/12/2019
Delivery Units,Adults and Health,Other Agencies - Third Party P,90214682,CARLTON COURT (TLC GROUP),937.23,04/12/2019
Delivery Units,Adults and Health,Other Agencies - Third Party P,90220939,CARLTON COURT (TLC GROUP),"2,249.45",31/12/2019
Delivery Units,Adults and Health,Other Agencies - Third Party P,90214624,ASHTON LODGE CARE CENTRE,"4,219.03",02/12/2019
Delivery Units,Adults and Health,Other Agencies - Third Party P,90221028,ASHTON LODGE CARE CENTRE,"4,359.66",31/12/2019
Delivery Units,Adults and Health,Other Agencies - Third Party P,90215079,LIVABILITY,"3,180.00",06/12/2019
Delivery Units,Adults and Health,Other Agencies - Third Party P,90215081,LIVABILITY,"3,424.00",06/12/2019
Delivery Units,Adults and Health,Other Agencies - Third Party P,90213829,THE BARNETGROUP LIMITED,"2,304.00",02/12/2019
Delivery Units,Adults and Health,Other Agencies - Third Party P,90213832,THE BARNETGROUP LIMITED,612.57,02/12/2019
Delivery Units,Adults and Health,Other Agencies - Third Party P,90213833,THE BARNETGROUP LIMITED,"2,144.00",02/12/2019
Delivery Units,Adults and Health,Other Agencies - Third Party P,90213834,THE BARNETGROUP LIMITED,"-9,216.00",02/12/2019
Delivery Units,Adults and Health,Other Agencies - Third Party P,90213835,THE BARNETGROUP LIMITED,"2,304.00",02/12/2019
Delivery Units,Adults and Health,Other Agencies - Third Party P,90213836,THE BARNETGROUP LIMITED,"2,304.00",02/12/2019
Delivery Units,Adults and Health,Other Agencies - Third Party P,90213837,THE BARNETGROUP LIMITED,"2,144.00",02/12/2019
Delivery Units,Adults and Health,Other Agencies - Third Party P,90213838,THE BARNETGROUP LIMITED,"2,304.00",02/12/2019
Delivery Units,Adults and Health,Other Agencies - Third Party P,90213839,THE BARNETGROUP LIMITED,"2,304.00",02/12/2019
Delivery Units,Adults and Health,Other Agencies - Third Party P,90213840,THE BARNETGROUP LIMITED,"3,567.52",02/12/2019
Delivery Units,Adults and Health,Other Agencies - Third Party P,90213842,THE BARNETGROUP LIMITED,433.60,02/12/2019
Delivery Units,Adults and Health,Other Agencies - Third Party P,90213843,THE BARNETGROUP LIMITED,"2,144.00",02/12/2019
Delivery Units,Adults and Health,Other Agencies - Third Party P,90213844,THE BARNETGROUP LIMITED,"2,144.00",02/12/2019
Delivery Units,Adults and Health,Other Agencies - Third Party P,90213845,THE BARNETGROUP LIMITED,"2,144.00",02/12/2019
Delivery Units,Adults and Health,Other Agencies - Third Party P,90213846,THE BARNETGROUP LIMITED,"2,144.00",02/12/2019
Delivery Units,Adults and Health,Other Agencies - Third Party P,90213847,THE BARNETGROUP LIMITED,"2,144.00",02/12/2019
Delivery Units,Adults and Health,Other Agencies - Third Party P,90213848,THE BARNETGROUP LIMITED,"2,304.00",02/12/2019
Delivery Units,Adults and Health,Other Agencies - Third Party P,90213849,THE BARNETGROUP LIMITED,"2,304.00",02/12/2019
Delivery Units,Adults and Health,Other Agencies - Third Party P,90213850,THE BARNETGROUP LIMITED,"2,144.00",02/12/2019
Delivery Units,Adults and Health,Other Agencies - Third Party P,90213851,THE BARNETGROUP LIMITED,"2,144.00",02/12/2019
Delivery Units,Adults and Health,Other Agencies - Third Party P,90213852,THE BARNETGROUP LIMITED,"2,304.00",02/12/2019
Delivery Units,Adults and Health,Other Agencies - Third Party P,90213854,THE BARNETGROUP LIMITED,"2,304.00",02/12/2019
Delivery Units,Adults and Health,Other Agencies - Third Party P,90213855,THE BARNETGROUP LIMITED,"2,304.00",02/12/2019
Delivery Units,Adults and Health,Other Agencies - Third Party P,90213856,THE BARNETGROUP LIMITED,"2,304.00",02/12/2019
Delivery Units,Adults and Health,Other Agencies - Third Party P,90213857,THE BARNETGROUP LIMITED,"2,144.00",02/12/2019
Delivery Units,Adults and Health,Other Agencies - Third Party P,90213858,THE BARNETGROUP LIMITED,"2,304.00",02/12/2019
Delivery Units,Adults and Health,Other Agencies - Third Party P,90213859,THE BARNETGROUP LIMITED,"2,144.00",02/12/2019
Delivery Units,Adults and Health,Other Agencies - Third Party P,90213860,THE BARNETGROUP LIMITED,"2,304.00",02/12/2019
Delivery Units,Adults and Health,Other Agencies - Third Party P,90213861,THE BARNETGROUP LIMITED,"2,144.00",02/12/2019
Delivery Units,Adults and Health,Other Agencies - Third Party P,90213864,THE BARNETGROUP LIMITED,"2,304.00",02/12/2019
Delivery Units,Adults and Health,Other Agencies - Third Party P,90213865,THE BARNETGROUP LIMITED,"2,304.00",02/12/2019
Delivery Units,Adults and Health,Other Agencies - Third Party P,90213866,THE BARNETGROUP LIMITED,"2,144.00",02/12/2019
Delivery Units,Adults and Health,Other Agencies - Third Party P,90213867,THE BARNETGROUP LIMITED,"2,144.00",02/12/2019
Delivery Units,Adults and Health,Other Agencies - Third Party P,90213868,THE BARNETGROUP LIMITED,"2,144.00",02/12/2019
Delivery Units,Adults and Health,Other Agencies - Third Party P,90213869,THE BARNETGROUP LIMITED,"2,144.00",02/12/2019
Delivery Units,Adults and Health,Other Agencies - Third Party P,90213870,THE BARNETGROUP LIMITED,"2,144.00",02/12/2019
Delivery Units,Adults and Health,Other Agencies - Third Party P,90213872,THE BARNETGROUP LIMITED,"4,062.40",02/12/2019
Delivery Units,Adults and Health,Other Agencies - Third Party P,90213873,THE BARNETGROUP LIMITED,"11,520.00",02/12/2019
Delivery Units,Adults and Health,Other Agencies - Third Party P,90213874,THE BARNETGROUP LIMITED,"2,144.00",02/12/2019
Delivery Units,Adults and Health,Other Agencies - Third Party P,90213875,THE BARNETGROUP LIMITED,"2,144.00",02/12/2019
Delivery Units,Adults and Health,Other Agencies - Third Party P,90213876,THE BARNETGROUP LIMITED,"2,304.00",02/12/2019
Delivery Units,Adults and Health,Other Agencies - Third Party P,90213877,THE BARNETGROUP LIMITED,"2,144.00",02/12/2019
Delivery Units,Adults and Health,Other Agencies - Third Party P,90213878,THE BARNETGROUP LIMITED,"2,304.00",02/12/2019
Delivery Units,Adults and Health,Other Agencies - Third Party P,90213879,THE BARNETGROUP LIMITED,"2,144.00",02/12/2019
Delivery Units,Adults and Health,Other Agencies - Third Party P,90213880,THE BARNETGROUP LIMITED,"2,144.00",02/12/2019
Delivery Units,Adults and Health,Other Agencies - Third Party P,90213881,THE BARNETGROUP LIMITED,"2,144.00",02/12/2019
Delivery Units,Adults and Health,Other Agencies - Third Party P,90213882,THE BARNETGROUP LIMITED,"2,144.00",02/12/2019
Delivery Units,Adults and Health,Other Agencies - Third Party P,90213883,THE BARNETGROUP LIMITED,"2,144.00",02/12/2019
Delivery Units,Adults and Health,Other Agencies - Third Party P,90213884,THE BARNETGROUP LIMITED,"2,144.00",02/12/2019
Delivery Units,Adults and Health,Other Agencies - Third Party P,90213885,THE BARNETGROUP LIMITED,"2,304.00",02/12/2019
Delivery Units,Adults and Health,Other Agencies - Third Party P,90213886,THE BARNETGROUP LIMITED,"2,144.00",02/12/2019
Delivery Units,Adults and Health,Other Agencies - Third Party P,90213887,THE BARNETGROUP LIMITED,"2,304.00",02/12/2019
Delivery Units,Adults and Health,Other Agencies - Third Party P,90213888,THE BARNETGROUP LIMITED,"2,304.00",02/12/2019
Delivery Units,Adults and Health,Other Agencies - Third Party P,90213889,THE BARNETGROUP LIMITED,"2,694.00",02/12/2019
Delivery Units,Adults and Health,Other Agencies - Third Party P,90213890,THE BARNETGROUP LIMITED,"44,667.43",02/12/2019
Delivery Units,Adults and Health,Other Agencies - Third Party P,90213892,THE BARNETGROUP LIMITED,"2,144.00",02/12/2019
Delivery Units,Adults and Health,Other Agencies - Third Party P,90213893,THE BARNETGROUP LIMITED,"2,144.00",02/12/2019
Delivery Units,Adults and Health,Other Agencies - Third Party P,90213895,THE BARNETGROUP LIMITED,"2,304.00",02/12/2019
Delivery Units,Adults and Health,Other Agencies - Third Party P,90213897,THE BARNETGROUP LIMITED,"2,144.00",02/12/2019
Delivery Units,Adults and Health,Other Agencies - Third Party P,90213898,THE BARNETGROUP LIMITED,"2,144.00",02/12/2019
Delivery Units,Adults and Health,Other Agencies - Third Party P,90213899,THE BARNETGROUP LIMITED,"2,144.00",02/12/2019
Delivery Units,Adults and Health,Other Agencies - Third Party P,90213900,THE BARNETGROUP LIMITED,"2,144.00",02/12/2019
Delivery Units,Adults and Health,Other Agencies - Third Party P,90213902,THE BARNETGROUP LIMITED,"2,144.00",02/12/2019
Delivery Units,Adults and Health,Other Agencies - Third Party P,90213903,THE BARNETGROUP LIMITED,"2,144.00",02/12/2019
Delivery Units,Adults and Health,Other Agencies - Third Party P,90213904,THE BARNETGROUP LIMITED,"2,144.00",02/12/2019
Delivery Units,Adults and Health,Other Agencies - Third Party P,90213906,THE BARNETGROUP LIMITED,"4,080.00",02/12/2019
Delivery Units,Adults and Health,Other Agencies - Third Party P,90213907,THE BARNETGROUP LIMITED,"2,304.00",02/12/2019
Delivery Units,Adults and Health,Other Agencies - Third Party P,90213908,THE BARNETGROUP LIMITED,"2,304.00",02/12/2019
Delivery Units,Adults and Health,Other Agencies - Third Party P,90213910,THE BARNETGROUP LIMITED,"2,304.00",02/12/2019
Delivery Units,Adults and Health,Other Agencies - Third Party P,90213911,THE BARNETGROUP LIMITED,"2,304.00",02/12/2019
Delivery Units,Adults and Health,Other Agencies - Third Party P,90213912,THE BARNETGROUP LIMITED,"2,304.00",02/12/2019
Delivery Units,Adults and Health,Other Agencies - Third Party P,90213913,THE BARNETGROUP LIMITED,"2,304.00",02/12/2019
Delivery Units,Adults and Health,Other Agencies - Third Party P,90213914,THE BARNETGROUP LIMITED,"2,304.00",02/12/2019
Delivery Units,Adults and Health,Other Agencies - Third Party P,90213915,THE BARNETGROUP LIMITED,"2,304.00",02/12/2019
Delivery Units,Adults and Health,Other Agencies - Third Party P,90213916,THE BARNETGROUP LIMITED,"2,144.00",02/12/2019
Delivery Units,Adults and Health,Other Agencies - Third Party P,90213917,THE BARNETGROUP LIMITED,"2,144.00",02/12/2019
Delivery Units,Adults and Health,Other Agencies - Third Party P,90213918,THE BARNETGROUP LIMITED,"2,144.00",02/12/2019
Delivery Units,Adults and Health,Other Agencies - Third Party P,90213919,THE BARNETGROUP LIMITED,"2,304.00",02/12/2019
Delivery Units,Adults and Health,Other Agencies - Third Party P,90213920,THE BARNETGROUP LIMITED,"2,144.00",02/12/2019
Delivery Units,Adults and Health,Other Agencies - Third Party P,90213921,THE BARNETGROUP LIMITED,"2,304.00",02/12/2019
Delivery Units,Adults and Health,Other Agencies - Third Party P,90213923,THE BARNETGROUP LIMITED,"3,000.00",02/12/2019
Delivery Units,Adults and Health,Other Agencies - Third Party P,90213924,THE BARNETGROUP LIMITED,500.08,02/12/2019
Delivery Units,Adults and Health,Other Agencies - Third Party P,90214630,AARON COURT CARE HOME,"2,144.91",02/12/2019
Delivery Units,Adults and Health,Other Agencies - Third Party P,90216985,Belmont Lodge Care Centre,"2,418.04",11/12/2019
Delivery Units,Adults and Health,Other Agencies - Third Party P,90220975,Belmont Lodge Care Centre,"2,418.04",31/12/2019
Delivery Units,Adults and Health,Other Agencies - Third Party P,90221221,Karuna Manor,"4,207.14",31/12/2019
Delivery Units,Adults and Health,Other Agencies - Third Party P,90214770,Angel Healthcare Ltd - Glenmuir House,"2,303.84",05/12/2019
Delivery Units,Adults and Health,Other Agencies - Third Party P,90214771,Angel Healthcare Ltd - Glenmuir House,658.24,05/12/2019
Delivery Units,Adults and Health,Other Agencies - Third Party P,90214772,Angel Healthcare Ltd - Glenmuir House,246.84,05/12/2019
Delivery Units,Adults and Health,Other Agencies - Third Party P,90216986,The Windmill Care Home,"1,872.40",11/12/2019
Delivery Units,Adults and Health,Other Agencies - Third Party P,90218621,Sonnet Care Homes (Essex) Ltd,"4,871.43",19/12/2019
Delivery Units,Adults and Health,Other Agencies - Third Party P,90218659,GCH (Hertfordshire) Ltd T/A,"2,414.68",19/12/2019
Delivery Units,Adults and Health,Other Agencies - Third Party P,90218644,Heathcote Care Home,"4,139.29",19/12/2019
Delivery Units,Adults and Health,Other Agencies - Third Party P,90217700,GCH (North London) t/a The Tudors,"2,300.00",16/12/2019
Delivery Units,Adults and Health,Other Agencies - Third Party P,90219309,Wilton House Ltd,"2,527.24",20/12/2019
Delivery Units,Adults and Health,Other Agencies - Third Party P,90219311,Wilton House Ltd,"2,611.48",20/12/2019
Delivery Units,Adults and Health,Other Agencies - Third Party P,90221858,Wilton House Ltd,"2,724.46",31/12/2019
Delivery Units,Adults and Health,Other Agencies - Third Party P,90216953,HC-One Oval LTD,"2,178.32",11/12/2019
Delivery Units,Adults and Health,Other Agencies - Third Party P,90218254,HC-One Oval LTD,"2,178.32",17/12/2019
Delivery Units,Adults and Health,Other Agencies - Third Party P,90218255,HC-One Oval LTD,"2,178.32",17/12/2019
Delivery Units,Adults and Health,Other Agencies - Third Party P,90218256,HC-One Oval LTD,"2,178.32",17/12/2019
Delivery Units,Adults and Health,Other Agencies - Third Party P,90218257,HC-One Oval LTD,"2,178.32",17/12/2019
Delivery Units,Adults and Health,Other Agencies - Third Party P,90219314,REDACTED - PERSONAL DATA,"2,618.44",20/12/2019
Delivery Units,Adults and Health,Other Agencies - Third Party P,90221842,Wordsworth House Care Home,"2,657.14",31/12/2019
Delivery Units,Adults and Health,Other Agencies - Third Party P,90217706,Country Court Care Homes t/a Lyle House,"3,764.29",16/12/2019
Delivery Units,Adults and Health,Other Agencies - Third Party P,90217707,Country Court Care Homes t/a Lyle House,"3,642.86",16/12/2019
Delivery Units,Adults and Health,Other Agencies - Third Party P,90221866,Country Court Care Homes t/a Lyle House,"3,764.29",31/12/2019
Delivery Units,Adults and Health,Other Agencies - Third Party P,90218640,Jackson Care Limited,"5,314.29",19/12/2019
Delivery Units,Adults and Health,Other Agencies - Third Party P,90217719,A.H.J. David Ltd t/a Florence House,"3,200.00",16/12/2019
Delivery Units,Adults and Health,Other Agencies - Third Party P,90214747,Safequarter South Ltd,"2,685.80",04/12/2019
Delivery Units,Adults and Health,Other Agencies - Third Party P,90214748,Safequarter South Ltd,"2,517.94",04/12/2019
Delivery Units,Adults and Health,Other Agencies - Third Party P,90221851,Safequarter South Ltd,"2,601.87",31/12/2019
Delivery Units,Adults and Health,Direct Transfer Payments to So,90216002,REDACTED - PERSONAL DATA,"2,931.20",11/12/2019
Delivery Units,Adults and Health,Direct Transfer Payments to So,90216080,REDACTED - PERSONAL DATA,"3,846.40",11/12/2019
Delivery Units,Adults and Health,Direct Transfer Payments to So,90215721,REDACTED - PERSONAL DATA,"3,834.44",11/12/2019
Delivery Units,Adults and Health,Direct Transfer Payments to So,90215987,REDACTED - PERSONAL DATA,240.00,11/12/2019
Delivery Units,Adults and Health,Direct Transfer Payments to So,90215668,REDACTED - PERSONAL DATA,295.68,11/12/2019
Delivery Units,Adults and Health,Direct Transfer Payments to So,90216406,REDACTED - PERSONAL DATA,"1,560.72",11/12/2019
Delivery Units,Adults and Health,Direct Transfer Payments to So,90215597,REDACTED - PERSONAL DATA,961.60,11/12/2019
Delivery Units,Adults and Health,Direct Transfer Payments to So,90216380,REDACTED - PERSONAL DATA,144.24,11/12/2019
Delivery Units,Adults and Health,Fees and Charges,90216519,REDACTED - PERSONAL DATA,220.00,11/12/2019
Delivery Units,Adults and Health,Direct Transfer Payments to So,90215646,REDACTED - PERSONAL DATA,"2,638.76",11/12/2019
Delivery Units,Adults and Health,Direct Transfer Payments to So,90216051,REDACTED - PERSONAL DATA,"1,185.32",11/12/2019
Delivery Units,Adults and Health,Direct Transfer Payments to So,90216070,REDACTED - PERSONAL DATA,795.56,11/12/2019
Delivery Units,Adults and Health,Direct Transfer Payments to So,90215722,REDACTED - PERSONAL DATA,852.76,11/12/2019
Delivery Units,Adults and Health,Direct Transfer Payments to So,90216022,REDACTED - PERSONAL DATA,889.48,11/12/2019
Delivery Units,Adults and Health,Direct Transfer Payments to So,90215652,REDACTED - PERSONAL DATA,611.40,11/12/2019
Delivery Units,Adults and Health,Direct Transfer Payments to So,90216522,REDACTED - PERSONAL DATA,"1,310.18",11/12/2019
Delivery Units,Adults and Health,Direct Transfer Payments to So,90215778,REDACTED - PERSONAL DATA,"2,703.12",11/12/2019
Delivery Units,Adults and Health,Direct Transfer Payments to So,90216487,REDACTED - PERSONAL DATA,349.12,11/12/2019
Delivery Units,Adults and Health,Direct Transfer Payments to So,90216158,REDACTED - PERSONAL DATA,377.88,11/12/2019
Delivery Units,Adults and Health,Direct Transfer Payments to So,90216270,REDACTED - PERSONAL DATA,913.52,11/12/2019
Delivery Units,Adults and Health,Direct Transfer Payments to So,90216527,REDACTED - PERSONAL DATA,"2,694.97",11/12/2019
Delivery Units,Adults and Health,Direct Transfer Payments to So,90215756,REDACTED - PERSONAL DATA,"1,143.16",11/12/2019
Delivery Units,Adults and Health,Direct Transfer Payments to So,90216339,REDACTED - PERSONAL DATA,"2,933.80",11/12/2019
Delivery Units,Adults and Health,Direct Transfer Payments to So,90216088,REDACTED - PERSONAL DATA,"1,545.48",11/12/2019
Delivery Units,Adults and Health,Direct Transfer Payments to So,90215631,REDACTED - PERSONAL DATA,"1,699.72",11/12/2019
Delivery Units,Adults and Health,Direct Transfer Payments to So,90216489,REDACTED - PERSONAL DATA,"1,260.00",11/12/2019
Delivery Units,Adults and Health,Fees and Charges,90215866,REDACTED - PERSONAL DATA,-428.72,11/12/2019
Delivery Units,Adults and Health,Direct Transfer Payments to So,90216308,REDACTED - PERSONAL DATA,640.00,11/12/2019
Delivery Units,Adults and Health,Direct Transfer Payments to So,90216346,REDACTED - PERSONAL DATA,"1,029.76",11/12/2019
Delivery Units,Adults and Health,Direct Transfer Payments to So,90216097,REDACTED - PERSONAL DATA,351.52,11/12/2019
Delivery Units,Adults and Health,Direct Transfer Payments to So,90216220,REDACTED - PERSONAL DATA,"1,353.04",11/12/2019
Delivery Units,Adults and Health,Direct Transfer Payments to So,90216325,REDACTED - PERSONAL DATA,490.04,11/12/2019
Delivery Units,Adults and Health,Direct Transfer Payments to So,90215932,REDACTED - PERSONAL DATA,975.36,11/12/2019
Delivery Units,Adults and Health,Direct Transfer Payments to So,90215925,REDACTED - PERSONAL DATA,800.00,11/12/2019
Delivery Units,Adults and Health,Direct Transfer Payments to So,90215938,REDACTED - PERSONAL DATA,"2,349.16",11/12/2019
Delivery Units,Adults and Health,Direct Transfer Payments to So,90216417,REDACTED - PERSONAL DATA,966.40,11/12/2019
Delivery Units,Adults and Health,Direct Transfer Payments to So,90216334,REDACTED - PERSONAL DATA,480.80,11/12/2019
Delivery Units,Adults and Health,Direct Transfer Payments to So,90216418,REDACTED - PERSONAL DATA,"3,444.00",11/12/2019
Delivery Units,Adults and Health,Direct Transfer Payments to So,90216528,REDACTED - PERSONAL DATA,98.20,11/12/2019
Delivery Units,Adults and Health,Direct Transfer Payments to So,90216337,REDACTED - PERSONAL DATA,451.92,11/12/2019
Delivery Units,Adults and Health,Direct Transfer Payments to So,90216008,REDACTED - PERSONAL DATA,649.08,11/12/2019
Delivery Units,Adults and Health,Direct Transfer Payments to So,90215953,REDACTED - PERSONAL DATA,348.00,11/12/2019
Delivery Units,Adults and Health,Direct Transfer Payments to So,90215892,REDACTED - PERSONAL DATA,547.08,11/12/2019
Delivery Units,Adults and Health,Direct Transfer Payments to So,90216341,REDACTED - PERSONAL DATA,"4,093.84",11/12/2019
Delivery Units,Adults and Health,Direct Transfer Payments to So,90215836,REDACTED - PERSONAL DATA,700.00,11/12/2019
Delivery Units,Adults and Health,Direct Transfer Payments to So,90215858,REDACTED - PERSONAL DATA,"1,560.72",11/12/2019
Delivery Units,Adults and Health,Direct Transfer Payments to So,90215896,REDACTED - PERSONAL DATA,560.00,11/12/2019
Delivery Units,Adults and Health,Direct Transfer Payments to So,90216221,REDACTED - PERSONAL DATA,"2,316.96",11/12/2019
Delivery Units,Adults and Health,Direct Transfer Payments to So,90215959,REDACTED - PERSONAL DATA,"1,431.96",11/12/2019
Delivery Units,Adults and Health,Direct Transfer Payments to So,90215841,REDACTED - PERSONAL DATA,410.96,11/12/2019
Delivery Units,Adults and Health,Direct Transfer Payments to So,90215840,REDACTED - PERSONAL DATA,360.60,11/12/2019
Delivery Units,Adults and Health,Direct Transfer Payments to So,90216374,REDACTED - PERSONAL DATA,"1,208.00",11/12/2019
Delivery Units,Adults and Health,Direct Transfer Payments to So,90215856,REDACTED - PERSONAL DATA,"5,097.78",11/12/2019
Delivery Units,Adults and Health,Direct Transfer Payments to So,90216352,REDACTED - PERSONAL DATA,844.40,11/12/2019
Delivery Units,Adults and Health,Direct Transfer Payments to So,90216386,REDACTED - PERSONAL DATA,"3,279.20",11/12/2019
Delivery Units,Adults and Health,Direct Transfer Payments to So,90215968,REDACTED - PERSONAL DATA,960.00,11/12/2019
Delivery Units,Adults and Health,Direct Transfer Payments to So,90215848,REDACTED - PERSONAL DATA,"2,066.00",11/12/2019
Delivery Units,Adults and Health,Direct Transfer Payments to So,90216357,REDACTED - PERSONAL DATA,"2,092.96",11/12/2019
Delivery Units,Adults and Health,Direct Transfer Payments to So,90216023,REDACTED - PERSONAL DATA,231.40,11/12/2019
Delivery Units,Adults and Health,Direct Transfer Payments to So,90216400,REDACTED - PERSONAL DATA,810.00,11/12/2019
Delivery Units,Adults and Health,Direct Transfer Payments to So,90215852,REDACTED - PERSONAL DATA,478.48,11/12/2019
Delivery Units,Adults and Health,Direct Transfer Payments to So,90216460,REDACTED - PERSONAL DATA,944.00,11/12/2019
Delivery Units,Adults and Health,Direct Transfer Payments to So,90215973,REDACTED - PERSONAL DATA,"2,400.00",11/12/2019
Delivery Units,Adults and Health,Direct Transfer Payments to So,90215912,REDACTED - PERSONAL DATA,772.32,11/12/2019
Delivery Units,Adults and Health,Direct Transfer Payments to So,90216317,REDACTED - PERSONAL DATA,"1,586.48",11/12/2019
Delivery Units,Adults and Health,Direct Transfer Payments to So,90215862,REDACTED - PERSONAL DATA,"2,518.48",11/12/2019
Delivery Units,Adults and Health,Direct Transfer Payments to So,90216363,REDACTED - PERSONAL DATA,"1,351.56",11/12/2019
Delivery Units,Adults and Health,Direct Transfer Payments to So,90216129,REDACTED - PERSONAL DATA,792.88,11/12/2019
Delivery Units,Adults and Health,Direct Transfer Payments to So,90216316,REDACTED - PERSONAL DATA,384.64,11/12/2019
Delivery Units,Adults and Health,Direct Transfer Payments to So,90215863,REDACTED - PERSONAL DATA,321.80,11/12/2019
Delivery Units,Adults and Health,Direct Transfer Payments to So,90216290,REDACTED - PERSONAL DATA,390.00,11/12/2019
Delivery Units,Adults and Health,Direct Transfer Payments to So,90215981,REDACTED - PERSONAL DATA,"1,582.00",11/12/2019
Delivery Units,Adults and Health,Direct Transfer Payments to So,90215869,REDACTED - PERSONAL DATA,136.00,11/12/2019
Delivery Units,Adults and Health,Direct Transfer Payments to So,90215982,REDACTED - PERSONAL DATA,"4,608.04",11/12/2019
Delivery Units,Adults and Health,Direct Transfer Payments to So,90215985,REDACTED - PERSONAL DATA,"2,520.00",11/12/2019
Delivery Units,Adults and Health,Direct Transfer Payments to So,90216381,REDACTED - PERSONAL DATA,"1,351.56",11/12/2019
Delivery Units,Adults and Health,Direct Transfer Payments to So,90216144,REDACTED - PERSONAL DATA,"2,300.00",11/12/2019
Delivery Units,Adults and Health,Direct Transfer Payments to So,90216188,REDACTED - PERSONAL DATA,589.68,11/12/2019
Delivery Units,Adults and Health,Direct Transfer Payments to So,90216466,REDACTED - PERSONAL DATA,730.92,11/12/2019
Delivery Units,Adults and Health,Direct Transfer Payments to So,90216471,REDACTED - PERSONAL DATA,"1,346.12",11/12/2019
Delivery Units,Adults and Health,Direct Transfer Payments to So,90216302,REDACTED - PERSONAL DATA,140.00,11/12/2019
Delivery Units,Adults and Health,Fees and Charges,90220540,REDACTED - PERSONAL DATA,0.06,24/12/2019
Delivery Units,Adults and Health,Direct Transfer Payments to So,90216203,REDACTED - PERSONAL DATA,"1,238.92",11/12/2019
Delivery Units,Adults and Health,Direct Transfer Payments to So,90216300,REDACTED - PERSONAL DATA,903.92,11/12/2019
Delivery Units,Adults and Health,Direct Transfer Payments to So,90216164,REDACTED - PERSONAL DATA,"2,796.44",11/12/2019
Delivery Units,Adults and Health,Direct Transfer Payments to So,90216206,REDACTED - PERSONAL DATA,482.72,11/12/2019
Delivery Units,Adults and Health,Direct Transfer Payments to So,90216160,REDACTED - PERSONAL DATA,"1,238.92",11/12/2019
Delivery Units,Adults and Health,Direct Transfer Payments to So,90216124,REDACTED - PERSONAL DATA,"1,194.24",11/12/2019
Delivery Units,Adults and Health,Direct Transfer Payments to So,90216170,REDACTED - PERSONAL DATA,"3,000.00",11/12/2019
Delivery Units,Adults and Health,Direct Transfer Payments to So,90216174,REDACTED - PERSONAL DATA,"2,843.24",11/12/2019
Delivery Units,Adults and Health,Direct Transfer Payments to So,90216305,REDACTED - PERSONAL DATA,"2,751.32",11/12/2019
Delivery Units,Adults and Health,Direct Transfer Payments to So,90216177,REDACTED - PERSONAL DATA,"2,781.72",11/12/2019
Delivery Units,Adults and Health,Direct Transfer Payments to So,90216319,REDACTED - PERSONAL DATA,586.96,11/12/2019
Delivery Units,Adults and Health,Direct Transfer Payments to So,90216223,REDACTED - PERSONAL DATA,675.80,11/12/2019
Delivery Units,Adults and Health,Direct Transfer Payments to So,90216492,REDACTED - PERSONAL DATA,"2,331.60",11/12/2019
Delivery Units,Adults and Health,Direct Transfer Payments to So,90216180,REDACTED - PERSONAL DATA,"1,802.08",11/12/2019
Delivery Units,Adults and Health,Direct Transfer Payments to So,90216133,REDACTED - PERSONAL DATA,"1,351.56",11/12/2019
Delivery Units,Adults and Health,Direct Transfer Payments to So,90216320,REDACTED - PERSONAL DATA,"2,375.08",11/12/2019
Delivery Units,Adults and Health,Direct Transfer Payments to So,90216497,REDACTED - PERSONAL DATA,"1,350.80",11/12/2019
Delivery Units,Adults and Health,Fees and Charges,90216520,REDACTED - PERSONAL DATA,"2,381.32",11/12/2019
Delivery Units,Adults and Health,Fees and Charges,90216532,REDACTED - PERSONAL DATA,-50.96,11/12/2019
Delivery Units,Adults and Health,Fees and Charges,90216529,REDACTED - PERSONAL DATA,0.16,11/12/2019
Delivery Units,Adults and Health,Fees and Charges,90217436,REDACTED - PERSONAL DATA,0.04,13/12/2019
Delivery Units,Adults and Health,Direct Transfer Payments to So,90218148,REDACTED - PERSONAL DATA,"1,051.46",17/12/2019
Delivery Units,Adults and Health,Fees and Charges,90218152,REDACTED - PERSONAL DATA,0.12,17/12/2019
Delivery Units,Adults and Health,Fees and Charges,90218153,REDACTED - PERSONAL DATA,-39.22,17/12/2019
Delivery Units,Adults and Health,,90216464,REDACTED - PERSONAL DATA,935.68,31/12/2019
Delivery Units,Adults and Health,,90216190,REDACTED - PERSONAL DATA,990.64,31/12/2019
Delivery Units,Adults and Health,,90216161,REDACTED - PERSONAL DATA,215.40,31/12/2019
Delivery Units,Adults and Health,,90216146,REDACTED - PERSONAL DATA,"1,550.40",31/12/2019
Delivery Units,Adults and Health,,90216295,REDACTED - PERSONAL DATA,583.84,31/12/2019
Delivery Units,Adults and Health,,90216384,REDACTED - PERSONAL DATA,"1,062.00",31/12/2019
Delivery Units,Adults and Health,,90216106,REDACTED - PERSONAL DATA,"1,787.84",31/12/2019
Delivery Units,Adults and Health,,90216465,REDACTED - PERSONAL DATA,"1,071.92",31/12/2019
Delivery Units,Adults and Health,,90216191,REDACTED - PERSONAL DATA,296.48,31/12/2019
Delivery Units,Adults and Health,,90216299,REDACTED - PERSONAL DATA,764.32,31/12/2019
Delivery Units,Adults and Health,,90216467,REDACTED - PERSONAL DATA,"1,022.04",31/12/2019
Delivery Units,Adults and Health,Other Agencies - Third Party P,90219015,WESTMINSTER HOMECARE LTD,236.11,20/12/2019
Delivery Units,Adults and Health,Other Agencies - Third Party P,90219017,WESTMINSTER HOMECARE LTD,151.78,20/12/2019
Delivery Units,Adults and Health,Other Agencies - Third Party P,90219018,WESTMINSTER HOMECARE LTD,63.25,20/12/2019
Delivery Units,Adults and Health,Other Agencies - Third Party P,90219019,WESTMINSTER HOMECARE LTD,104.02,20/12/2019
Delivery Units,Adults and Health,Other Agencies - Third Party P,90219020,WESTMINSTER HOMECARE LTD,80.11,20/12/2019
Delivery Units,Adults and Health,Other Agencies - Third Party P,90219021,WESTMINSTER HOMECARE LTD,42.15,20/12/2019
Delivery Units,Adults and Health,Other Agencies - Third Party P,90219022,WESTMINSTER HOMECARE LTD,84.35,20/12/2019
Delivery Units,Adults and Health,Other Agencies - Third Party P,90219024,WESTMINSTER HOMECARE LTD,177.10,20/12/2019
Delivery Units,Adults and Health,Other Agencies - Third Party P,90219025,WESTMINSTER HOMECARE LTD,202.36,20/12/2019
Delivery Units,Adults and Health,Other Agencies - Third Party P,90219026,WESTMINSTER HOMECARE LTD,16.86,20/12/2019
Delivery Units,Adults and Health,Other Agencies - Third Party P,90219027,WESTMINSTER HOMECARE LTD,16.86,20/12/2019
Delivery Units,Adults and Health,Other Agencies - Third Party P,90219028,WESTMINSTER HOMECARE LTD,25.29,20/12/2019
Delivery Units,Adults and Health,Other Agencies - Third Party P,90219029,WESTMINSTER HOMECARE LTD,274.08,20/12/2019
Delivery Units,Adults and Health,Other Agencies - Third Party P,90219030,WESTMINSTER HOMECARE LTD,252.98,20/12/2019
Delivery Units,Adults and Health,Other Agencies - Third Party P,90219031,WESTMINSTER HOMECARE LTD,147.56,20/12/2019
Delivery Units,Adults and Health,Other Agencies - Third Party P,90219034,WESTMINSTER HOMECARE LTD,33.46,20/12/2019
Delivery Units,Adults and Health,Other Agencies - Third Party P,90219035,WESTMINSTER HOMECARE LTD,282.00,20/12/2019
Delivery Units,Adults and Health,Other Agencies - Third Party P,90219036,WESTMINSTER HOMECARE LTD,354.20,20/12/2019
Delivery Units,Adults and Health,Other Agencies - Third Party P,90219037,WESTMINSTER HOMECARE LTD,147.56,20/12/2019
Delivery Units,Adults and Health,Other Agencies - Third Party P,90219038,WESTMINSTER HOMECARE LTD,261.37,20/12/2019
Delivery Units,Adults and Health,Other Agencies - Third Party P,90219039,WESTMINSTER HOMECARE LTD,63.25,20/12/2019
Delivery Units,Adults and Health,Other Agencies - Third Party P,90219040,WESTMINSTER HOMECARE LTD,54.80,20/12/2019
Delivery Units,Adults and Health,Other Agencies - Third Party P,90219041,WESTMINSTER HOMECARE LTD,59.01,20/12/2019
Delivery Units,Adults and Health,Other Agencies - Third Party P,90219042,WESTMINSTER HOMECARE LTD,111.62,20/12/2019
Delivery Units,Adults and Health,Other Agencies - Third Party P,90219045,WESTMINSTER HOMECARE LTD,113.87,20/12/2019
Delivery Units,Adults and Health,Other Agencies - Third Party P,90219046,WESTMINSTER HOMECARE LTD,413.21,20/12/2019
Delivery Units,Adults and Health,Other Agencies - Third Party P,90219047,WESTMINSTER HOMECARE LTD,50.59,20/12/2019
Delivery Units,Adults and Health,Other Agencies - Third Party P,90219049,WESTMINSTER HOMECARE LTD,88.55,20/12/2019
Delivery Units,Adults and Health,Other Agencies - Third Party P,90219050,WESTMINSTER HOMECARE LTD,16.86,20/12/2019
Delivery Units,Adults and Health,Other Agencies - Third Party P,90219051,WESTMINSTER HOMECARE LTD,147.55,20/12/2019
Delivery Units,Adults and Health,Other Agencies - Third Party P,90219052,WESTMINSTER HOMECARE LTD,265.58,20/12/2019
Delivery Units,Adults and Health,Other Agencies - Third Party P,90219053,WESTMINSTER HOMECARE LTD,236.11,20/12/2019
Delivery Units,Adults and Health,Other Agencies - Third Party P,90219055,WESTMINSTER HOMECARE LTD,156.00,20/12/2019
Delivery Units,Adults and Health,Other Agencies - Third Party P,90219056,WESTMINSTER HOMECARE LTD,63.25,20/12/2019
Delivery Units,Adults and Health,Other Agencies - Third Party P,90219057,WESTMINSTER HOMECARE LTD,100.10,20/12/2019
Delivery Units,Adults and Health,Other Agencies - Third Party P,90219058,WESTMINSTER HOMECARE LTD,80.11,20/12/2019
Delivery Units,Adults and Health,Other Agencies - Third Party P,90219059,WESTMINSTER HOMECARE LTD,42.15,20/12/2019
Delivery Units,Adults and Health,Other Agencies - Third Party P,90219060,WESTMINSTER HOMECARE LTD,84.35,20/12/2019
Delivery Units,Adults and Health,Other Agencies - Third Party P,90219062,WESTMINSTER HOMECARE LTD,171.21,20/12/2019
Delivery Units,Adults and Health,Other Agencies - Third Party P,90219063,WESTMINSTER HOMECARE LTD,198.15,20/12/2019
Delivery Units,Adults and Health,Other Agencies - Third Party P,90219064,WESTMINSTER HOMECARE LTD,12.65,20/12/2019
Delivery Units,Adults and Health,Other Agencies - Third Party P,90219065,WESTMINSTER HOMECARE LTD,16.86,20/12/2019
Delivery Units,Adults and Health,Other Agencies - Third Party P,90219066,WESTMINSTER HOMECARE LTD,274.08,20/12/2019
Delivery Units,Adults and Health,Other Agencies - Third Party P,90219067,WESTMINSTER HOMECARE LTD,229.09,20/12/2019
Delivery Units,Adults and Health,Other Agencies - Third Party P,90219068,WESTMINSTER HOMECARE LTD,143.34,20/12/2019
Delivery Units,Adults and Health,Other Agencies - Third Party P,90219071,WESTMINSTER HOMECARE LTD,319.10,20/12/2019
Delivery Units,Adults and Health,Other Agencies - Third Party P,90219072,WESTMINSTER HOMECARE LTD,344.92,20/12/2019
Delivery Units,Adults and Health,Other Agencies - Third Party P,90219073,WESTMINSTER HOMECARE LTD,143.34,20/12/2019
Delivery Units,Adults and Health,Other Agencies - Third Party P,90219074,WESTMINSTER HOMECARE LTD,261.37,20/12/2019
Delivery Units,Adults and Health,Other Agencies - Third Party P,90219075,WESTMINSTER HOMECARE LTD,63.25,20/12/2019
Delivery Units,Adults and Health,Other Agencies - Third Party P,90219076,WESTMINSTER HOMECARE LTD,54.80,20/12/2019
Delivery Units,Adults and Health,Other Agencies - Third Party P,90219077,WESTMINSTER HOMECARE LTD,59.01,20/12/2019
Delivery Units,Adults and Health,Other Agencies - Third Party P,90219078,WESTMINSTER HOMECARE LTD,87.16,20/12/2019
Delivery Units,Adults and Health,Other Agencies - Third Party P,90219081,WESTMINSTER HOMECARE LTD,50.61,20/12/2019
Delivery Units,Adults and Health,Other Agencies - Third Party P,90219082,WESTMINSTER HOMECARE LTD,413.21,20/12/2019
Delivery Units,Adults and Health,Other Agencies - Third Party P,90219083,WESTMINSTER HOMECARE LTD,59.03,20/12/2019
Delivery Units,Adults and Health,Other Agencies - Third Party P,90219085,WESTMINSTER HOMECARE LTD,71.68,20/12/2019
Delivery Units,Adults and Health,Other Agencies - Third Party P,90219086,WESTMINSTER HOMECARE LTD,109.61,20/12/2019
Delivery Units,Adults and Health,Other Agencies - Third Party P,90219087,WESTMINSTER HOMECARE LTD,257.16,20/12/2019
Delivery Units,Adults and Health,Other Agencies - Third Party P,90219088,WESTMINSTER HOMECARE LTD,37.94,20/12/2019
Delivery Units,Adults and Health,Other Agencies - Third Party P,90219089,WESTMINSTER HOMECARE LTD,212.77,20/12/2019
Delivery Units,Adults and Health,Other Agencies - Third Party P,90219091,WESTMINSTER HOMECARE LTD,164.43,20/12/2019
Delivery Units,Adults and Health,Other Agencies - Third Party P,90219092,WESTMINSTER HOMECARE LTD,63.25,20/12/2019
Delivery Units,Adults and Health,Other Agencies - Third Party P,90219093,WESTMINSTER HOMECARE LTD,102.90,20/12/2019
Delivery Units,Adults and Health,Other Agencies - Third Party P,90219094,WESTMINSTER HOMECARE LTD,84.33,20/12/2019
Delivery Units,Adults and Health,Other Agencies - Third Party P,90219095,WESTMINSTER HOMECARE LTD,42.15,20/12/2019
Delivery Units,Adults and Health,Other Agencies - Third Party P,90219096,WESTMINSTER HOMECARE LTD,84.35,20/12/2019
Delivery Units,Adults and Health,Other Agencies - Third Party P,90219098,WESTMINSTER HOMECARE LTD,167.55,20/12/2019
Delivery Units,Adults and Health,Other Agencies - Third Party P,90219099,WESTMINSTER HOMECARE LTD,206.57,20/12/2019
Delivery Units,Adults and Health,Other Agencies - Third Party P,90219100,WESTMINSTER HOMECARE LTD,16.86,20/12/2019
Delivery Units,Adults and Health,Other Agencies - Third Party P,90219101,WESTMINSTER HOMECARE LTD,25.29,20/12/2019
Delivery Units,Adults and Health,Other Agencies - Third Party P,90219102,WESTMINSTER HOMECARE LTD,269.86,20/12/2019
Delivery Units,Adults and Health,Other Agencies - Third Party P,90219103,WESTMINSTER HOMECARE LTD,223.20,20/12/2019
Delivery Units,Adults and Health,Other Agencies - Third Party P,90219104,WESTMINSTER HOMECARE LTD,143.35,20/12/2019
Delivery Units,Adults and Health,Other Agencies - Third Party P,90219107,WESTMINSTER HOMECARE LTD,310.39,20/12/2019
Delivery Units,Adults and Health,Other Agencies - Third Party P,90219108,WESTMINSTER HOMECARE LTD,331.42,20/12/2019
Delivery Units,Adults and Health,Other Agencies - Third Party P,90219109,WESTMINSTER HOMECARE LTD,126.48,20/12/2019
Delivery Units,Adults and Health,Other Agencies - Third Party P,90219110,WESTMINSTER HOMECARE LTD,252.95,20/12/2019
Delivery Units,Adults and Health,Other Agencies - Third Party P,90219111,WESTMINSTER HOMECARE LTD,63.25,20/12/2019
Delivery Units,Adults and Health,Other Agencies - Third Party P,90219112,WESTMINSTER HOMECARE LTD,59.01,20/12/2019
Delivery Units,Adults and Health,Other Agencies - Third Party P,90219113,WESTMINSTER HOMECARE LTD,50.59,20/12/2019
Delivery Units,Adults and Health,Other Agencies - Third Party P,90219114,WESTMINSTER HOMECARE LTD,97.85,20/12/2019
Delivery Units,Adults and Health,Other Agencies - Third Party P,90219117,WESTMINSTER HOMECARE LTD,409.00,20/12/2019
Delivery Units,Adults and Health,Other Agencies - Third Party P,90219118,WESTMINSTER HOMECARE LTD,59.03,20/12/2019
Delivery Units,Adults and Health,Other Agencies - Third Party P,90219120,WESTMINSTER HOMECARE LTD,75.90,20/12/2019
Delivery Units,Adults and Health,Other Agencies - Third Party P,90219121,WESTMINSTER HOMECARE LTD,8.43,20/12/2019
Delivery Units,Adults and Health,Other Agencies - Third Party P,90219122,WESTMINSTER HOMECARE LTD,92.75,20/12/2019
Delivery Units,Adults and Health,Other Agencies - Third Party P,90219123,WESTMINSTER HOMECARE LTD,257.16,20/12/2019
Delivery Units,Adults and Health,Other Agencies - Third Party P,90219124,WESTMINSTER HOMECARE LTD,8.43,20/12/2019
Delivery Units,Adults and Health,Other Agencies - Third Party P,90219125,WESTMINSTER HOMECARE LTD,33.73,20/12/2019
Delivery Units,Adults and Health,Other Agencies - Third Party P,90219126,WESTMINSTER HOMECARE LTD,244.52,20/12/2019
Delivery Units,Adults and Health,Other Agencies - Third Party P,90219127,WESTMINSTER HOMECARE LTD,204.07,20/12/2019
Delivery Units,Adults and Health,Other Agencies - Third Party P,90219129,WESTMINSTER HOMECARE LTD,160.21,20/12/2019
Delivery Units,Adults and Health,Other Agencies - Third Party P,90219130,WESTMINSTER HOMECARE LTD,63.25,20/12/2019
Delivery Units,Adults and Health,Other Agencies - Third Party P,90219131,WESTMINSTER HOMECARE LTD,151.24,20/12/2019
Delivery Units,Adults and Health,Other Agencies - Third Party P,90219132,WESTMINSTER HOMECARE LTD,80.11,20/12/2019
Delivery Units,Adults and Health,Other Agencies - Third Party P,90219133,WESTMINSTER HOMECARE LTD,42.15,20/12/2019
Delivery Units,Adults and Health,Other Agencies - Third Party P,90219134,WESTMINSTER HOMECARE LTD,84.35,20/12/2019
Delivery Units,Adults and Health,Other Agencies - Third Party P,90219136,WESTMINSTER HOMECARE LTD,177.10,20/12/2019
Delivery Units,Adults and Health,Other Agencies - Third Party P,90219137,WESTMINSTER HOMECARE LTD,206.57,20/12/2019
Delivery Units,Adults and Health,Other Agencies - Third Party P,90219138,WESTMINSTER HOMECARE LTD,16.86,20/12/2019
Delivery Units,Adults and Health,Other Agencies - Third Party P,90219139,WESTMINSTER HOMECARE LTD,16.86,20/12/2019
Delivery Units,Adults and Health,Other Agencies - Third Party P,90219140,WESTMINSTER HOMECARE LTD,278.30,20/12/2019
Delivery Units,Adults and Health,Other Agencies - Third Party P,90219141,WESTMINSTER HOMECARE LTD,215.05,20/12/2019
Delivery Units,Adults and Health,Other Agencies - Third Party P,90219142,WESTMINSTER HOMECARE LTD,143.34,20/12/2019
Delivery Units,Adults and Health,Other Agencies - Third Party P,90219143,WESTMINSTER HOMECARE LTD,8.43,20/12/2019
Delivery Units,Adults and Health,Other Agencies - Third Party P,90219146,WESTMINSTER HOMECARE LTD,33.73,20/12/2019
Delivery Units,Adults and Health,Other Agencies - Third Party P,90219147,WESTMINSTER HOMECARE LTD,353.98,20/12/2019
Delivery Units,Adults and Health,Other Agencies - Third Party P,90219148,WESTMINSTER HOMECARE LTD,354.20,20/12/2019
Delivery Units,Adults and Health,Other Agencies - Third Party P,90219149,WESTMINSTER HOMECARE LTD,147.56,20/12/2019
Delivery Units,Adults and Health,Other Agencies - Third Party P,90219150,WESTMINSTER HOMECARE LTD,257.16,20/12/2019
Delivery Units,Adults and Health,Other Agencies - Third Party P,90219151,WESTMINSTER HOMECARE LTD,63.25,20/12/2019
Delivery Units,Adults and Health,Other Agencies - Third Party P,90219152,WESTMINSTER HOMECARE LTD,54.80,20/12/2019
Delivery Units,Adults and Health,Other Agencies - Third Party P,90219153,WESTMINSTER HOMECARE LTD,59.01,20/12/2019
Delivery Units,Adults and Health,Other Agencies - Third Party P,90219154,WESTMINSTER HOMECARE LTD,102.63,20/12/2019
Delivery Units,Adults and Health,Other Agencies - Third Party P,90219157,WESTMINSTER HOMECARE LTD,413.21,20/12/2019
Delivery Units,Adults and Health,Other Agencies - Third Party P,90219158,WESTMINSTER HOMECARE LTD,63.25,20/12/2019
Delivery Units,Adults and Health,Other Agencies - Third Party P,90219160,WESTMINSTER HOMECARE LTD,88.55,20/12/2019
Delivery Units,Adults and Health,Other Agencies - Third Party P,90219161,WESTMINSTER HOMECARE LTD,16.86,20/12/2019
Delivery Units,Adults and Health,Other Agencies - Third Party P,90219162,WESTMINSTER HOMECARE LTD,105.40,20/12/2019
Delivery Units,Adults and Health,Other Agencies - Third Party P,90219163,WESTMINSTER HOMECARE LTD,261.37,20/12/2019
Delivery Units,Adults and Health,Other Agencies - Third Party P,60144100,ENARA COMMUNITY CARE,"2,527.00",11/12/2019
Delivery Units,Adults and Health,Other Agencies - Third Party P,60144104,ENARA COMMUNITY CARE,"2,527.00",11/12/2019
Delivery Units,Adults and Health,Other Agencies - Third Party P,60144134,ENARA COMMUNITY CARE,"2,527.00",11/12/2019
Delivery Units,Adults and Health,Other Agencies - Third Party P,60144165,ENARA COMMUNITY CARE,"2,527.00",11/12/2019
Delivery Units,Adults and Health,Other Agencies - Third Party P,1000064302,ENARA COMMUNITY CARE,"2,527.00",24/12/2019
Delivery Units,Adults and Health,Other Agencies - Third Party P,1000067002,ENARA COMMUNITY CARE,"2,706.24",24/12/2019
Delivery Units,Adults and Health,Other Agencies - Third Party P,1000072202,ENARA COMMUNITY CARE,"2,527.00",24/12/2019
Delivery Units,Adults and Health,Other Agencies - Third Party P,1000074702,ENARA COMMUNITY CARE,"2,527.00",24/12/2019
Delivery Units,Adults and Health,Other Agencies - Third Party P,90219585,CAREWATCH (BARNET),257.70,20/12/2019
Delivery Units,Adults and Health,Other Agencies - Third Party P,90219586,CAREWATCH (BARNET),644.28,20/12/2019
Delivery Units,Adults and Health,Other Agencies - Third Party P,90219587,CAREWATCH (BARNET),58.00,20/12/2019
Delivery Units,Adults and Health,Other Agencies - Third Party P,90219588,CAREWATCH (BARNET),734.45,20/12/2019
Delivery Units,Adults and Health,Other Agencies - Third Party P,90219589,CAREWATCH (BARNET),277.06,20/12/2019
Delivery Units,Adults and Health,Other Agencies - Third Party P,90219590,CAREWATCH (BARNET),193.28,20/12/2019
Delivery Units,Adults and Health,Other Agencies - Third Party P,90219591,CAREWATCH (BARNET),837.72,20/12/2019
Delivery Units,Adults and Health,Other Agencies - Third Party P,90219592,CAREWATCH (BARNET),126.74,20/12/2019
Delivery Units,Adults and Health,Other Agencies - Third Party P,90219593,CAREWATCH (BARNET),128.86,20/12/2019
Delivery Units,Adults and Health,Other Agencies - Third Party P,90219594,CAREWATCH (BARNET),322.19,20/12/2019
Delivery Units,Adults and Health,Other Agencies - Third Party P,90219595,CAREWATCH (BARNET),21.48,20/12/2019
Delivery Units,Adults and Health,Other Agencies - Third Party P,90219596,CAREWATCH (BARNET),322.19,20/12/2019
Delivery Units,Adults and Health,Other Agencies - Third Party P,90219597,CAREWATCH (BARNET),96.67,20/12/2019
Delivery Units,Adults and Health,Other Agencies - Third Party P,90219598,CAREWATCH (BARNET),216.94,20/12/2019
Delivery Units,Adults and Health,Other Agencies - Third Party P,90219599,CAREWATCH (BARNET),161.10,20/12/2019
Delivery Units,Adults and Health,Other Agencies - Third Party P,90219600,CAREWATCH (BARNET),289.95,20/12/2019
Delivery Units,Adults and Health,Other Agencies - Third Party P,90219601,CAREWATCH (BARNET),128.85,20/12/2019
Delivery Units,Adults and Health,Other Agencies - Third Party P,90219602,CAREWATCH (BARNET),146.04,20/12/2019
Delivery Units,Adults and Health,Other Agencies - Third Party P,90219603,CAREWATCH (BARNET),128.86,20/12/2019
Delivery Units,Adults and Health,Other Agencies - Third Party P,90219604,CAREWATCH (BARNET),272.77,20/12/2019
Delivery Units,Adults and Health,Other Agencies - Third Party P,90219605,CAREWATCH (BARNET),38.67,20/12/2019
Delivery Units,Adults and Health,Other Agencies - Third Party P,90219607,CAREWATCH (BARNET),128.86,20/12/2019
Delivery Units,Adults and Health,Other Agencies - Third Party P,90219608,CAREWATCH (BARNET),289.96,20/12/2019
Delivery Units,Adults and Health,Other Agencies - Third Party P,90219609,CAREWATCH (BARNET),64.43,20/12/2019
Delivery Units,Adults and Health,Other Agencies - Third Party P,90219610,CAREWATCH (BARNET),463.86,20/12/2019
Delivery Units,Adults and Health,Other Agencies - Third Party P,90219611,CAREWATCH (BARNET),257.77,20/12/2019
Delivery Units,Adults and Health,Other Agencies - Third Party P,90219612,CAREWATCH (BARNET),137.45,20/12/2019
Delivery Units,Adults and Health,Other Agencies - Third Party P,90219614,CAREWATCH (BARNET),283.48,20/12/2019
Delivery Units,Adults and Health,Other Agencies - Third Party P,90219615,CAREWATCH (BARNET),257.71,20/12/2019
Delivery Units,Adults and Health,Other Agencies - Third Party P,90219616,CAREWATCH (BARNET),161.10,20/12/2019
Delivery Units,Adults and Health,Other Agencies - Third Party P,90219617,CAREWATCH (BARNET),118.12,20/12/2019
Delivery Units,Adults and Health,Other Agencies - Third Party P,90219618,CAREWATCH (BARNET),161.10,20/12/2019
Delivery Units,Adults and Health,Other Agencies - Third Party P,90219619,CAREWATCH (BARNET),60.13,20/12/2019
Delivery Units,Adults and Health,Other Agencies - Third Party P,90219620,CAREWATCH (BARNET),253.44,20/12/2019
Delivery Units,Adults and Health,Other Agencies - Third Party P,90219621,CAREWATCH (BARNET),137.48,20/12/2019
Delivery Units,Adults and Health,Other Agencies - Third Party P,90219623,CAREWATCH (BARNET),294.23,20/12/2019
Delivery Units,Adults and Health,Other Agencies - Third Party P,90219624,CAREWATCH (BARNET),158.93,20/12/2019
Delivery Units,Adults and Health,Other Agencies - Third Party P,90219625,CAREWATCH (BARNET),51.54,20/12/2019
Delivery Units,Adults and Health,Other Agencies - Third Party P,90219626,CAREWATCH (BARNET),120.28,20/12/2019
Delivery Units,Adults and Health,Other Agencies - Third Party P,90219627,CAREWATCH (BARNET),111.68,20/12/2019
Delivery Units,Adults and Health,Other Agencies - Third Party P,90219628,CAREWATCH (BARNET),201.88,20/12/2019
Delivery Units,Adults and Health,Other Agencies - Third Party P,90219629,CAREWATCH (BARNET),92.37,20/12/2019
Delivery Units,Adults and Health,Other Agencies - Third Party P,90219631,CAREWATCH (BARNET),131.00,20/12/2019
Delivery Units,Adults and Health,Other Agencies - Third Party P,90219632,CAREWATCH (BARNET),96.67,20/12/2019
Delivery Units,Adults and Health,Other Agencies - Third Party P,90219633,CAREWATCH (BARNET),17.18,20/12/2019
Delivery Units,Adults and Health,Other Agencies - Third Party P,90219635,CAREWATCH (BARNET),242.71,20/12/2019
Delivery Units,Adults and Health,Other Agencies - Third Party P,90219636,CAREWATCH (BARNET),193.28,20/12/2019
Delivery Units,Adults and Health,Other Agencies - Third Party P,90219637,CAREWATCH (BARNET),285.64,20/12/2019
Delivery Units,Adults and Health,Other Agencies - Third Party P,90219638,CAREWATCH (BARNET),268.48,20/12/2019
Delivery Units,Adults and Health,Other Agencies - Third Party P,90219639,CAREWATCH (BARNET),45.11,20/12/2019
Delivery Units,Adults and Health,Other Agencies - Third Party P,90219640,CAREWATCH (BARNET),25.78,20/12/2019
Delivery Units,Adults and Health,Other Agencies - Third Party P,90219641,CAREWATCH (BARNET),335.01,20/12/2019
Delivery Units,Adults and Health,Other Agencies - Third Party P,90219642,CAREWATCH (BARNET),253.44,20/12/2019
Delivery Units,Adults and Health,Other Agencies - Third Party P,90219643,CAREWATCH (BARNET),111.68,20/12/2019
Delivery Units,Adults and Health,Other Agencies - Third Party P,90219644,CAREWATCH (BARNET),347.92,20/12/2019
Delivery Units,Adults and Health,Other Agencies - Third Party P,90219645,CAREWATCH (BARNET),42.96,20/12/2019
Delivery Units,Adults and Health,Other Agencies - Third Party P,90219648,CAREWATCH (BARNET),122.44,20/12/2019
Delivery Units,Adults and Health,Other Agencies - Third Party P,90219649,CAREWATCH (BARNET),32.22,20/12/2019
Delivery Units,Adults and Health,Other Agencies - Third Party P,90219650,CAREWATCH (BARNET),283.52,20/12/2019
Delivery Units,Adults and Health,Other Agencies - Third Party P,90219651,CAREWATCH (BARNET),103.08,20/12/2019
Delivery Units,Adults and Health,Other Agencies - Third Party P,90219652,CAREWATCH (BARNET),300.68,20/12/2019
Delivery Units,Adults and Health,Other Agencies - Third Party P,90219653,CAREWATCH (BARNET),64.45,20/12/2019
Delivery Units,Adults and Health,Other Agencies - Third Party P,90219654,CAREWATCH (BARNET),283.51,20/12/2019
Delivery Units,Adults and Health,Other Agencies - Third Party P,90219655,CAREWATCH (BARNET),257.70,20/12/2019
Delivery Units,Adults and Health,Other Agencies - Third Party P,90219656,CAREWATCH (BARNET),60.14,20/12/2019
Delivery Units,Adults and Health,Other Agencies - Third Party P,90219657,CAREWATCH (BARNET),287.77,20/12/2019
Delivery Units,Adults and Health,Other Agencies - Third Party P,90219658,CAREWATCH (BARNET),92.37,20/12/2019
Delivery Units,Adults and Health,Other Agencies - Third Party P,90219661,CAREWATCH (BARNET),30.07,20/12/2019
Delivery Units,Adults and Health,Other Agencies - Third Party P,90219662,CAREWATCH (BARNET),322.14,20/12/2019
Delivery Units,Adults and Health,Other Agencies - Third Party P,90219663,CAREWATCH (BARNET),240.52,20/12/2019
Delivery Units,Adults and Health,Other Agencies - Third Party P,90219664,CAREWATCH (BARNET),601.30,20/12/2019
Delivery Units,Adults and Health,Other Agencies - Third Party P,90219665,CAREWATCH (BARNET),51.56,20/12/2019
Delivery Units,Adults and Health,Other Agencies - Third Party P,90219666,CAREWATCH (BARNET),257.73,20/12/2019
Delivery Units,Adults and Health,Other Agencies - Third Party P,90219667,CAREWATCH (BARNET),253.44,20/12/2019
Delivery Units,Adults and Health,Other Agencies - Third Party P,90219668,CAREWATCH (BARNET),781.90,20/12/2019
Delivery Units,Adults and Health,Other Agencies - Third Party P,90219669,CAREWATCH (BARNET),116.00,20/12/2019
Delivery Units,Adults and Health,Other Agencies - Third Party P,90219670,CAREWATCH (BARNET),120.26,20/12/2019
Delivery Units,Adults and Health,Other Agencies - Third Party P,90219671,CAREWATCH (BARNET),287.78,20/12/2019
Delivery Units,Adults and Health,Other Agencies - Third Party P,90219672,CAREWATCH (BARNET),240.52,20/12/2019
Delivery Units,Adults and Health,Other Agencies - Third Party P,90219673,CAREWATCH (BARNET),17.18,20/12/2019
Delivery Units,Adults and Health,Other Agencies - Third Party P,90219674,CAREWATCH (BARNET),201.90,20/12/2019
Delivery Units,Adults and Health,Other Agencies - Third Party P,90219675,CAREWATCH (BARNET),150.36,20/12/2019
Delivery Units,Adults and Health,Other Agencies - Third Party P,90219676,CAREWATCH (BARNET),270.62,20/12/2019
Delivery Units,Adults and Health,Other Agencies - Third Party P,90219677,CAREWATCH (BARNET),244.85,20/12/2019
Delivery Units,Adults and Health,Other Agencies - Third Party P,90219678,CAREWATCH (BARNET),137.44,20/12/2019
Delivery Units,Adults and Health,Other Agencies - Third Party P,90219679,CAREWATCH (BARNET),120.26,20/12/2019
Delivery Units,Adults and Health,Other Agencies - Third Party P,90219680,CAREWATCH (BARNET),253.44,20/12/2019
Delivery Units,Adults and Health,Other Agencies - Third Party P,90219681,CAREWATCH (BARNET),38.67,20/12/2019
Delivery Units,Adults and Health,Other Agencies - Third Party P,90219682,CAREWATCH (BARNET),270.62,20/12/2019
Delivery Units,Adults and Health,Other Agencies - Third Party P,90219683,CAREWATCH (BARNET),90.23,20/12/2019
Delivery Units,Adults and Health,Other Agencies - Third Party P,90219684,CAREWATCH (BARNET),300.65,20/12/2019
Delivery Units,Adults and Health,Other Agencies - Third Party P,90219685,CAREWATCH (BARNET),120.26,20/12/2019
Delivery Units,Adults and Health,Other Agencies - Third Party P,90219686,CAREWATCH (BARNET),270.62,20/12/2019
Delivery Units,Adults and Health,Other Agencies - Third Party P,90219687,CAREWATCH (BARNET),60.13,20/12/2019
Delivery Units,Adults and Health,Other Agencies - Third Party P,90219688,CAREWATCH (BARNET),240.59,20/12/2019
Delivery Units,Adults and Health,Other Agencies - Third Party P,90219690,CAREWATCH (BARNET),266.29,20/12/2019
Delivery Units,Adults and Health,Other Agencies - Third Party P,90219691,CAREWATCH (BARNET),240.52,20/12/2019
Delivery Units,Adults and Health,Other Agencies - Third Party P,90219692,CAREWATCH (BARNET),150.36,20/12/2019
Delivery Units,Adults and Health,Other Agencies - Third Party P,90219693,CAREWATCH (BARNET),120.26,20/12/2019
Delivery Units,Adults and Health,Other Agencies - Third Party P,90219694,CAREWATCH (BARNET),137.47,20/12/2019
Delivery Units,Adults and Health,Other Agencies - Third Party P,90219695,CAREWATCH (BARNET),704.38,20/12/2019
Delivery Units,Adults and Health,Other Agencies - Third Party P,90219696,CAREWATCH (BARNET),51.54,20/12/2019
Delivery Units,Adults and Health,Other Agencies - Third Party P,90219697,CAREWATCH (BARNET),180.39,20/12/2019
Delivery Units,Adults and Health,Other Agencies - Third Party P,90219698,CAREWATCH (BARNET),124.60,20/12/2019
Delivery Units,Adults and Health,Other Agencies - Third Party P,90219700,CAREWATCH (BARNET),171.81,20/12/2019
Delivery Units,Adults and Health,Other Agencies - Third Party P,90219701,CAREWATCH (BARNET),296.42,20/12/2019
Delivery Units,Adults and Health,Other Agencies - Third Party P,90219702,CAREWATCH (BARNET),210.46,20/12/2019
Delivery Units,Adults and Health,Other Agencies - Third Party P,90219703,CAREWATCH (BARNET),167.54,20/12/2019
Delivery Units,Adults and Health,Other Agencies - Third Party P,90219704,CAREWATCH (BARNET),124.60,20/12/2019
Delivery Units,Adults and Health,Other Agencies - Third Party P,90219705,CAREWATCH (BARNET),193.28,20/12/2019
Delivery Units,Adults and Health,Other Agencies - Third Party P,90219706,CAREWATCH (BARNET),90.23,20/12/2019
Delivery Units,Adults and Health,Other Agencies - Third Party P,90219708,CAREWATCH (BARNET),128.85,20/12/2019
Delivery Units,Adults and Health,Other Agencies - Third Party P,90219709,CAREWATCH (BARNET),90.23,20/12/2019
Delivery Units,Adults and Health,Other Agencies - Third Party P,90219710,CAREWATCH (BARNET),34.36,20/12/2019
Delivery Units,Adults and Health,Other Agencies - Third Party P,90219711,CAREWATCH (BARNET),300.72,20/12/2019
Delivery Units,Adults and Health,Other Agencies - Third Party P,90219712,CAREWATCH (BARNET),90.23,20/12/2019
Delivery Units,Adults and Health,Other Agencies - Third Party P,90219714,CAREWATCH (BARNET),227.67,20/12/2019
Delivery Units,Adults and Health,Other Agencies - Third Party P,90219715,CAREWATCH (BARNET),180.39,20/12/2019
Delivery Units,Adults and Health,Other Agencies - Third Party P,90219716,CAREWATCH (BARNET),253.43,20/12/2019
Delivery Units,Adults and Health,Other Agencies - Third Party P,90219717,CAREWATCH (BARNET),38.67,20/12/2019
Delivery Units,Adults and Health,Other Agencies - Third Party P,90219718,CAREWATCH (BARNET),111.68,20/12/2019
Delivery Units,Adults and Health,Other Agencies - Third Party P,90219719,CAREWATCH (BARNET),64.45,20/12/2019
Delivery Units,Adults and Health,Other Agencies - Third Party P,90219720,CAREWATCH (BARNET),326.42,20/12/2019
Delivery Units,Adults and Health,Other Agencies - Third Party P,90219721,CAREWATCH (BARNET),219.08,20/12/2019
Delivery Units,Adults and Health,Other Agencies - Third Party P,90219722,CAREWATCH (BARNET),103.08,20/12/2019
Delivery Units,Adults and Health,Other Agencies - Third Party P,90219723,CAREWATCH (BARNET),347.94,20/12/2019
Delivery Units,Adults and Health,Other Agencies - Third Party P,90219724,CAREWATCH (BARNET),390.88,20/12/2019
Delivery Units,Adults and Health,Other Agencies - Third Party P,90219727,CAREWATCH (BARNET),107.40,20/12/2019
Delivery Units,Adults and Health,Other Agencies - Third Party P,90219728,CAREWATCH (BARNET),30.07,20/12/2019
Delivery Units,Adults and Health,Other Agencies - Third Party P,90219730,CAREWATCH (BARNET),38.66,20/12/2019
Delivery Units,Adults and Health,Other Agencies - Third Party P,90219732,CAREWATCH (BARNET),120.26,20/12/2019
Delivery Units,Adults and Health,Other Agencies - Third Party P,90219733,CAREWATCH (BARNET),279.21,20/12/2019
Delivery Units,Adults and Health,Other Agencies - Third Party P,90219734,CAREWATCH (BARNET),283.52,20/12/2019
Delivery Units,Adults and Health,Other Agencies - Third Party P,90219735,CAREWATCH (BARNET),141.75,20/12/2019
Delivery Units,Adults and Health,Other Agencies - Third Party P,90219736,CAREWATCH (BARNET),240.52,20/12/2019
Delivery Units,Adults and Health,Other Agencies - Third Party P,90219737,CAREWATCH (BARNET),51.54,20/12/2019
Delivery Units,Adults and Health,Other Agencies - Third Party P,90219738,CAREWATCH (BARNET),249.12,20/12/2019
Delivery Units,Adults and Health,Other Agencies - Third Party P,90219739,CAREWATCH (BARNET),433.80,20/12/2019
Delivery Units,Adults and Health,Other Agencies - Third Party P,90219740,CAREWATCH (BARNET),197.62,20/12/2019
Delivery Units,Adults and Health,Other Agencies - Third Party P,90219741,CAREWATCH (BARNET),128.87,20/12/2019
Delivery Units,Adults and Health,Other Agencies - Third Party P,90219742,CAREWATCH (BARNET),85.92,20/12/2019
Delivery Units,Adults and Health,Other Agencies - Third Party P,90219745,CAREWATCH (BARNET),51.56,20/12/2019
Delivery Units,Adults and Health,Other Agencies - Third Party P,90219746,CAREWATCH (BARNET),257.73,20/12/2019
Delivery Units,Adults and Health,Other Agencies - Third Party P,90219747,CAREWATCH (BARNET),781.90,20/12/2019
Delivery Units,Adults and Health,Other Agencies - Third Party P,90219748,CAREWATCH (BARNET),116.00,20/12/2019
Delivery Units,Adults and Health,Other Agencies - Third Party P,90219749,CAREWATCH (BARNET),120.26,20/12/2019
Delivery Units,Adults and Health,Other Agencies - Third Party P,90219750,CAREWATCH (BARNET),300.72,20/12/2019
Delivery Units,Adults and Health,Other Agencies - Third Party P,90219751,CAREWATCH (BARNET),240.52,20/12/2019
Delivery Units,Adults and Health,Other Agencies - Third Party P,90219753,CAREWATCH (BARNET),34.36,20/12/2019
Delivery Units,Adults and Health,Other Agencies - Third Party P,90219754,CAREWATCH (BARNET),17.18,20/12/2019
Delivery Units,Adults and Health,Other Agencies - Third Party P,90219755,CAREWATCH (BARNET),300.72,20/12/2019
Delivery Units,Adults and Health,Other Agencies - Third Party P,90219756,CAREWATCH (BARNET),201.90,20/12/2019
Delivery Units,Adults and Health,Other Agencies - Third Party P,90219757,CAREWATCH (BARNET),270.62,20/12/2019
Delivery Units,Adults and Health,Other Agencies - Third Party P,90219758,CAREWATCH (BARNET),244.85,20/12/2019
Delivery Units,Adults and Health,Other Agencies - Third Party P,90219759,CAREWATCH (BARNET),120.26,20/12/2019
Delivery Units,Adults and Health,Other Agencies - Third Party P,90219760,CAREWATCH (BARNET),120.26,20/12/2019
Delivery Units,Adults and Health,Other Agencies - Third Party P,90219761,CAREWATCH (BARNET),253.44,20/12/2019
Delivery Units,Adults and Health,Other Agencies - Third Party P,90219762,CAREWATCH (BARNET),360.85,20/12/2019
Delivery Units,Adults and Health,Other Agencies - Third Party P,90219763,CAREWATCH (BARNET),38.67,20/12/2019
Delivery Units,Adults and Health,Other Agencies - Third Party P,90219764,CAREWATCH (BARNET),270.62,20/12/2019
Delivery Units,Adults and Health,Other Agencies - Third Party P,90219765,CAREWATCH (BARNET),120.26,20/12/2019
Delivery Units,Adults and Health,Other Agencies - Third Party P,90219766,CAREWATCH (BARNET),270.62,20/12/2019
Delivery Units,Adults and Health,Other Agencies - Third Party P,90219767,CAREWATCH (BARNET),60.13,20/12/2019
Delivery Units,Adults and Health,Other Agencies - Third Party P,90219768,CAREWATCH (BARNET),438.09,20/12/2019
Delivery Units,Adults and Health,Other Agencies - Third Party P,90219769,CAREWATCH (BARNET),240.59,20/12/2019
Delivery Units,Adults and Health,Other Agencies - Third Party P,90219771,CAREWATCH (BARNET),266.29,20/12/2019
Delivery Units,Adults and Health,Other Agencies - Third Party P,90219772,CAREWATCH (BARNET),150.36,20/12/2019
Delivery Units,Adults and Health,Other Agencies - Third Party P,90219773,CAREWATCH (BARNET),107.38,20/12/2019
Delivery Units,Adults and Health,Other Agencies - Third Party P,90219774,CAREWATCH (BARNET),240.52,20/12/2019
Delivery Units,Adults and Health,Other Agencies - Third Party P,90219775,CAREWATCH (BARNET),528.32,20/12/2019
Delivery Units,Adults and Health,Other Agencies - Third Party P,90219776,CAREWATCH (BARNET),146.07,20/12/2019
Delivery Units,Adults and Health,Other Agencies - Third Party P,90219777,CAREWATCH (BARNET),700.08,20/12/2019
Delivery Units,Adults and Health,Other Agencies - Third Party P,90219778,CAREWATCH (BARNET),51.54,20/12/2019
Delivery Units,Adults and Health,Other Agencies - Third Party P,90219779,CAREWATCH (BARNET),180.39,20/12/2019
Delivery Units,Adults and Health,Other Agencies - Third Party P,90219780,CAREWATCH (BARNET),193.30,20/12/2019
Delivery Units,Adults and Health,Other Agencies - Third Party P,90219781,CAREWATCH (BARNET),128.90,20/12/2019
Delivery Units,Adults and Health,Other Agencies - Third Party P,90219783,CAREWATCH (BARNET),279.20,20/12/2019
Delivery Units,Adults and Health,Other Agencies - Third Party P,90219784,CAREWATCH (BARNET),163.23,20/12/2019
Delivery Units,Adults and Health,Other Agencies - Third Party P,90219785,CAREWATCH (BARNET),180.40,20/12/2019
Delivery Units,Adults and Health,Other Agencies - Third Party P,90219786,CAREWATCH (BARNET),180.42,20/12/2019
Delivery Units,Adults and Health,Other Agencies - Third Party P,90219787,CAREWATCH (BARNET),120.29,20/12/2019
Delivery Units,Adults and Health,Other Agencies - Third Party P,90219788,CAREWATCH (BARNET),128.85,20/12/2019
Delivery Units,Adults and Health,Other Agencies - Third Party P,90219789,CAREWATCH (BARNET),90.23,20/12/2019
Delivery Units,Adults and Health,Other Agencies - Third Party P,90219790,CAREWATCH (BARNET),120.27,20/12/2019
Delivery Units,Adults and Health,Other Agencies - Third Party P,90219791,CAREWATCH (BARNET),90.23,20/12/2019
Delivery Units,Adults and Health,Other Agencies - Third Party P,90219792,CAREWATCH (BARNET),90.22,20/12/2019
Delivery Units,Adults and Health,Other Agencies - Third Party P,90219794,CAREWATCH (BARNET),219.09,20/12/2019
Delivery Units,Adults and Health,Other Agencies - Third Party P,90219795,CAREWATCH (BARNET),141.77,20/12/2019
Delivery Units,Adults and Health,Other Agencies - Third Party P,90219796,CAREWATCH (BARNET),171.81,20/12/2019
Delivery Units,Adults and Health,Other Agencies - Third Party P,90219797,CAREWATCH (BARNET),292.09,20/12/2019
Delivery Units,Adults and Health,Other Agencies - Third Party P,90219798,CAREWATCH (BARNET),81.63,20/12/2019
Delivery Units,Adults and Health,Other Agencies - Third Party P,90219799,CAREWATCH (BARNET),322.12,20/12/2019
Delivery Units,Adults and Health,Other Agencies - Third Party P,90219800,CAREWATCH (BARNET),210.49,20/12/2019
Delivery Units,Adults and Health,Other Agencies - Third Party P,90219801,CAREWATCH (BARNET),94.49,20/12/2019
Delivery Units,Adults and Health,Other Agencies - Third Party P,90219802,CAREWATCH (BARNET),120.26,20/12/2019
Delivery Units,Adults and Health,Other Agencies - Third Party P,90219803,CAREWATCH (BARNET),442.45,20/12/2019
Delivery Units,Adults and Health,Other Agencies - Third Party P,90219806,CAREWATCH (BARNET),107.40,20/12/2019
Delivery Units,Adults and Health,Other Agencies - Third Party P,90219807,CAREWATCH (BARNET),25.77,20/12/2019
Delivery Units,Adults and Health,Other Agencies - Third Party P,90219809,CAREWATCH (BARNET),51.56,20/12/2019
Delivery Units,Adults and Health,Other Agencies - Third Party P,90219811,CAREWATCH (BARNET),120.26,20/12/2019
Delivery Units,Adults and Health,Other Agencies - Third Party P,90219812,CAREWATCH (BARNET),90.23,20/12/2019
Delivery Units,Adults and Health,Other Agencies - Third Party P,90219813,CAREWATCH (BARNET),279.20,20/12/2019
Delivery Units,Adults and Health,Other Agencies - Third Party P,90219814,CAREWATCH (BARNET),283.51,20/12/2019
Delivery Units,Adults and Health,Other Agencies - Third Party P,90219815,CAREWATCH (BARNET),287.78,20/12/2019
Delivery Units,Adults and Health,Other Agencies - Third Party P,90219816,CAREWATCH (BARNET),223.34,20/12/2019
Delivery Units,Adults and Health,Other Agencies - Third Party P,90219817,CAREWATCH (BARNET),51.54,20/12/2019
Delivery Units,Adults and Health,Other Agencies - Third Party P,90219818,CAREWATCH (BARNET),257.70,20/12/2019
Delivery Units,Adults and Health,Other Agencies - Third Party P,90219819,CAREWATCH (BARNET),25.78,20/12/2019
Delivery Units,Adults and Health,Other Agencies - Third Party P,90219820,CAREWATCH (BARNET),197.64,20/12/2019
Delivery Units,Adults and Health,Other Agencies - Third Party P,90219821,CAREWATCH (BARNET),163.26,20/12/2019
Delivery Units,Adults and Health,Other Agencies - Third Party P,90219822,CAREWATCH (BARNET),85.93,20/12/2019
Delivery Units,Adults and Health,Other Agencies - Third Party P,90219823,CAREWATCH (BARNET),120.28,20/12/2019
Delivery Units,Adults and Health,Other Agencies - Third Party P,90219826,CAREWATCH (BARNET),120.26,20/12/2019
Delivery Units,Adults and Health,Other Agencies - Third Party P,90219827,CAREWATCH (BARNET),240.52,20/12/2019
Delivery Units,Adults and Health,Other Agencies - Third Party P,90219828,CAREWATCH (BARNET),51.56,20/12/2019
Delivery Units,Adults and Health,Other Agencies - Third Party P,90219829,CAREWATCH (BARNET),712.97,20/12/2019
Delivery Units,Adults and Health,Other Agencies - Third Party P,90219830,CAREWATCH (BARNET),257.73,20/12/2019
Delivery Units,Adults and Health,Other Agencies - Third Party P,90219831,CAREWATCH (BARNET),781.90,20/12/2019
Delivery Units,Adults and Health,Other Agencies - Third Party P,90219833,CAREWATCH (BARNET),197.57,20/12/2019
Delivery Units,Adults and Health,Other Agencies - Third Party P,90219834,CAREWATCH (BARNET),300.72,20/12/2019
Delivery Units,Adults and Health,Other Agencies - Third Party P,90219835,CAREWATCH (BARNET),180.39,20/12/2019
Delivery Units,Adults and Health,Other Agencies - Third Party P,90219837,CAREWATCH (BARNET),90.23,20/12/2019
Delivery Units,Adults and Health,Other Agencies - Third Party P,90219838,CAREWATCH (BARNET),34.36,20/12/2019
Delivery Units,Adults and Health,Other Agencies - Third Party P,90219839,CAREWATCH (BARNET),150.36,20/12/2019
Delivery Units,Adults and Health,Other Agencies - Third Party P,90219840,CAREWATCH (BARNET),270.62,20/12/2019
Delivery Units,Adults and Health,Other Agencies - Third Party P,90219841,CAREWATCH (BARNET),244.85,20/12/2019
Delivery Units,Adults and Health,Other Agencies - Third Party P,90219842,CAREWATCH (BARNET),90.23,20/12/2019
Delivery Units,Adults and Health,Other Agencies - Third Party P,90219843,CAREWATCH (BARNET),120.26,20/12/2019
Delivery Units,Adults and Health,Other Agencies - Third Party P,90219844,CAREWATCH (BARNET),253.44,20/12/2019
Delivery Units,Adults and Health,Other Agencies - Third Party P,90219845,CAREWATCH (BARNET),360.85,20/12/2019
Delivery Units,Adults and Health,Other Agencies - Third Party P,90219846,CAREWATCH (BARNET),38.67,20/12/2019
Delivery Units,Adults and Health,Other Agencies - Third Party P,90219847,CAREWATCH (BARNET),270.62,20/12/2019
Delivery Units,Adults and Health,Other Agencies - Third Party P,90219848,CAREWATCH (BARNET),240.52,20/12/2019
Delivery Units,Adults and Health,Other Agencies - Third Party P,90219849,CAREWATCH (BARNET),171.80,20/12/2019
Delivery Units,Adults and Health,Other Agencies - Third Party P,90219850,CAREWATCH (BARNET),270.62,20/12/2019
Delivery Units,Adults and Health,Other Agencies - Third Party P,90219851,CAREWATCH (BARNET),210.49,20/12/2019
Delivery Units,Adults and Health,Other Agencies - Third Party P,90219852,CAREWATCH (BARNET),429.51,20/12/2019
Delivery Units,Adults and Health,Other Agencies - Third Party P,90219853,CAREWATCH (BARNET),240.59,20/12/2019
Delivery Units,Adults and Health,Other Agencies - Third Party P,90219855,CAREWATCH (BARNET),266.29,20/12/2019
Delivery Units,Adults and Health,Other Agencies - Third Party P,90219856,CAREWATCH (BARNET),150.36,20/12/2019
Delivery Units,Adults and Health,Other Agencies - Third Party P,90219857,CAREWATCH (BARNET),592.74,20/12/2019
Delivery Units,Adults and Health,Other Agencies - Third Party P,90219858,CAREWATCH (BARNET),146.06,20/12/2019
Delivery Units,Adults and Health,Other Agencies - Third Party P,90219859,CAREWATCH (BARNET),51.54,20/12/2019
Delivery Units,Adults and Health,Other Agencies - Third Party P,90219860,CAREWATCH (BARNET),180.39,20/12/2019
Delivery Units,Adults and Health,Other Agencies - Third Party P,90219861,CAREWATCH (BARNET),128.90,20/12/2019
Delivery Units,Adults and Health,Other Agencies - Third Party P,90219862,CAREWATCH (BARNET),60.14,20/12/2019
Delivery Units,Adults and Health,Other Agencies - Third Party P,90219863,CAREWATCH (BARNET),274.90,20/12/2019
Delivery Units,Adults and Health,Other Agencies - Third Party P,90219864,CAREWATCH (BARNET),171.81,20/12/2019
Delivery Units,Adults and Health,Other Agencies - Third Party P,90219865,CAREWATCH (BARNET),227.66,20/12/2019
Delivery Units,Adults and Health,Other Agencies - Third Party P,90219866,CAREWATCH (BARNET),128.88,20/12/2019
Delivery Units,Adults and Health,Other Agencies - Third Party P,90219867,CAREWATCH (BARNET),120.29,20/12/2019
Delivery Units,Adults and Health,Other Agencies - Third Party P,90219868,CAREWATCH (BARNET),115.97,20/12/2019
Delivery Units,Adults and Health,Other Agencies - Third Party P,90219869,CAREWATCH (BARNET),90.23,20/12/2019
Delivery Units,Adults and Health,Other Agencies - Third Party P,90219870,CAREWATCH (BARNET),128.85,20/12/2019
Delivery Units,Adults and Health,Other Agencies - Third Party P,90219871,CAREWATCH (BARNET),17.18,20/12/2019
Delivery Units,Adults and Health,Other Agencies - Third Party P,90219872,CAREWATCH (BARNET),296.42,20/12/2019
Delivery Units,Adults and Health,Other Agencies - Third Party P,90219873,CAREWATCH (BARNET),85.93,20/12/2019
Delivery Units,Adults and Health,Other Agencies - Third Party P,90219875,CAREWATCH (BARNET),201.90,20/12/2019
Delivery Units,Adults and Health,Other Agencies - Third Party P,90219876,CAREWATCH (BARNET),214.78,20/12/2019
Delivery Units,Adults and Health,Other Agencies - Third Party P,90219877,CAREWATCH (BARNET),184.68,20/12/2019
Delivery Units,Adults and Health,Other Agencies - Third Party P,90219878,CAREWATCH (BARNET),304.98,20/12/2019
Delivery Units,Adults and Health,Other Agencies - Third Party P,90219879,CAREWATCH (BARNET),38.67,20/12/2019
Delivery Units,Adults and Health,Other Agencies - Third Party P,90219880,CAREWATCH (BARNET),17.18,20/12/2019
Delivery Units,Adults and Health,Other Agencies - Third Party P,90219881,CAREWATCH (BARNET),313.54,20/12/2019
Delivery Units,Adults and Health,Other Agencies - Third Party P,90219882,CAREWATCH (BARNET),219.08,20/12/2019
Delivery Units,Adults and Health,Other Agencies - Third Party P,90219883,CAREWATCH (BARNET),90.20,20/12/2019
Delivery Units,Adults and Health,Other Agencies - Third Party P,90219884,CAREWATCH (BARNET),115.97,20/12/2019
Delivery Units,Adults and Health,Other Agencies - Third Party P,90219885,CAREWATCH (BARNET),429.56,20/12/2019
Delivery Units,Adults and Health,Other Agencies - Third Party P,90219888,CAREWATCH (BARNET),107.40,20/12/2019
Delivery Units,Adults and Health,Other Agencies - Third Party P,90219889,CAREWATCH (BARNET),17.18,20/12/2019
Delivery Units,Adults and Health,Other Agencies - Third Party P,90219890,CAREWATCH (BARNET),51.56,20/12/2019
Delivery Units,Adults and Health,Other Agencies - Third Party P,90219892,CAREWATCH (BARNET),120.26,20/12/2019
Delivery Units,Adults and Health,Other Agencies - Third Party P,90219893,CAREWATCH (BARNET),90.23,20/12/2019
Delivery Units,Adults and Health,Other Agencies - Third Party P,90219894,CAREWATCH (BARNET),68.73,20/12/2019
Delivery Units,Adults and Health,Other Agencies - Third Party P,90219895,CAREWATCH (BARNET),51.56,20/12/2019
Delivery Units,Adults and Health,Other Agencies - Third Party P,90219896,CAREWATCH (BARNET),309.28,20/12/2019
Delivery Units,Adults and Health,Other Agencies - Third Party P,90219897,CAREWATCH (BARNET),300.65,20/12/2019
Delivery Units,Adults and Health,Other Agencies - Third Party P,90219898,CAREWATCH (BARNET),240.52,20/12/2019
Delivery Units,Adults and Health,Other Agencies - Third Party P,90219899,CAREWATCH (BARNET),55.84,20/12/2019
Delivery Units,Adults and Health,Other Agencies - Third Party P,90219900,CAREWATCH (BARNET),253.41,20/12/2019
Delivery Units,Adults and Health,Other Agencies - Third Party P,90219901,CAREWATCH (BARNET),60.13,20/12/2019
Delivery Units,Adults and Health,Other Agencies - Third Party P,90219902,CAREWATCH (BARNET),201.92,20/12/2019
Delivery Units,Adults and Health,Other Agencies - Third Party P,90219903,CAREWATCH (BARNET),141.76,20/12/2019
Delivery Units,Adults and Health,Other Agencies - Third Party P,90219904,CAREWATCH (BARNET),90.23,20/12/2019
Delivery Units,Adults and Health,Other Agencies - Third Party P,90213998,DYNAMIC PEOPLE LTD,140.84,02/12/2019
Delivery Units,Adults and Health,Other Agencies - Third Party P,90214000,DYNAMIC PEOPLE LTD,156.93,02/12/2019
Delivery Units,Adults and Health,Other Agencies - Third Party P,90214001,DYNAMIC PEOPLE LTD,197.19,02/12/2019
Delivery Units,Adults and Health,Other Agencies - Third Party P,90214002,DYNAMIC PEOPLE LTD,281.68,02/12/2019
Delivery Units,Adults and Health,Other Agencies - Third Party P,90214004,DYNAMIC PEOPLE LTD,84.49,02/12/2019
Delivery Units,Adults and Health,Other Agencies - Third Party P,90214005,DYNAMIC PEOPLE LTD,96.54,02/12/2019
Delivery Units,Adults and Health,Other Agencies - Third Party P,90214007,DYNAMIC PEOPLE LTD,309.75,02/12/2019
Delivery Units,Adults and Health,Other Agencies - Third Party P,90214008,DYNAMIC PEOPLE LTD,253.54,02/12/2019
Delivery Units,Adults and Health,Other Agencies - Third Party P,90214010,DYNAMIC PEOPLE LTD,140.84,02/12/2019
Delivery Units,Adults and Health,Other Agencies - Third Party P,90214011,DYNAMIC PEOPLE LTD,140.84,02/12/2019
Delivery Units,Adults and Health,Other Agencies - Third Party P,90214013,DYNAMIC PEOPLE LTD,140.84,02/12/2019
Delivery Units,Adults and Health,Other Agencies - Third Party P,90214015,DYNAMIC PEOPLE LTD,337.96,02/12/2019
Delivery Units,Adults and Health,Other Agencies - Third Party P,90214016,DYNAMIC PEOPLE LTD,225.33,02/12/2019
Delivery Units,Adults and Health,Other Agencies - Third Party P,90214018,DYNAMIC PEOPLE LTD,253.54,02/12/2019
Delivery Units,Adults and Health,Other Agencies - Third Party P,90214019,DYNAMIC PEOPLE LTD,112.63,02/12/2019
Delivery Units,Adults and Health,Other Agencies - Third Party P,90214020,DYNAMIC PEOPLE LTD,144.81,02/12/2019
Delivery Units,Adults and Health,Other Agencies - Third Party P,90214021,DYNAMIC PEOPLE LTD,394.24,02/12/2019
Delivery Units,Adults and Health,Other Agencies - Third Party P,90214022,DYNAMIC PEOPLE LTD,197.19,02/12/2019
Delivery Units,Adults and Health,Other Agencies - Third Party P,90214023,DYNAMIC PEOPLE LTD,169.05,02/12/2019
Delivery Units,Adults and Health,Other Agencies - Third Party P,90214024,DYNAMIC PEOPLE LTD,309.82,02/12/2019
Delivery Units,Adults and Health,Other Agencies - Third Party P,90214025,DYNAMIC PEOPLE LTD,56.35,02/12/2019
Delivery Units,Adults and Health,Other Agencies - Third Party P,90214026,DYNAMIC PEOPLE LTD,140.84,02/12/2019
Delivery Units,Adults and Health,Other Agencies - Third Party P,90214027,DYNAMIC PEOPLE LTD,40.25,02/12/2019
Delivery Units,Adults and Health,Other Agencies - Third Party P,90214028,DYNAMIC PEOPLE LTD,338.00,02/12/2019
Delivery Units,Adults and Health,Other Agencies - Third Party P,90214029,DYNAMIC PEOPLE LTD,209.19,02/12/2019
Delivery Units,Adults and Health,Other Agencies - Third Party P,90214030,DYNAMIC PEOPLE LTD,197.19,02/12/2019
Delivery Units,Adults and Health,Other Agencies - Third Party P,90214031,DYNAMIC PEOPLE LTD,84.49,02/12/2019
Delivery Units,Adults and Health,Other Agencies - Third Party P,90214033,DYNAMIC PEOPLE LTD,225.33,02/12/2019
Delivery Units,Adults and Health,Other Agencies - Third Party P,90214034,DYNAMIC PEOPLE LTD,181.11,02/12/2019
Delivery Units,Adults and Health,Other Agencies - Third Party P,90214035,DYNAMIC PEOPLE LTD,48.27,02/12/2019
Delivery Units,Adults and Health,Other Agencies - Third Party P,90214036,DYNAMIC PEOPLE LTD,305.82,02/12/2019
Delivery Units,Adults and Health,Other Agencies - Third Party P,90214037,DYNAMIC PEOPLE LTD,84.49,02/12/2019
Delivery Units,Adults and Health,Other Agencies - Third Party P,90214038,DYNAMIC PEOPLE LTD,64.39,02/12/2019
Delivery Units,Adults and Health,Other Agencies - Third Party P,90214039,DYNAMIC PEOPLE LTD,507.08,02/12/2019
Delivery Units,Adults and Health,Other Agencies - Third Party P,90214040,DYNAMIC PEOPLE LTD,140.84,02/12/2019
Delivery Units,Adults and Health,Other Agencies - Third Party P,90214042,DYNAMIC PEOPLE LTD,197.12,02/12/2019
Delivery Units,Adults and Health,Other Agencies - Third Party P,90214043,DYNAMIC PEOPLE LTD,281.61,02/12/2019
Delivery Units,Adults and Health,Other Agencies - Third Party P,90214044,DYNAMIC PEOPLE LTD,84.49,02/12/2019
Delivery Units,Adults and Health,Other Agencies - Third Party P,90214045,DYNAMIC PEOPLE LTD,36.21,02/12/2019
Delivery Units,Adults and Health,Other Agencies - Third Party P,90214047,DYNAMIC PEOPLE LTD,136.80,02/12/2019
Delivery Units,Adults and Health,Other Agencies - Third Party P,90214048,DYNAMIC PEOPLE LTD,72.40,02/12/2019
Delivery Units,Adults and Health,Other Agencies - Third Party P,90214049,DYNAMIC PEOPLE LTD,60.35,02/12/2019
Delivery Units,Adults and Health,Other Agencies - Third Party P,90214050,DYNAMIC PEOPLE LTD,197.19,02/12/2019
Delivery Units,Adults and Health,Other Agencies - Third Party P,90214051,DYNAMIC PEOPLE LTD,197.12,02/12/2019
Delivery Units,Adults and Health,Other Agencies - Third Party P,90214052,DYNAMIC PEOPLE LTD,301.73,02/12/2019
Delivery Units,Adults and Health,Other Agencies - Third Party P,90214053,DYNAMIC PEOPLE LTD,32.18,02/12/2019
Delivery Units,Adults and Health,Other Agencies - Third Party P,90214054,DYNAMIC PEOPLE LTD,72.42,02/12/2019
Delivery Units,Adults and Health,Other Agencies - Third Party P,90214055,DYNAMIC PEOPLE LTD,108.64,02/12/2019
Delivery Units,Adults and Health,Other Agencies - Third Party P,90214056,DYNAMIC PEOPLE LTD,84.47,02/12/2019
Delivery Units,Adults and Health,Other Agencies - Third Party P,90214057,DYNAMIC PEOPLE LTD,84.49,02/12/2019
Delivery Units,Adults and Health,Other Agencies - Third Party P,90214059,DYNAMIC PEOPLE LTD,60.36,02/12/2019
Delivery Units,Adults and Health,Other Agencies - Third Party P,90214060,DYNAMIC PEOPLE LTD,68.38,02/12/2019
Delivery Units,Adults and Health,Other Agencies - Third Party P,90214061,DYNAMIC PEOPLE LTD,168.98,02/12/2019
Delivery Units,Adults and Health,Other Agencies - Third Party P,90214062,DYNAMIC PEOPLE LTD,84.49,02/12/2019
Delivery Units,Adults and Health,Other Agencies - Third Party P,90214064,DYNAMIC PEOPLE LTD,64.36,02/12/2019
Delivery Units,Adults and Health,Other Agencies - Third Party P,90214066,DYNAMIC PEOPLE LTD,52.29,02/12/2019
Delivery Units,Adults and Health,Other Agencies - Third Party P,90214067,DYNAMIC PEOPLE LTD,56.35,02/12/2019
Delivery Units,Adults and Health,Other Agencies - Third Party P,90214070,DYNAMIC PEOPLE LTD,140.84,02/12/2019
Delivery Units,Adults and Health,Other Agencies - Third Party P,90214071,DYNAMIC PEOPLE LTD,281.67,02/12/2019
Delivery Units,Adults and Health,Other Agencies - Third Party P,90214072,DYNAMIC PEOPLE LTD,112.70,02/12/2019
Delivery Units,Adults and Health,Other Agencies - Third Party P,90214073,DYNAMIC PEOPLE LTD,112.70,02/12/2019
Delivery Units,Adults and Health,Other Agencies - Third Party P,90214074,DYNAMIC PEOPLE LTD,84.49,02/12/2019
Delivery Units,Adults and Health,Other Agencies - Third Party P,90214076,DYNAMIC PEOPLE LTD,32.18,02/12/2019
Delivery Units,Adults and Health,Other Agencies - Third Party P,90214077,DYNAMIC PEOPLE LTD,148.87,02/12/2019
Delivery Units,Adults and Health,Other Agencies - Third Party P,90214078,DYNAMIC PEOPLE LTD,160.95,02/12/2019
Delivery Units,Adults and Health,Other Agencies - Third Party P,90214079,DYNAMIC PEOPLE LTD,100.57,02/12/2019
Delivery Units,Adults and Health,Other Agencies - Third Party P,90214080,DYNAMIC PEOPLE LTD,56.33,02/12/2019
Delivery Units,Adults and Health,Other Agencies - Third Party P,90214081,DYNAMIC PEOPLE LTD,112.67,02/12/2019
Delivery Units,Adults and Health,Other Agencies - Third Party P,90214082,DYNAMIC PEOPLE LTD,358.00,02/12/2019
Delivery Units,Adults and Health,Other Agencies - Third Party P,90214083,DYNAMIC PEOPLE LTD,241.40,02/12/2019
Delivery Units,Adults and Health,Other Agencies - Third Party P,90214084,DYNAMIC PEOPLE LTD,60.35,02/12/2019
Delivery Units,Adults and Health,Other Agencies - Third Party P,90214085,DYNAMIC PEOPLE LTD,36.21,02/12/2019
Delivery Units,Adults and Health,Other Agencies - Third Party P,90214086,DYNAMIC PEOPLE LTD,108.61,02/12/2019
Delivery Units,Adults and Health,Other Agencies - Third Party P,90214087,DYNAMIC PEOPLE LTD,8.05,02/12/2019
Delivery Units,Adults and Health,Other Agencies - Third Party P,90214088,DYNAMIC PEOPLE LTD,277.67,02/12/2019
Delivery Units,Adults and Health,Other Agencies - Third Party P,90214089,DYNAMIC PEOPLE LTD,108.61,02/12/2019
Delivery Units,Adults and Health,Other Agencies - Third Party P,90214090,DYNAMIC PEOPLE LTD,390.36,02/12/2019
Delivery Units,Adults and Health,Other Agencies - Third Party P,90214092,DYNAMIC PEOPLE LTD,80.45,02/12/2019
Delivery Units,Adults and Health,Other Agencies - Third Party P,90214096,DYNAMIC PEOPLE LTD,36.21,02/12/2019
Delivery Units,Adults and Health,Other Agencies - Third Party P,90214097,DYNAMIC PEOPLE LTD,28.16,02/12/2019
Delivery Units,Adults and Health,Other Agencies - Third Party P,90214098,DYNAMIC PEOPLE LTD,100.56,02/12/2019
Delivery Units,Adults and Health,Other Agencies - Third Party P,90214099,DYNAMIC PEOPLE LTD,84.49,02/12/2019
Delivery Units,Adults and Health,Other Agencies - Third Party P,90214101,DYNAMIC PEOPLE LTD,140.82,02/12/2019
Delivery Units,Adults and Health,Other Agencies - Third Party P,90214102,DYNAMIC PEOPLE LTD,189.14,02/12/2019
Delivery Units,Adults and Health,Other Agencies - Third Party P,90214103,DYNAMIC PEOPLE LTD,120.72,02/12/2019
Delivery Units,Adults and Health,Other Agencies - Third Party P,90214109,DYNAMIC PEOPLE LTD,84.49,02/12/2019
Delivery Units,Adults and Health,Other Agencies - Third Party P,90214110,DYNAMIC PEOPLE LTD,52.30,02/12/2019
Delivery Units,Adults and Health,Other Agencies - Third Party P,90214111,DYNAMIC PEOPLE LTD,16.09,02/12/2019
Delivery Units,Adults and Health,Other Agencies - Third Party P,90214112,DYNAMIC PEOPLE LTD,197.12,02/12/2019
Delivery Units,Adults and Health,Other Agencies - Third Party P,90214113,DYNAMIC PEOPLE LTD,84.49,02/12/2019
Delivery Units,Adults and Health,Other Agencies - Third Party P,90214115,DYNAMIC PEOPLE LTD,185.04,02/12/2019
Delivery Units,Adults and Health,Other Agencies - Third Party P,90214116,DYNAMIC PEOPLE LTD,257.52,02/12/2019
Delivery Units,Adults and Health,Other Agencies - Third Party P,90214117,DYNAMIC PEOPLE LTD,168.98,02/12/2019
Delivery Units,Adults and Health,Other Agencies - Third Party P,90214118,DYNAMIC PEOPLE LTD,168.98,02/12/2019
Delivery Units,Adults and Health,Other Agencies - Third Party P,90214119,DYNAMIC PEOPLE LTD,221.26,02/12/2019
Delivery Units,Adults and Health,Other Agencies - Third Party P,90214120,DYNAMIC PEOPLE LTD,112.63,02/12/2019
Delivery Units,Adults and Health,Other Agencies - Third Party P,90214122,DYNAMIC PEOPLE LTD,197.19,02/12/2019
Delivery Units,Adults and Health,Other Agencies - Third Party P,90214123,DYNAMIC PEOPLE LTD,20.12,02/12/2019
Delivery Units,Adults and Health,Other Agencies - Third Party P,90214124,DYNAMIC PEOPLE LTD,80.50,02/12/2019
Delivery Units,Adults and Health,Other Agencies - Third Party P,90214126,DYNAMIC PEOPLE LTD,36.21,02/12/2019
Delivery Units,Adults and Health,Other Agencies - Third Party P,90214128,DYNAMIC PEOPLE LTD,96.59,02/12/2019
Delivery Units,Adults and Health,Other Agencies - Third Party P,90214129,DYNAMIC PEOPLE LTD,60.35,02/12/2019
Delivery Units,Adults and Health,Other Agencies - Third Party P,90214130,DYNAMIC PEOPLE LTD,96.54,02/12/2019
Delivery Units,Adults and Health,Other Agencies - Third Party P,90214132,DYNAMIC PEOPLE LTD,450.64,02/12/2019
Delivery Units,Adults and Health,Other Agencies - Third Party P,90214135,DYNAMIC PEOPLE LTD,140.84,02/12/2019
Delivery Units,Adults and Health,Other Agencies - Third Party P,90214136,DYNAMIC PEOPLE LTD,72.40,02/12/2019
Delivery Units,Adults and Health,Other Agencies - Third Party P,90214138,DYNAMIC PEOPLE LTD,197.12,02/12/2019
Delivery Units,Adults and Health,Other Agencies - Third Party P,90214139,DYNAMIC PEOPLE LTD,156.93,02/12/2019
Delivery Units,Adults and Health,Other Agencies - Third Party P,90214140,DYNAMIC PEOPLE LTD,197.19,02/12/2019
Delivery Units,Adults and Health,Other Agencies - Third Party P,90214141,DYNAMIC PEOPLE LTD,281.68,02/12/2019
Delivery Units,Adults and Health,Other Agencies - Third Party P,90214143,DYNAMIC PEOPLE LTD,96.54,02/12/2019
Delivery Units,Adults and Health,Other Agencies - Third Party P,90214145,DYNAMIC PEOPLE LTD,253.54,02/12/2019
Delivery Units,Adults and Health,Other Agencies - Third Party P,90214147,DYNAMIC PEOPLE LTD,140.84,02/12/2019
Delivery Units,Adults and Health,Other Agencies - Third Party P,90214149,DYNAMIC PEOPLE LTD,56.35,02/12/2019
Delivery Units,Adults and Health,Other Agencies - Third Party P,90214150,DYNAMIC PEOPLE LTD,281.68,02/12/2019
Delivery Units,Adults and Health,Other Agencies - Third Party P,90214152,DYNAMIC PEOPLE LTD,140.84,02/12/2019
Delivery Units,Adults and Health,Other Agencies - Third Party P,90214154,DYNAMIC PEOPLE LTD,112.63,02/12/2019
Delivery Units,Adults and Health,Other Agencies - Third Party P,90214155,DYNAMIC PEOPLE LTD,281.69,02/12/2019
Delivery Units,Adults and Health,Other Agencies - Third Party P,90214156,DYNAMIC PEOPLE LTD,394.38,02/12/2019
Delivery Units,Adults and Health,Other Agencies - Third Party P,90214157,DYNAMIC PEOPLE LTD,337.96,02/12/2019
Delivery Units,Adults and Health,Other Agencies - Third Party P,90214158,DYNAMIC PEOPLE LTD,144.81,02/12/2019
Delivery Units,Adults and Health,Other Agencies - Third Party P,90214159,DYNAMIC PEOPLE LTD,394.24,02/12/2019
Delivery Units,Adults and Health,Other Agencies - Third Party P,90214160,DYNAMIC PEOPLE LTD,197.19,02/12/2019
Delivery Units,Adults and Health,Other Agencies - Third Party P,90214161,DYNAMIC PEOPLE LTD,169.05,02/12/2019
Delivery Units,Adults and Health,Other Agencies - Third Party P,90214162,DYNAMIC PEOPLE LTD,309.82,02/12/2019
Delivery Units,Adults and Health,Other Agencies - Third Party P,90214163,DYNAMIC PEOPLE LTD,56.35,02/12/2019
Delivery Units,Adults and Health,Other Agencies - Third Party P,90214164,DYNAMIC PEOPLE LTD,140.84,02/12/2019
Delivery Units,Adults and Health,Other Agencies - Third Party P,90214165,DYNAMIC PEOPLE LTD,40.25,02/12/2019
Delivery Units,Adults and Health,Other Agencies - Third Party P,90214166,DYNAMIC PEOPLE LTD,197.19,02/12/2019
Delivery Units,Adults and Health,Other Agencies - Third Party P,90214167,DYNAMIC PEOPLE LTD,84.49,02/12/2019
Delivery Units,Adults and Health,Other Agencies - Third Party P,90214168,DYNAMIC PEOPLE LTD,225.33,02/12/2019
Delivery Units,Adults and Health,Other Agencies - Third Party P,90214169,DYNAMIC PEOPLE LTD,120.72,02/12/2019
Delivery Units,Adults and Health,Other Agencies - Third Party P,90214170,DYNAMIC PEOPLE LTD,84.51,02/12/2019
Delivery Units,Adults and Health,Other Agencies - Third Party P,90214171,DYNAMIC PEOPLE LTD,281.68,02/12/2019
Delivery Units,Adults and Health,Other Agencies - Third Party P,90214172,DYNAMIC PEOPLE LTD,173.00,02/12/2019
Delivery Units,Adults and Health,Other Agencies - Third Party P,90214173,DYNAMIC PEOPLE LTD,181.11,02/12/2019
Delivery Units,Adults and Health,Other Agencies - Third Party P,90214174,DYNAMIC PEOPLE LTD,48.27,02/12/2019
Delivery Units,Adults and Health,Other Agencies - Third Party P,90214175,DYNAMIC PEOPLE LTD,305.82,02/12/2019
Delivery Units,Adults and Health,Other Agencies - Third Party P,90214176,DYNAMIC PEOPLE LTD,84.49,02/12/2019
Delivery Units,Adults and Health,Other Agencies - Third Party P,90214177,DYNAMIC PEOPLE LTD,64.39,02/12/2019
Delivery Units,Adults and Health,Other Agencies - Third Party P,90214179,DYNAMIC PEOPLE LTD,507.08,02/12/2019
Delivery Units,Adults and Health,Other Agencies - Third Party P,90214180,DYNAMIC PEOPLE LTD,140.84,02/12/2019
